Workbook

Sheet 1. P&G
A1: Item | B1: Ref | C1: Description | H1: Unit | I1: Qty | J1: Rate | K1: Amount
B3: SANS | C3: Schedule 1 | E3: 1 | M3: 1
B4: 1200 A | C4: Preliminary and General | M4: 2
B5: PSA | M5: 3
C6: FIXED-CHARGE ITEMS | M6: 4
M7: 5
A8: =IF(ISBLANK(H8),"",($E$3&"."&+(COUNTA(H$3:H8)))) -> 1.1 | B8: 8.3.1 | C8: .1 | D8: Contractual Requirements | H8: sum | I8: 1 | M8: 6
A9: =IF(ISBLANK(H9),"",($E$3&"."&+(COUNTA(H$3:H9)))) ->  | M9: 7
A10: =IF(ISBLANK(H10),"",($E$3&"."&+(COUNTA(H$3:H10)))) ->  | C10: Establishment of Facilities on Site | M10: 8
A11: =IF(ISBLANK(H11),"",($E$3&"."&+(COUNTA(H$3:H11)))) ->  | B11: PSAB | M11: 9
A12: =IF(ISBLANK(H12),"",($E$3&"."&+(COUNTA(H$3:H12)))) ->  | B12: 8.3.2 | C12: .2 | D12: Facilities for the Engineer | M12: 10
A13: =IF(ISBLANK(H13),"",($E$3&"."&+(COUNTA(H$3:H13)))) ->  | M13: 11
A14: =IF(ISBLANK(H14),"",($E$3&"."&+(COUNTA(H$3:H14)))) -> 1.2 | D14: (a) | E14: Furnished Offices, Latrines and Carports | H14: sum | I14: 1 | M14: 12
A15: =IF(ISBLANK(H15),"",($E$3&"."&+(COUNTA(H$3:H15)))) -> 1.3 | D15: (b) | E15: Telephone | H15: sum | I15: 1 | M15: 13
A16: =IF(ISBLANK(H16),"",($E$3&"."&+(COUNTA(H$3:H16)))) -> 1.4 | D16: (c) | E16: Nameboards | H16: No | I16: 1 | M16: 14
A17: =IF(ISBLANK(H17),"",($E$3&"."&+(COUNTA(H$3:H17)))) -> 1.5 | D17: (d) | E17: Survey Assistant | H17: sum | I17: 1 | M17: 15
A18: =IF(ISBLANK(H18),"",($E$3&"."&+(COUNTA(H$3:H18)))) -> 1.6 | D18: (e) | E18: Survey Equipment | H18: sum | I18: 1 | M18: 16
A19: =IF(ISBLANK(H19),"",($E$3&"."&+(COUNTA(H$3:H19)))) ->  | M19: 17
A20: =IF(ISBLANK(H20),"",($E$3&"."&+(COUNTA(H$3:H20)))) ->  | B20: 8.3.2 | C20: .3 | D20: Facilities for the Contractor | M20: 18
A21: =IF(ISBLANK(H21),"",($E$3&"."&+(COUNTA(H$3:H21)))) ->  | M21: 19
A22: =IF(ISBLANK(H22),"",($E$3&"."&+(COUNTA(H$3:H22)))) -> 1.7 | D22: (a) | E22: Offices and storage sheds | H22: sum | I22: 1 | M22: 20
A23: =IF(ISBLANK(H23),"",($E$3&"."&+(COUNTA(H$3:H23)))) -> 1.8 | D23: (b) | E23: Workshops | H23: sum | I23: 1 | M23: 21
A24: =IF(ISBLANK(H24),"",($E$3&"."&+(COUNTA(H$3:H24)))) -> 1.9 | D24: (c) | E24: Laboratories | H24: sum | I24: 1 | M24: 22
A25: =IF(ISBLANK(H25),"",($E$3&"."&+(COUNTA(H$3:H25)))) -> 1.10 | D25: (d) | E25: Living accommodation | H25: sum | I25: 1 | M25: 23
A26: =IF(ISBLANK(H26),"",($E$3&"."&+(COUNTA(H$3:H26)))) -> 1.11 | D26: (e) | E26: Ablution and latrine facilities | H26: sum | I26: 1 | M26: 24
A27: =IF(ISBLANK(H27),"",($E$3&"."&+(COUNTA(H$3:H27)))) -> 1.12 | D27: (f) | E27: Tools and equipment | H27: sum | I27: 1 | M27: 25
A28: =IF(ISBLANK(H28),"",($E$3&"."&+(COUNTA(H$3:H28)))) -> 1.13 | D28: (g) | E28: Water supplies, power and communication | H28: sum | I28: 1 | M28: 26
A29: =IF(ISBLANK(H29),"",($E$3&"."&+(COUNTA(H$3:H29)))) -> 1.14 | D29: (h) | E29: Dealing with water (Sub-clause 5.5) | H29: sum | I29: 1 | M29: 27
A30: =IF(ISBLANK(H30),"",($E$3&"."&+(COUNTA(H$3:H30)))) -> 1.15 | D30: (i) | E30: Access (Sub-clause 5.8) | H30: sum | I30: 1 | M30: 28
A31: =IF(ISBLANK(H31),"",($E$3&"."&+(COUNTA(H$3:H31)))) -> 1.16 | D31: (j) | E31: Construction Equipment | H31: sum | I31: 1 | M31: 29
A32: =IF(ISBLANK(H32),"",($E$3&"."&+(COUNTA(H$3:H32)))) ->  | M32: 30
A33: =IF(ISBLANK(H33),"",($E$3&"."&+(COUNTA(H$3:H33)))) -> 1.17 | B33: 8.3.3 | C33: .4 | D33: Other fixed-charge Obligations | H33: sum | I33: 1 | M33: 31
A34: =IF(ISBLANK(H34),"",($E$3&"."&+(COUNTA(H$3:H34)))) ->  | M34: 32
A35: =IF(ISBLANK(H35),"",($E$3&"."&+(COUNTA(H$3:H35)))) -> 1.18 | B35: 8.3.4 | C35: .5 | D35: Removal of Contractors and Engineers site on completion | H35: sum | I35: 1 | M35: 33
A36: =IF(ISBLANK(H36),"",($E$3&"."&+(COUNTA(H$3:H36)))) ->  | M36: 34
A37: =IF(ISBLANK(H37),"",($E$3&"."&+(COUNTA(H$3:H37)))) ->  | C37: Occupational Health and Safety | M37: 35
A38: =IF(ISBLANK(H38),"",($E$3&"."&+(COUNTA(H$3:H38)))) ->  | M38: 36
A39: =IF(ISBLANK(H39),"",($E$3&"."&+(COUNTA(H$3:H39)))) -> 1.19 | B39: 8.3.5 | C39: .6 | D39: Compliance with Occupational Health and Safety Act | H39: sum | I39: 1 | M39: 37
A40: =IF(ISBLANK(H40),"",($E$3&"."&+(COUNTA(H$3:H40)))) ->  | D40: (Act 85 of 1993) and its regulations and with the | M40: 38
A41: =IF(ISBLANK(H41),"",($E$3&"."&+(COUNTA(H$3:H41)))) ->  | D41: Employers Health and Safety Specification | M41: 39
A42: =IF(ISBLANK(H42),"",($E$3&"."&+(COUNTA(H$3:H42)))) ->  | M42: 40
A43: =IF(ISBLANK(H43),"",($E$3&"."&+(COUNTA(H$3:H43)))) ->  | C43: Environmental Management | M43: 41
A44: =IF(ISBLANK(H44),"",($E$3&"."&+(COUNTA(H$3:H44)))) ->  | M44: 42
A45: =IF(ISBLANK(H45),"",($E$3&"."&+(COUNTA(H$3:H45)))) -> 1.20 | B45: 8.3.6 | C45: .7 | D45: Compliance with Environmental Management plan | H45: sum | I45: 1.0 | K45: R/O | M45: 43
A46: =IF(ISBLANK(H46),"",($E$3&"."&+(COUNTA(H$3:H46)))) ->  | M46: 44
A47: =IF(ISBLANK(H47),"",($E$3&"."&+(COUNTA(H$3:H47)))) ->  | C47: TIME-RELATED ITEMS | M47: 45
A48: =IF(ISBLANK(H48),"",($E$3&"."&+(COUNTA(H$3:H48)))) ->  | M48: 46
A49: =IF(ISBLANK(H49),"",($E$3&"."&+(COUNTA(H$3:H49)))) -> 1.21 | B49: 8.4.1 | C49: .1 | D49: Contractual requirements | H49: month | I49: 12 | M49: 47
A50: =IF(ISBLANK(H50),"",($E$3&"."&+(COUNTA(H$3:H50)))) ->  | M50: 48
A51: =IF(ISBLANK(H51),"",($E$3&"."&+(COUNTA(H$3:H51)))) ->  | C51: Operation and maintenance of facilities on the Site for | M51: 49
A52: =IF(ISBLANK(H52),"",($E$3&"."&+(COUNTA(H$3:H52)))) ->  | C52: the duration of construction | M52: 50
A53: =IF(ISBLANK(H53),"",($E$3&"."&+(COUNTA(H$3:H53)))) ->  | M53: 51
A54: =IF(ISBLANK(H54),"",($E$3&"."&+(COUNTA(H$3:H54)))) ->  | B54: 8.4.2 | C54: .2 | D54: Facilities for the Engineer | M54: 52
A55: =IF(ISBLANK(H55),"",($E$3&"."&+(COUNTA(H$3:H55)))) ->  | M55: 53
A56: =IF(ISBLANK(H56),"",($E$3&"."&+(COUNTA(H$3:H56)))) -> 1.22 | D56: (a) | E56: Furnished Offices, Latrines and Carports | H56: month | I56: 12 | M56: 54
A57: =IF(ISBLANK(H57),"",($E$3&"."&+(COUNTA(H$3:H57)))) ->  | M57: 55
A58: =IF(ISBLANK(H58),"",($E$3&"."&+(COUNTA(H$3:H58)))) -> 1.23 | D58: (b) | E58: Telephone | H58: month | I58: =I56 -> 12 | M58: 56
A59: =IF(ISBLANK(H59),"",($E$3&"."&+(COUNTA(H$3:H59)))) ->  | M59: 57
A60: =IF(ISBLANK(H60),"",($E$3&"."&+(COUNTA(H$3:H60)))) -> 1.24 | D60: (c) | E60: Nameboards | H60: month | I60: =I58 -> 12 | M60: 58
A61: =IF(ISBLANK(H61),"",($E$3&"."&+(COUNTA(H$3:H61)))) ->  | M61: 59
A62: =IF(ISBLANK(H62),"",($E$3&"."&+(COUNTA(H$3:H62)))) -> 1.25 | D62: (d) | E62: Survey Assistant | H62: month | I62: =I60 -> 12 | M62: 60
A63: =IF(ISBLANK(H63),"",($E$3&"."&+(COUNTA(H$3:H63)))) ->  | M63: 61
A64: =IF(ISBLANK(H64),"",($E$3&"."&+(COUNTA(H$3:H64)))) -> 1.26 | D64: (e) | E64: Survey Equipment | H64: month | I64: =I62 -> 12 | M64: 62
M65: 63
A66: =IF(ISBLANK(H66),"",($E$3&"."&+(COUNTA(H$3:H66)))) ->  | B66: 8.4.2 | C66: .3 | D66: Facilities for the Contractor | M66: 64
A67: =IF(ISBLANK(H67),"",($E$3&"."&+(COUNTA(H$3:H67)))) ->  | M67: 65
A68: =IF(ISBLANK(H68),"",($E$3&"."&+(COUNTA(H$3:H68)))) -> 1.27 | D68: (a) | E68: Offices and storage sheds | H68: month | I68: =I56 -> 12.00 | M68: 66
A69: =IF(ISBLANK(H69),"",($E$3&"."&+(COUNTA(H$3:H69)))) ->  | M69: 67
A70: =IF(ISBLANK(H70),"",($E$3&"."&+(COUNTA(H$3:H70)))) -> 1.28 | D70: (b) | E70: Workshops | H70: month | I70: =I68 -> 12.00 | M70: 68
A71: =IF(ISBLANK(H71),"",($E$3&"."&+(COUNTA(H$3:H71)))) ->  | M71: 69
A72: =IF(ISBLANK(H72),"",($E$3&"."&+(COUNTA(H$3:H72)))) -> 1.29 | D72: (c) | E72: Laboratories | H72: month | I72: =I70 -> 12.00 | M72: 70
A73: =IF(ISBLANK(H73),"",($E$3&"."&+(COUNTA(H$3:H73)))) ->  | M73: 71
A74: =IF(ISBLANK(H74),"",($E$3&"."&+(COUNTA(H$3:H74)))) -> 1.30 | D74: (d) | E74: Living accommodation | H74: month | I74: =I72 -> 12.00 | M74: 72
A75: =IF(ISBLANK(H75),"",($E$3&"."&+(COUNTA(H$3:H75)))) ->  | M75: 73
A76: =IF(ISBLANK(H76),"",($E$3&"."&+(COUNTA(H$3:H76)))) -> 1.31 | D76: (e) | E76: Ablution and latrine facilities | H76: month | I76: =I74 -> 12.00 | M76: 74
J77: Carried forward | M77: 75
J78: Brought forward
M79: 77
A80: =IF(ISBLANK(H80),"",($E$3&"."&+(COUNTA(H$3:H80)))) -> 1.32 | D80: (f) | E80: Tools and equipment | H80: month | I80: =I76 -> 12.00 | M80: 78
A81: =IF(ISBLANK(H81),"",($E$3&"."&+(COUNTA(H$3:H81)))) ->  | M81: 79
A82: =IF(ISBLANK(H82),"",($E$3&"."&+(COUNTA(H$3:H82)))) -> 1.33 | D82: (g) | E82: Water supplies, power and communication | H82: month | I82: =I80 -> 12.00
M83: 80
A84: =IF(ISBLANK(H84),"",($E$3&"."&+(COUNTA(H$3:H84)))) -> 1.34 | D84: (h) | E84: Dealing with water (Sub-clause 5.5) | H84: month | I84: =I82 -> 12.00
A85: =IF(ISBLANK(H85),"",($E$3&"."&+(COUNTA(H$3:H85)))) -> 
A86: =IF(ISBLANK(H86),"",($E$3&"."&+(COUNTA(H$3:H86)))) -> 1.35 | D86: (i) | E86: Access (Sub-clause 5.8) | H86: month | I86: =I84 -> 12.00 | M86: 1
A87: =IF(ISBLANK(H87),"",($E$3&"."&+(COUNTA(H$3:H87)))) ->  | M87: 2
A88: =IF(ISBLANK(H88),"",($E$3&"."&+(COUNTA(H$3:H88)))) -> 1.36 | D88: (j) | E88: Construction Equipment | H88: month | I88: =I86 -> 12.00 | M88: 3
A89: =IF(ISBLANK(H89),"",($E$3&"."&+(COUNTA(H$3:H89)))) ->  | M89: 4
A90: =IF(ISBLANK(H90),"",($E$3&"."&+(COUNTA(H$3:H90)))) -> 1.37 | B90: 8.4.3 | C90: .4 | D90: Supervision for duration of construction | H90: month | I90: =I88 -> 12.00 | M90: 5
A91: =IF(ISBLANK(H91),"",($E$3&"."&+(COUNTA(H$3:H91)))) ->  | M91: 6
A92: =IF(ISBLANK(H92),"",($E$3&"."&+(COUNTA(H$3:H92)))) -> 1.38 | B92: 8.4.4 | C92: .5 | D92: Company and Head Office Overheads | H92: month | I92: =I90 -> 12.00 | M92: 7
A93: =IF(ISBLANK(H93),"",($E$3&"."&+(COUNTA(H$3:H93)))) ->  | M93: 8
A94: =IF(ISBLANK(H94),"",($E$3&"."&+(COUNTA(H$3:H94)))) -> 1.39 | B94: 8.4.5 | C94: .6 | D94: Other time-related Obligations | H94: month | I94: =I92 -> 12.00 | M94: 9
A95: =IF(ISBLANK(H95),"",($E$3&"."&+(COUNTA(H$3:H95)))) ->  | M95: 10
A96: =IF(ISBLANK(H96),"",($E$3&"."&+(COUNTA(H$3:H96)))) ->  | C96: Occupational Health and Safety | M96: 11
A97: =IF(ISBLANK(H97),"",($E$3&"."&+(COUNTA(H$3:H97)))) ->  | M97: 12
A98: =IF(ISBLANK(H98),"",($E$3&"."&+(COUNTA(H$3:H98)))) -> 1.40 | B98: 8.4.6 | C98: .7 | D98: Compliance with Occupational Health and Safety Act | H98: month | I98: =I94 -> 12.00 | M98: 13
A99: =IF(ISBLANK(H99),"",($E$3&"."&+(COUNTA(H$3:H99)))) ->  | D99: (Act 85 of 1993) and its regulations and with the | M99: 14
A100: =IF(ISBLANK(H100),"",($E$3&"."&+(COUNTA(H$3:H100)))) ->  | D100: Employers Health and Safety Specification | M100: 15
A101: =IF(ISBLANK(H101),"",($E$3&"."&+(COUNTA(H$3:H101)))) ->  | M101: 16
A102: =IF(ISBLANK(H102),"",($E$3&"."&+(COUNTA(H$3:H102)))) ->  | C102: Environmental Management | M102: 17
A103: =IF(ISBLANK(H103),"",($E$3&"."&+(COUNTA(H$3:H103)))) ->  | M103: 18
A104: =IF(ISBLANK(H104),"",($E$3&"."&+(COUNTA(H$3:H104)))) -> 1.41 | B104: 8.4.7 | C104: .8 | D104: Compliance with Environmental Management plan | H104: month | I104: =I98 -> 12.00 | K104: R/O | M104: 19
A105: =IF(ISBLANK(H105),"",($E$3&"."&+(COUNTA(H$3:H105)))) ->  | M105: 20
A106: =IF(ISBLANK(H106),"",($E$3&"."&+(COUNTA(H$3:H106)))) ->  | M106: 21
M107: 22
M108: 23
M109: 24
M110: 25
M111: 26
M112: 27
M113: 28
M114: 29
M115: 30
M116: 31
M117: 32
M118: 33
M119: 34
M120: 35
M121: 36
M122: 37
M123: 38
M124: 39
M125: 40
M126: 41
M127: 42
M128: 43
M129: 44
M130: 45
M131: 46
M132: 47
M133: 48
M134: 49
M135: 50
M136: 51
M137: 52
M138: 53
M139: 54
M140: 55
M141: 56
M142: 57
M143: 58
M144: 59
M145: 60
M146: 61
M147: 62
M148: 63
M149: 64
C150: =C3 -> Schedule 1 | M150: 65
C151: =C4 -> Preliminary and General | M151: 68
M152: 69
J153: Carried forward to summary of schedules | M153: 70
M154: 71
M155: 72
M156: 73
M157: 74
M158: 75
M159: 76
M160: 77
M161: 78
M162: 79
M163: 80

Sheet 2. Prov Sum
A1: Item | B1: Ref | C1: Description | H1: Unit | I1: Qty | J1: Rate | K1: Amount
A3: 2 | B3: SANS | C3: Schedule No.: 2 | F3: 2 | L3: 1
B4: 1200 A | C4: Provisional Sums and Prime Cost Items | L4: 2
L5: 3
A6: =IF(ISBLANK(H6),"",($F$3&"."&+(COUNTA(H$3:H6)))) ->  | C6: PROVISIONAL SUMS | L6: 4
A7: =IF(ISBLANK(H7),"",($F$3&"."&+(COUNTA(H$3:H7)))) ->  | L7: 5
A8: =IF(ISBLANK(H8),"",($F$3&"."&+(COUNTA(H$3:H8)))) ->  | C8: SUMS STATED PROVISIONALLY BY THE ENGINEER | L8: 6
A9: =IF(ISBLANK(H9),"",($F$3&"."&+(COUNTA(H$3:H9)))) ->  | L9: 7
A10: =IF(ISBLANK(H10),"",($F$3&"."&+(COUNTA(H$3:H10)))) ->  | C10: Bypass Pipeline and Associated Works | L10: 8
A11: =IF(ISBLANK(H11),"",($F$3&"."&+(COUNTA(H$3:H11)))) ->  | L11: 9
A12: =IF(ISBLANK(H12),"",($F$3&"."&+(COUNTA(H$3:H12)))) ->  | C12: Eployer Requirements | L12: 10
A13: =IF(ISBLANK(H13),"",($F$3&"."&+(COUNTA(H$3:H13)))) ->  | L13: 11
A14: =IF(ISBLANK(H14),"",($F$3&"."&+(COUNTA(H$3:H14)))) ->  | B14: 8.5 | C14: .1 | D14: Eployer Requirements | L14: 12
A15: =IF(ISBLANK(H15),"",($F$3&"."&+(COUNTA(H$3:H15)))) ->  | L15: 13
A16: =IF(ISBLANK(H16),"",($F$3&"."&+(COUNTA(H$3:H16)))) ->  | D16: (a) | E16: Remuneration | L16: 14
A17: =IF(ISBLANK(H17),"",($F$3&"."&+(COUNTA(H$3:H17)))) -> 2.1 | E17: i) CLO/LDO remuneration | H17: Prov. Sum | I17: 1 | J17: 120,000.00 | K17: =$I17*J17 -> 120,000.00 | L17: 15
L18: 16 | M18: 10000 | N18: =L18*M18 -> R160,000.00
A19: =IF(ISBLANK(H19),"",($F$3&"."&+(COUNTA(H$3:H19)))) -> 2.2 | D19: (b) | E19: Overheads, Charges & Profit on Above | H19: % | L19: 17
A20: =IF(ISBLANK(H20),"",($F$3&"."&+(COUNTA(H$3:H20)))) ->  | L20: 18
A21: =IF(ISBLANK(H21),"",($F$3&"."&+(COUNTA(H$3:H21)))) -> 2.3 | D21: (c) | E21: Artisans and Skills Training | H21: Prov. Sum | I21: 1 | J21: 100,000.00 | K21: =$I21*J21 -> 100,000.00 | L21: 19
L22: 20
A23: =IF(ISBLANK(H23),"",($F$3&"."&+(COUNTA(H$3:H23)))) -> 2.4 | D23: (d) | E23: Overheads, Charges & Profit on Above | H23: % | L23: 21
A24: =IF(ISBLANK(H24),"",($F$3&"."&+(COUNTA(H$3:H24)))) ->  | L24: 22
A25: =IF(ISBLANK(H25),"",($F$3&"."&+(COUNTA(H$3:H25)))) -> 2.5 | D25: (e) | E25: Maintenance Spares | H25: Prov. Sum | I25: 1 | J25: 100,000.00 | K25: =$I25*J25 -> 100,000.00 | L25: 23
L26: 24
A27: =IF(ISBLANK(H27),"",($F$3&"."&+(COUNTA(H$3:H27)))) -> 2.6 | D27: (f) | E27: Overheads, Charges & Profit on Above | H27: % | L27: 25
A28: =IF(ISBLANK(H28),"",($F$3&"."&+(COUNTA(H$3:H28)))) ->  | L28: 26
A29: =IF(ISBLANK(H29),"",($F$3&"."&+(COUNTA(H$3:H29)))) ->  | C29: Engineers Requirements | L29: 27
A30: =IF(ISBLANK(H30),"",($F$3&"."&+(COUNTA(H$3:H30)))) ->  | L30: 28
A31: =IF(ISBLANK(H31),"",($F$3&"."&+(COUNTA(H$3:H31)))) ->  | B31: 8.5 | C31: .2 | D31: Engineers Requirements | L31: 29
A32: =IF(ISBLANK(H32),"",($F$3&"."&+(COUNTA(H$3:H32)))) ->  | L32: 30
A33: =IF(ISBLANK(H33),"",($F$3&"."&+(COUNTA(H$3:H33)))) -> 2.7 | D33: (a) | E33: Cellular phone costs | H33: Prov. Sum | I33: 1 | J33: 12,000.00 | K33: =$I33*J33 -> 12,000.00 | L33: 31
L34: 32
A35: =IF(ISBLANK(H35),"",($F$3&"."&+(COUNTA(H$3:H35)))) -> 2.8 | D35: (b) | E35: Overheads, Charges & Profit on Above | H35: % | L35: 33
A36: =IF(ISBLANK(H36),"",($F$3&"."&+(COUNTA(H$3:H36)))) ->  | L36: 34
A37: =IF(ISBLANK(H37),"",($F$3&"."&+(COUNTA(H$3:H37)))) -> 2.9 | D37: (c) | E37: Acceptance control testing | H37: Prov. Sum | I37: 1 | J37: 250,000.00 | K37: =$I37*J37 -> 250,000.00 | L37: 35
L38: 36
A39: =IF(ISBLANK(H39),"",($F$3&"."&+(COUNTA(H$3:H39)))) -> 2.10 | D39: (d) | E39: Overheads, Charges & Profit on Above | H39: % | L39: 37
A40: =IF(ISBLANK(H40),"",($F$3&"."&+(COUNTA(H$3:H40)))) ->  | L40: 38
A41: =IF(ISBLANK(H41),"",($F$3&"."&+(COUNTA(H$3:H41)))) -> 2.11 | D41: (e) | E41: Site Office Consumables & PPE | H41: Prov. Sum | I41: 1 | J41: 32,000.00 | K41: =$I41*J41 -> 32,000.00 | L41: 39
L42: 40
A43: =IF(ISBLANK(H43),"",($F$3&"."&+(COUNTA(H$3:H43)))) -> 2.12 | D43: (f) | E43: Overheads, Charges & Profit on Above | H43: % | L43: 41
A44: =IF(ISBLANK(H44),"",($F$3&"."&+(COUNTA(H$3:H44)))) ->  | L44: 42
A45: =IF(ISBLANK(H45),"",($F$3&"."&+(COUNTA(H$3:H45)))) -> 2.13 | D45: (g) | E45: Electronic Office Equipment | H45: Prov. Sum | I45: 1 | J45: 15,000.00 | K45: =$I45*J45 -> 15,000.00 | L45: 43
L46: 44
A47: =IF(ISBLANK(H47),"",($F$3&"."&+(COUNTA(H$3:H47)))) -> 2.14 | D47: (h) | E47: Overheads, Charges & Profit on Above | H47: % | L47: 45
A48: =IF(ISBLANK(H48),"",($F$3&"."&+(COUNTA(H$3:H48)))) ->  | L48: 46
A49: =IF(ISBLANK(H49),"",($F$3&"."&+(COUNTA(H$3:H49)))) ->  | C49: Work to Existing Services | L49: 47
A50: =IF(ISBLANK(H50),"",($F$3&"."&+(COUNTA(H$3:H50)))) ->  | L50: 48
A51: =IF(ISBLANK(H51),"",($F$3&"."&+(COUNTA(H$3:H51)))) ->  | C51: .3 | D51: Existing Services | L51: 49
A52: =IF(ISBLANK(H52),"",($F$3&"."&+(COUNTA(H$3:H52)))) ->  | L52: 50
A53: =IF(ISBLANK(H53),"",($F$3&"."&+(COUNTA(H$3:H53)))) -> 2.15 | D53: (a) | E53: Locating Existing Services | H53: Prov. Sum | I53: 1 | J53: 15,000.00 | K53: =$I53*J53 -> 15,000.00 | L53: 51
L54: 52
A55: =IF(ISBLANK(H55),"",($F$3&"."&+(COUNTA(H$3:H55)))) -> 2.16 | D55: (b) | E55: Overheads, Charges & Profit on Above | H55: % | L55: 53
A56: =IF(ISBLANK(H56),"",($F$3&"."&+(COUNTA(H$3:H56)))) ->  | L56: 54
A57: =IF(ISBLANK(H57),"",($F$3&"."&+(COUNTA(H$3:H57)))) -> 2.17 | D57: (c) | E57: Relocating Existing Services | H57: Prov. Sum | I57: 1 | J57: 50,000.00 | K57: =$I57*J57 -> 50,000.00 | L57: 55
L58: 56
A59: =IF(ISBLANK(H59),"",($F$3&"."&+(COUNTA(H$3:H59)))) -> 2.18 | D59: (d) | E59: Overheads, Charges & Profit on Above | H59: % | L59: 57
A60: =IF(ISBLANK(H60),"",($F$3&"."&+(COUNTA(H$3:H60)))) ->  | L60: 58
A61: =IF(ISBLANK(H61),"",($F$3&"."&+(COUNTA(H$3:H61)))) ->  | C61: Professional or Specialist Services | L61: 59
A62: =IF(ISBLANK(H62),"",($F$3&"."&+(COUNTA(H$3:H62)))) ->  | L62: 60
A63: =IF(ISBLANK(H63),"",($F$3&"."&+(COUNTA(H$3:H63)))) ->  | C63: .4 | D63: Specialist Services | L63: 61
A64: =IF(ISBLANK(H64),"",($F$3&"."&+(COUNTA(H$3:H64)))) ->  | L64: 62
A65: =IF(ISBLANK(H65),"",($F$3&"."&+(COUNTA(H$3:H65)))) ->  | D65: (a) | E65: Specialist surge analysis, testing and commissioning of | L65: 63
A66: =IF(ISBLANK(H66),"",($F$3&"."&+(COUNTA(H$3:H66)))) -> 2.19 | E66: altitude valves and pressure relief system | H66: Prov. Sum | I66: 1 | J66: 50,000.00 | K66: =$I66*J66 -> 50,000.00 | L66: 64
L67: 65
A68: =IF(ISBLANK(H68),"",($F$3&"."&+(COUNTA(H$3:H68)))) -> 2.20 | D68: (b) | E68: Overheads, Charges & Profit on Above | H68: % | L68: 66
A69: =IF(ISBLANK(H69),"",($F$3&"."&+(COUNTA(H$3:H69)))) ->  | L69: 67
A70: =IF(ISBLANK(H70),"",($F$3&"."&+(COUNTA(H$3:H70)))) -> 2.21 | D70: (c) | E70: SCADA integration, calibration and commissioning | H70: Prov. Sum | I70: 1 | J70: 150,000.00 | K70: =$I70*J70 -> 150,000.00 | L70: 68
L71: 69
A72: =IF(ISBLANK(H72),"",($F$3&"."&+(COUNTA(H$3:H72)))) -> 2.22 | D72: (d) | E72: Overheads, Charges & Profit on Above | H72: % | L72: 70
L73: 71
L74: 75
L75: 76
L76: 77
L77: 78
L78: 79
J79: Carried forward | L79: 80
J80: Brought forward
A81: =IF(ISBLANK(H81),"",($F$3&"."&+(COUNTA(H$3:H81)))) ->  | L81: 1
A82: =IF(ISBLANK(H82),"",($F$3&"."&+(COUNTA(H$3:H82)))) ->  | C82: PRIME COST ITEMS | L82: 2
A83: =IF(ISBLANK(H83),"",($F$3&"."&+(COUNTA(H$3:H83)))) ->  | L83: 3 | M83: Altitude valves Cost / Each
A84: =IF(ISBLANK(H84),"",($F$3&"."&+(COUNTA(H$3:H84)))) ->  | B84: 8.6 | C84: Prime Cost Items | L84: 4 | M84: R625,000.00 | N84: =M84*3 -> R1,875,000.00
A85: =IF(ISBLANK(H85),"",($F$3&"."&+(COUNTA(H$3:H85)))) ->  | L85: 5
A86: =IF(ISBLANK(H86),"",($F$3&"."&+(COUNTA(H$3:H86)))) ->  | D86: Prime Cost Items | L86: 6
A87: =IF(ISBLANK(H87),"",($F$3&"."&+(COUNTA(H$3:H87)))) ->  | L87: 7
A88: =IF(ISBLANK(H88),"",($F$3&"."&+(COUNTA(H$3:H88)))) -> 2.23 | C88: .1 | D88: (a) | E88: Materials Used in the Execution of Dayworks | H88: Prov. Sum | I88: 1 | J88: 50,000.00 | K88: =J88*I88 -> 50,000.00 | L88: 8
L89: 9
A90: =IF(ISBLANK(H90),"",($F$3&"."&+(COUNTA(H$3:H90)))) -> 2.24 | D90: (b) | E90: Overheads, Charges & Profit on (a) above | H90: % | L90: 10 | Q90: 21
A91: =IF(ISBLANK(H91),"",($F$3&"."&+(COUNTA(H$3:H91)))) ->  | L91: 11 | Q91: 22
A92: =IF(ISBLANK(H92),"",($F$3&"."&+(COUNTA(H$3:H92)))) -> 2.25 | C92: .2 | D92: (a) | E92: Materials Used in the Altitude Valves | H92: Prov. Sum | I92: 1 | J92: 2,000,000.00 | K92: =J92*I92 -> 2,000,000.00 | L92: 12 | M92: 36142.14 | O92: 1 | P92: 36142.14 | Q92: 23 | V92: Item 1.4.3
L93: 13 | Q93: 24 | W93: 0.6515
A94: =IF(ISBLANK(H94),"",($F$3&"."&+(COUNTA(H$3:H94)))) -> 2.26 | D94: (b) | E94: Overheads, Charges & Profit on (a) above | H94: % | L94: 14 | M94: 18781.73 | O94: 1 | P94: 18781.73 | Q94: 25 | V94: Pipetech | W94: 97725
L95: 15 | Q95: 26 | V95: IN 11722 | W95: 4560
A96: =IF(ISBLANK(H96),"",($F$3&"."&+(COUNTA(H$3:H96)))) -> 2.27 | D96: (c) | E96: Transport and labour to handle and install (a) above | H96: Sum | I96: 1 | L96: 16 | M96: 17766.5 | O96: 1 | P96: 17766.5 | Q96: 27 | V96: IN 11748 | W96: 1915
A97: =IF(ISBLANK(H97),"",($F$3&"."&+(COUNTA(H$3:H97)))) ->  | L97: 17 | Q97: 28 | V97: IN 11766 | W97: 13,995.00
A98: =IF(ISBLANK(H98),"",($F$3&"."&+(COUNTA(H$3:H98)))) ->  | C98: OTHER GENERAL CHARGES | L98: 18
A99: =IF(ISBLANK(H99),"",($F$3&"."&+(COUNTA(H$3:H99)))) ->  | L99: 19
A100: =IF(ISBLANK(H100),"",($F$3&"."&+(COUNTA(H$3:H100)))) -> 2.28 | B100: PPG 8.3.2 | C100: .1 | D100: Provision of as-built drawings and details | H100: Sum | I100: 1 | L100: 20
A101: =IF(ISBLANK(H101),"",($F$3&"."&+(COUNTA(H$3:H101)))) ->  | L101: 21
A102: =IF(ISBLANK(H102),"",($F$3&"."&+(COUNTA(H$3:H102)))) -> 2.29 | B102: PPG 8.3.3 | C102: .2 | D102: Provide Operation and Maintenance Manuals | H102: Sum | I102: 1 | L102: 22
A103: =IF(ISBLANK(H103),"",($F$3&"."&+(COUNTA(H$3:H103)))) ->  | L103: 23
A104: =IF(ISBLANK(H104),"",($F$3&"."&+(COUNTA(H$3:H104)))) -> 2.30 | B104: PPG 8.3.4 | C104: .3 | D104: Training | H104: Sum | I104: 1 | L104: 24
A105: =IF(ISBLANK(H105),"",($F$3&"."&+(COUNTA(H$3:H105)))) ->  | L105: 25
A106: =IF(ISBLANK(H106),"",($F$3&"."&+(COUNTA(H$3:H106)))) ->  | L106: 26
A107: =IF(ISBLANK(H107),"",($F$3&"."&+(COUNTA(H$3:H107)))) ->  | L107: 27
A108: =IF(ISBLANK(H108),"",($F$3&"."&+(COUNTA(H$3:H108)))) ->  | L108: 28
A109: =IF(ISBLANK(H109),"",($F$3&"."&+(COUNTA(H$3:H109)))) ->  | L109: 29
A110: =IF(ISBLANK(H110),"",($F$3&"."&+(COUNTA(H$3:H110)))) ->  | L110: 30
A111: =IF(ISBLANK(H111),"",($F$3&"."&+(COUNTA(H$3:H111)))) ->  | L111: 31
A112: =IF(ISBLANK(H112),"",($F$3&"."&+(COUNTA(H$3:H112)))) ->  | L112: 32
A113: =IF(ISBLANK(H113),"",($F$3&"."&+(COUNTA(H$3:H113)))) ->  | L113: 33
A114: =IF(ISBLANK(H114),"",($F$3&"."&+(COUNTA(H$3:H114)))) ->  | L114: 34
A115: =IF(ISBLANK(H115),"",($F$3&"."&+(COUNTA(H$3:H115)))) ->  | L115: 35
A116: =IF(ISBLANK(H116),"",($F$3&"."&+(COUNTA(H$3:H116)))) ->  | L116: 36
A117: =IF(ISBLANK(H117),"",($F$3&"."&+(COUNTA(H$3:H117)))) ->  | L117: 37
A118: =IF(ISBLANK(H118),"",($F$3&"."&+(COUNTA(H$3:H118)))) ->  | L118: 38
A119: =IF(ISBLANK(H119),"",($F$3&"."&+(COUNTA(H$3:H119)))) ->  | L119: 39
A120: =IF(ISBLANK(H120),"",($F$3&"."&+(COUNTA(H$3:H120)))) ->  | L120: 40
A121: =IF(ISBLANK(H121),"",($F$3&"."&+(COUNTA(H$3:H121)))) ->  | L121: 41
A122: =IF(ISBLANK(H122),"",($F$3&"."&+(COUNTA(H$3:H122)))) ->  | L122: 42
A123: =IF(ISBLANK(H123),"",($F$3&"."&+(COUNTA(H$3:H123)))) ->  | L123: 43
A124: =IF(ISBLANK(H124),"",($F$3&"."&+(COUNTA(H$3:H124)))) ->  | L124: 44
A125: =IF(ISBLANK(H125),"",($F$3&"."&+(COUNTA(H$3:H125)))) ->  | L125: 45
A126: =IF(ISBLANK(H126),"",($F$3&"."&+(COUNTA(H$3:H126)))) ->  | L126: 46
A127: =IF(ISBLANK(H127),"",($F$3&"."&+(COUNTA(H$3:H127)))) ->  | L127: 47
A128: =IF(ISBLANK(H128),"",($F$3&"."&+(COUNTA(H$3:H128)))) ->  | L128: 48
A129: =IF(ISBLANK(H129),"",($F$3&"."&+(COUNTA(H$3:H129)))) ->  | L129: 49
A130: =IF(ISBLANK(H130),"",($F$3&"."&+(COUNTA(H$3:H130)))) ->  | L130: 50
A131: =IF(ISBLANK(H131),"",($F$3&"."&+(COUNTA(H$3:H131)))) ->  | L131: 51
A132: =IF(ISBLANK(H132),"",($F$3&"."&+(COUNTA(H$3:H132)))) ->  | L132: 52
L133: 53
L134: 54
L135: 55
L136: 56
L137: 57
L138: 58
L139: 59
L140: 60
L141: 61
L142: 62
L143: 63
L144: 64
A145: =IF(ISBLANK(H145),"",($F$3&"."&+(COUNTA(H$3:H145)))) ->  | L145: 65
A146: =IF(ISBLANK(H146),"",($F$3&"."&+(COUNTA(H$3:H146)))) ->  | L146: 66
A147: =IF(ISBLANK(H147),"",($F$3&"."&+(COUNTA(H$3:H147)))) ->  | L147: 67
A148: =IF(ISBLANK(H148),"",($F$3&"."&+(COUNTA(H$3:H148)))) ->  | L148: 68
A149: =IF(ISBLANK(H149),"",($F$3&"."&+(COUNTA(H$3:H149)))) ->  | L149: 69
A150: =IF(ISBLANK(H150),"",($F$3&"."&+(COUNTA(H$3:H150)))) ->  | L150: 70
A151: =IF(ISBLANK(H151),"",($F$3&"."&+(COUNTA(H$3:H151)))) ->  | L151: 71
A152: =IF(ISBLANK(H152),"",($F$3&"."&+(COUNTA(H$3:H152)))) ->  | L152: 72
A153: =IF(ISBLANK(H153),"",($F$3&"."&+(COUNTA(H$3:H153)))) ->  | L153: 73
A154: =IF(ISBLANK(H154),"",($F$3&"."&+(COUNTA(H$3:H154)))) ->  | L154: 76
L155: 77
C156: =C3 -> Schedule No.: 2 | L156: 78
C157: =C4 -> Provisional Sums and Prime Cost Items | L157: 79
L158: 80
J159: Carried forward to summary of schedules

Sheet 3. Dayworks
A1: Item | B1: Ref | C1: Description | D1: Unit | E1: Qty | F1: Rate | G1: Amount
A3: 3 | B3: SANS 1200 A | C3: Schedule No.: 3 | G3: =IF(E3="","",E3*F3) ->  | H3: 1
C4: DAYWORKS | H4: 2
G5: =IF(E5="","",E5*F5) ->  | H5: 3
A6: =IF(ISBLANK(D6),"",($A$3&"."&+(COUNTA(D$4:D6)))) ->  | B6: 8.7 | C6: LABOUR | G6: =IF(E6="","",E6*F6) ->  | H6: 4
A7: =IF(ISBLANK(D7),"",($A$3&"."&+(COUNTA(D$4:D7)))) ->  | H7: 5
A8: =IF(ISBLANK(D8),"",($A$3&"."&+(COUNTA(D$4:D8)))) -> 3.1 | C8: a) Qualified Artisan | D8: hr | E8: 1 | H8: 6
A9: =IF(ISBLANK(D9),"",($A$3&"."&+(COUNTA(D$4:D9)))) ->  | H9: 7
A10: =IF(ISBLANK(D10),"",($A$3&"."&+(COUNTA(D$4:D10)))) -> 3.2 | C10: b) Skilled | D10: hr | E10: 1 | H10: 8
A11: =IF(ISBLANK(D11),"",($A$3&"."&+(COUNTA(D$4:D11)))) ->  | H11: 9
A12: =IF(ISBLANK(D12),"",($A$3&"."&+(COUNTA(D$4:D12)))) -> 3.3 | C12: c) Semi-skilled | D12: hr | E12: 1 | H12: 10
A13: =IF(ISBLANK(D13),"",($A$3&"."&+(COUNTA(D$4:D13)))) ->  | H13: 11
A14: =IF(ISBLANK(D14),"",($A$3&"."&+(COUNTA(D$4:D14)))) -> 3.4 | C14: d) Unskilled | D14: hr | E14: 1 | H14: 12
A15: =IF(ISBLANK(D15),"",($A$3&"."&+(COUNTA(D$4:D15)))) ->  | H15: 13
A16: =IF(ISBLANK(D16),"",($A$3&"."&+(COUNTA(D$4:D16)))) -> 3.5 | C16: e) Welder | D16: hr | E16: 1 | H16: 14
A17: =IF(ISBLANK(D17),"",($A$3&"."&+(COUNTA(D$4:D17)))) ->  | H17: 15
A18: =IF(ISBLANK(D18),"",($A$3&"."&+(COUNTA(D$4:D18)))) ->  | C18: PLANT HIRE: WORK RATES ON SITE | H18: 16
A19: =IF(ISBLANK(D19),"",($A$3&"."&+(COUNTA(D$4:D19)))) ->  | H19: 17
A20: =IF(ISBLANK(D20),"",($A$3&"."&+(COUNTA(D$4:D20)))) ->  | C20: Tipper truck (specify capacity) | H20: 18
A21: =IF(ISBLANK(D21),"",($A$3&"."&+(COUNTA(D$4:D21)))) ->  | H21: 19
A22: =IF(ISBLANK(D22),"",($A$3&"."&+(COUNTA(D$4:D22)))) -> 3.6 | C22: a) ..........m³ (small) | D22: hr | E22: 1 | H22: 20
A23: =IF(ISBLANK(D23),"",($A$3&"."&+(COUNTA(D$4:D23)))) ->  | H23: 21
A24: =IF(ISBLANK(D24),"",($A$3&"."&+(COUNTA(D$4:D24)))) -> 3.7 | C24: b) ..........m³ (large) | D24: hr | E24: 1 | H24: 22
A25: =IF(ISBLANK(D25),"",($A$3&"."&+(COUNTA(D$4:D25)))) ->  | H25: 23
A26: =IF(ISBLANK(D26),"",($A$3&"."&+(COUNTA(D$4:D26)))) ->  | C26: Tractor Loader Backhoe (TLB) | H26: 24
A27: =IF(ISBLANK(D27),"",($A$3&"."&+(COUNTA(D$4:D27)))) ->  | H27: 25
A28: =IF(ISBLANK(D28),"",($A$3&"."&+(COUNTA(D$4:D28)))) -> 3.8 | C28: a) ..........m³ bucket | D28: hr | E28: 1 | H28: 26
A29: =IF(ISBLANK(D29),"",($A$3&"."&+(COUNTA(D$4:D29)))) ->  | H29: 27
A30: =IF(ISBLANK(D30),"",($A$3&"."&+(COUNTA(D$4:D30)))) -> 3.9 | C30: Specify type ..................................... | D30: hr | E30: 1 | H30: 28
A31: =IF(ISBLANK(D31),"",($A$3&"."&+(COUNTA(D$4:D31)))) ->  | H31: 29
A32: =IF(ISBLANK(D32),"",($A$3&"."&+(COUNTA(D$4:D32)))) ->  | C32: Compactor | H32: 30
A33: =IF(ISBLANK(D33),"",($A$3&"."&+(COUNTA(D$4:D33)))) ->  | H33: 31
A34: =IF(ISBLANK(D34),"",($A$3&"."&+(COUNTA(D$4:D34)))) ->  | C34: Plate compactor (Specify model) | H34: 32
A35: =IF(ISBLANK(D35),"",($A$3&"."&+(COUNTA(D$4:D35)))) ->  | H35: 33
A36: =IF(ISBLANK(D36),"",($A$3&"."&+(COUNTA(D$4:D36)))) ->  | C36: Model type ....................................... | H36: 34
A37: =IF(ISBLANK(D37),"",($A$3&"."&+(COUNTA(D$4:D37)))) ->  | H37: 35
A38: =IF(ISBLANK(D38),"",($A$3&"."&+(COUNTA(D$4:D38)))) -> 3.10 | C38: a) .........( 3000 kg applied force) | D38: hr | E38: 1 | H38: 36
A39: =IF(ISBLANK(D39),"",($A$3&"."&+(COUNTA(D$4:D39)))) ->  | H39: 37
A40: =IF(ISBLANK(D40),"",($A$3&"."&+(COUNTA(D$4:D40)))) ->  | C40: Concrete mixer (Specify capacity) | H40: 38
A41: =IF(ISBLANK(D41),"",($A$3&"."&+(COUNTA(D$4:D41)))) ->  | H41: 39
A42: =IF(ISBLANK(D42),"",($A$3&"."&+(COUNTA(D$4:D42)))) -> 3.11 | C42: a) .........(small towable) | D42: hr | E42: 1 | H42: 40
A43: =IF(ISBLANK(D43),"",($A$3&"."&+(COUNTA(D$4:D43)))) ->  | H43: 41
A44: =IF(ISBLANK(D44),"",($A$3&"."&+(COUNTA(D$4:D44)))) ->  | C44: Miscellaneous | H44: 42
A45: =IF(ISBLANK(D45),"",($A$3&"."&+(COUNTA(D$4:D45)))) ->  | H45: 43
A46: =IF(ISBLANK(D46),"",($A$3&"."&+(COUNTA(D$4:D46)))) -> 3.12 | C46: a) Compressor with capacity of 10m³/min | D46: hr | E46: 1 | H46: 44
A47: =IF(ISBLANK(D47),"",($A$3&"."&+(COUNTA(D$4:D47)))) ->  | H47: 45
A48: =IF(ISBLANK(D48),"",($A$3&"."&+(COUNTA(D$4:D48)))) -> 3.13 | C48: b) Water pump with 25 l/s capacity | D48: hr | E48: 1 | H48: 46
A49: =IF(ISBLANK(D49),"",($A$3&"."&+(COUNTA(D$4:D49)))) ->  | H49: 47
A50: =IF(ISBLANK(D50),"",($A$3&"."&+(COUNTA(D$4:D50)))) -> 3.14 | C50: c) Welding unit (300 Amp) | D50: hr | E50: 1 | H50: 48
A51: =IF(ISBLANK(D51),"",($A$3&"."&+(COUNTA(D$4:D51)))) ->  | H51: 49
A52: =IF(ISBLANK(D52),"",($A$3&"."&+(COUNTA(D$4:D52)))) -> 3.15 | C52: d) 4 kVA Diesel driven generating set | D52: hr | E52: 1 | H52: 50
A53: =IF(ISBLANK(D53),"",($A$3&"."&+(COUNTA(D$4:D53)))) ->  | H53: 51
A54: =IF(ISBLANK(D54),"",($A$3&"."&+(COUNTA(D$4:D54)))) -> 3.16 | C54: e) Other (Specify) | D54: hr | E54: 1 | H54: 52
H55: 53
A56: =IF(ISBLANK(D56),"",($A$3&"."&+(COUNTA(D$4:D56)))) ->  | C56: PLANT HIRE: TRANSPORT COST TO AND FROM SITE | H56: 54
A57: =IF(ISBLANK(D57),"",($A$3&"."&+(COUNTA(D$4:D57)))) ->  | H57: 55
A58: =IF(ISBLANK(D58),"",($A$3&"."&+(COUNTA(D$4:D58)))) ->  | C58: (Distance shall be measured one way only. Tendered rates shall | H58: 56
A59: =IF(ISBLANK(D59),"",($A$3&"."&+(COUNTA(D$4:D59)))) ->  | C59: include for transport both to and from site) | H59: 57
A60: =IF(ISBLANK(D60),"",($A$3&"."&+(COUNTA(D$4:D60)))) ->  | H60: 58
A61: =IF(ISBLANK(D61),"",($A$3&"."&+(COUNTA(D$4:D61)))) -> 3.17 | C61: Low bed (suitable for the largest piece of equipment above) | D61: km | E61: 50 | H61: 59
A62: =IF(ISBLANK(D62),"",($A$3&"."&+(COUNTA(D$4:D62)))) ->  | H62: 60
A63: =IF(ISBLANK(D63),"",($A$3&"."&+(COUNTA(D$4:D63)))) ->  | C63: Tipper truck | H63: 61
A64: =IF(ISBLANK(D64),"",($A$3&"."&+(COUNTA(D$4:D64)))) ->  | H64: 62
A65: =IF(ISBLANK(D65),"",($A$3&"."&+(COUNTA(D$4:D65)))) -> 3.18 | C65: a) Small | D65: km | E65: 20 | H65: 63
A66: =IF(ISBLANK(D66),"",($A$3&"."&+(COUNTA(D$4:D66)))) ->  | H66: 64
A67: =IF(ISBLANK(D67),"",($A$3&"."&+(COUNTA(D$4:D67)))) -> 3.19 | C67: b) Large | D67: km | E67: 20 | H67: 65
A68: =IF(ISBLANK(D68),"",($A$3&"."&+(COUNTA(D$4:D68)))) ->  | H68: 66
A69: =IF(ISBLANK(D69),"",($A$3&"."&+(COUNTA(D$4:D69)))) ->  | C69: Water Tanker | H69: 67
A70: =IF(ISBLANK(D70),"",($A$3&"."&+(COUNTA(D$4:D70)))) ->  | H70: 68
A71: =IF(ISBLANK(D71),"",($A$3&"."&+(COUNTA(D$4:D71)))) -> 3.20 | C71: a) Small (towable) | D71: km | E71: 20 | H71: 69
A72: =IF(ISBLANK(D72),"",($A$3&"."&+(COUNTA(D$4:D72)))) ->  | H72: 70
A73: =IF(ISBLANK(D73),"",($A$3&"."&+(COUNTA(D$4:D73)))) -> 3.21 | C73: b) Large | D73: km | E73: 20 | H73: 71
A74: =IF(ISBLANK(D74),"",($A$3&"."&+(COUNTA(D$4:D74)))) ->  | H74: 72
A75: =IF(ISBLANK(D75),"",($A$3&"."&+(COUNTA(D$4:D75)))) ->  | C75: Concrete mixer | H75: 73
A76: =IF(ISBLANK(D76),"",($A$3&"."&+(COUNTA(D$4:D76)))) ->  | H76: 74
A77: =IF(ISBLANK(D77),"",($A$3&"."&+(COUNTA(D$4:D77)))) -> 3.22 | C77: a) Small | D77: km | E77: 20 | H77: 75
A78: =IF(ISBLANK(D78),"",($A$3&"."&+(COUNTA(D$4:D78)))) ->  | H78: 76
A79: =IF(ISBLANK(D79),"",($A$3&"."&+(COUNTA(D$4:D79)))) -> 3.23 | C79: b) Large | D79: km | E79: 20 | H79: 77
F80: Carried Forward
F81: Brought Forward
A82: =IF(ISBLANK(D82),"",($A$3&"."&+(COUNTA(D$4:D82)))) ->  | H82: 1
A83: =IF(ISBLANK(D83),"",($A$3&"."&+(COUNTA(D$4:D83)))) ->  | C83: LABOUR BASED EQUIPMENT | H83: 2
A84: =IF(ISBLANK(D84),"",($A$3&"."&+(COUNTA(D$4:D84)))) ->  | H84: 3
A85: =IF(ISBLANK(D85),"",($A$3&"."&+(COUNTA(D$4:D85)))) -> 3.24 | C85: a) Pick | D85: day | E85: 1 | H85: 4
A86: =IF(ISBLANK(D86),"",($A$3&"."&+(COUNTA(D$4:D86)))) ->  | H86: 5
A87: =IF(ISBLANK(D87),"",($A$3&"."&+(COUNTA(D$4:D87)))) -> 3.25 | C87: b) "Gwalas" | D87: day | E87: 1 | H87: 6
A88: =IF(ISBLANK(D88),"",($A$3&"."&+(COUNTA(D$4:D88)))) ->  | H88: 7
A89: =IF(ISBLANK(D89),"",($A$3&"."&+(COUNTA(D$4:D89)))) -> 3.26 | C89: c) Shovel | D89: day | E89: 1 | H89: 8
A90: =IF(ISBLANK(D90),"",($A$3&"."&+(COUNTA(D$4:D90)))) ->  | H90: 9
A91: =IF(ISBLANK(D91),"",($A$3&"."&+(COUNTA(D$4:D91)))) -> 3.27 | C91: d) Wheelbarrow | D91: day | E91: 1 | H91: 10
A92: =IF(ISBLANK(D92),"",($A$3&"."&+(COUNTA(D$4:D92)))) ->  | H92: 11
A93: =IF(ISBLANK(D93),"",($A$3&"."&+(COUNTA(D$4:D93)))) -> 3.28 | C93: e) Bucket (20l) | D93: day | E93: 1 | H93: 12
A94: =IF(ISBLANK(D94),"",($A$3&"."&+(COUNTA(D$4:D94)))) ->  | H94: 13
H95: 14
H96: 15
H97: 16
H98: 17
H99: 18
H100: 19
H101: 20
H102: 21
H103: 22
H104: 23
A105: =IF(ISBLANK(D105),"",($A$3&"."&+(COUNTA(D$4:D105)))) ->  | H105: 24
A106: =IF(ISBLANK(D106),"",($A$3&"."&+(COUNTA(D$4:D106)))) ->  | H106: 25
A107: =IF(ISBLANK(D107),"",($A$3&"."&+(COUNTA(D$4:D107)))) ->  | H107: 26
A108: =IF(ISBLANK(D108),"",($A$3&"."&+(COUNTA(D$4:D108)))) ->  | H108: 27
A109: =IF(ISBLANK(D109),"",($A$3&"."&+(COUNTA(D$4:D109)))) ->  | H109: 28
A110: =IF(ISBLANK(D110),"",($A$3&"."&+(COUNTA(D$4:D110)))) ->  | H110: 29
A111: =IF(ISBLANK(D111),"",($A$3&"."&+(COUNTA(D$4:D111)))) ->  | H111: 30
A112: =IF(ISBLANK(D112),"",($A$3&"."&+(COUNTA(D$4:D112)))) ->  | H112: 31
A113: =IF(ISBLANK(D113),"",($A$3&"."&+(COUNTA(D$4:D113)))) ->  | H113: 32
A114: =IF(ISBLANK(D114),"",($A$3&"."&+(COUNTA(D$4:D114)))) ->  | H114: 33
A115: =IF(ISBLANK(D115),"",($A$3&"."&+(COUNTA(D$4:D115)))) ->  | H115: 34
A116: =IF(ISBLANK(D116),"",($A$3&"."&+(COUNTA(D$4:D116)))) ->  | H116: 35
H117: 36
H118: 37
H119: 38
H120: 39
H121: 40
H122: 41
H123: 42
H124: 43
H125: 44
H126: 45
H127: 46
H128: 47
H129: 48
H130: 49
H131: 50
H132: 51
H133: 52
H134: 53
H135: 54
H136: 55
H137: 56
H138: 57
H139: 58
A140: =IF(ISBLANK(D140),"",($A$3&"."&+(COUNTA(D$4:D140)))) ->  | H140: 59
A141: =IF(ISBLANK(D141),"",($A$3&"."&+(COUNTA(D$4:D141)))) ->  | H141: 60
A142: =IF(ISBLANK(D142),"",($A$3&"."&+(COUNTA(D$4:D142)))) ->  | H142: 61
A143: =IF(ISBLANK(D143),"",($A$3&"."&+(COUNTA(D$4:D143)))) ->  | H143: 62
A144: =IF(ISBLANK(D144),"",($A$3&"."&+(COUNTA(D$4:D144)))) ->  | H144: 63
A145: =IF(ISBLANK(D145),"",($A$3&"."&+(COUNTA(D$4:D145)))) ->  | H145: 64
A146: =IF(ISBLANK(D146),"",($A$3&"."&+(COUNTA(D$4:D146)))) ->  | H146: 65
A147: =IF(ISBLANK(D147),"",($A$3&"."&+(COUNTA(D$4:D147)))) ->  | H147: 66
A148: =IF(ISBLANK(D148),"",($A$3&"."&+(COUNTA(D$4:D148)))) ->  | H148: 67
A149: =IF(ISBLANK(D149),"",($A$3&"."&+(COUNTA(D$4:D149)))) ->  | H149: 68
A150: =IF(ISBLANK(D150),"",($A$3&"."&+(COUNTA(D$4:D150)))) ->  | H150: 69
A151: =IF(ISBLANK(D151),"",($A$3&"."&+(COUNTA(D$4:D151)))) ->  | H151: 70
A152: =IF(ISBLANK(D152),"",($A$3&"."&+(COUNTA(D$4:D152)))) ->  | H152: 71
A153: =IF(ISBLANK(D153),"",($A$3&"."&+(COUNTA(D$4:D153)))) ->  | H153: 72
A154: =IF(ISBLANK(D154),"",($A$3&"."&+(COUNTA(D$4:D154)))) ->  | H154: 73
A155: =IF(ISBLANK(D155),"",($A$3&"."&+(COUNTA(D$4:D155)))) ->  | H155: 77
A156: =IF(ISBLANK(D156),"",($A$3&"."&+(COUNTA(D$4:D156)))) ->  | C156: =C3 -> Schedule No.: 3 | H156: 78
A157: =IF(ISBLANK(D157),"",($A$3&"."&+(COUNTA(D$4:D157)))) ->  | C157: =C4 -> DAYWORKS | H157: 79
A158: Total Carried forward to Summary of Schedules | H158: 80

Sheet 4. BPT
A1: Item | B1: Pay | C1: Description | H1: Unit | I1: Qty | J1: Rate | K1: Amount | O1: L | P1: 9.15 | R1: L | S1: =2*0.35+3.57 -> 4.27
B2: Ref. | O2: B | P2: 5.7 | R2: B | S2: =2.4+0.35 -> 2.75
A3: =IF(ISBLANK(H3),"",($E$3&"."&+(COUNTA(H$4:H5)))) ->  | C3: Schedule No: | E3: 4 | K3: =IF(I3<>0,I3*J3,"") ->  | L3: 1 | O3: H | P3: 9.05 | R3: H | S3: 9.05
C4: NEW BREAK PRESSURE TANK (BPT) AND ADJOINING VALVE CHAMBER | K4: =IF(I4<>0,I4*J4,"") ->  | L4: 2 | N4: =IF(ISBLANK($I4),"",$K4/$K$463) -> 
A5: =IF(ISBLANK(H5),"",($E$3&"."&+(COUNTA(H$4:H5)))) ->  | L5: 3 | N5: =IF(ISBLANK($I5),"",$K5/$K$463) -> 
B6: SANS | C6: BREAK PRESSURE TANK (BPT) | K6: =IF(I6<>0,I6*J6,"") ->  | L6: 4 | N6: =IF(ISBLANK($I3),"",$K3/$K$463) -> 
B7: 1200 C | L7: 5 | N7: =IF(ISBLANK($I8),"",$K8/$K$463) ->  | O7: Excavation footprint | Q7: =(($P$1+1.2)*($P$2+1.2))+(($S$1+1.2)*($S$2+1.2)) -> 93.0215 | R7: m²
A8: =IF(ISBLANK(H8),"",($E$3&"."&+(COUNTA(H$4:H8)))) ->  | B8: PSC | C8: SITE CLEARANCE | L8: 6 | O8: Allow for:
A9: =IF(ISBLANK(H9),"",($E$3&"."&+(COUNTA(H$4:H9)))) ->  | L9: 7 | O9: BPT: 9.15 × 5.7 + valve chamber
A10: =IF(ISBLANK(H10),"",($E$3&"."&+(COUNTA(H$4:H10)))) ->  | C10: CLEAR SITE | L10: 8 | O10: Working space: +0.6 m all round
A11: =IF(ISBLANK(H11),"",($E$3&"."&+(COUNTA(H$4:H11)))) ->  | L11: 9
A12: =IF(ISBLANK(H12),"",($E$3&"."&+(COUNTA(H$4:H12)))) ->  | C12: CLEAR AND GRUB SITE | L12: 10
A13: =IF(ISBLANK(H13),"",($E$3&"."&+(COUNTA(H$4:H13)))) ->  | L13: 11 | O13: Volume | Q13: =Q7*$P$3 -> 841.844575 | R13: m³
A14: =IF(ISBLANK(H14),"",($E$3&"."&+(COUNTA(H$4:H14)))) ->  | B14: 8.2.1 | C14: .1 | D14: Clear and grub area for | L14: 12
A15: =IF(ISBLANK(H15),"",($E$3&"."&+(COUNTA(H$4:H15)))) ->  | L15: 13
A16: =IF(ISBLANK(H16),"",($E$3&"."&+(COUNTA(H$4:H16)))) -> 4.1 | D16: (a) | E16: Platforms | H16: m² | I16: =ROUNDUP($Q$7,0) -> 94 | L16: 14 | N16: =IF(ISBLANK($I17),"",$K17/$K$463) -> 
A17: =IF(ISBLANK(H17),"",($E$3&"."&+(COUNTA(H$4:H17)))) ->  | L17: 15
A18: =IF(ISBLANK(H18),"",($E$3&"."&+(COUNTA(H$4:H18)))) ->  | C18: REMOVE LARGE TREES AND STUMPS | L18: 16
A19: =IF(ISBLANK(H19),"",($E$3&"."&+(COUNTA(H$4:H19)))) ->  | L19: 17
A20: =IF(ISBLANK(H20),"",($E$3&"."&+(COUNTA(H$4:H20)))) ->  | B20: 8.2.2 | C20: .2 | D20: Remove and grub large trees and tree stumps of girth | L20: 18
A21: =IF(ISBLANK(H21),"",($E$3&"."&+(COUNTA(H$4:H21)))) ->  | L21: 19
A22: =IF(ISBLANK(H22),"",($E$3&"."&+(COUNTA(H$4:H22)))) -> 4.2 | D22: (a) | E22: Exceeding 1m and up to and including 2m | H22: no | I22: 1 | L22: 20
A23: =IF(ISBLANK(H23),"",($E$3&"."&+(COUNTA(H$4:H23)))) ->  | L23: 21
A24: =IF(ISBLANK(H24),"",($E$3&"."&+(COUNTA(H$4:H24)))) ->  | L24: 22
A25: =IF(ISBLANK(H25),"",($E$3&"."&+(COUNTA(H$4:H25)))) ->  | B25: SANS | C25: TOPSOIL AND LANDSCAPING | L25: 23
A26: =IF(ISBLANK(H26),"",($E$3&"."&+(COUNTA(H$4:H26)))) ->  | B26: 1200 DM | L26: 24
A27: =IF(ISBLANK(H27),"",($E$3&"."&+(COUNTA(H$4:H27)))) ->  | C27: REMOVE TOPSOIL | L27: 25
A28: =IF(ISBLANK(H28),"",($E$3&"."&+(COUNTA(H$4:H28)))) ->  | L28: 26
A29: =IF(ISBLANK(H29),"",($E$3&"."&+(COUNTA(H$4:H29)))) ->  | B29: 8.3.2 | C29: .1 | D29: Remove topsoil to a depth of 150mm and | L29: 27
A30: =IF(ISBLANK(H30),"",($E$3&"."&+(COUNTA(H$4:H30)))) ->  | L30: 28
A31: =IF(ISBLANK(H31),"",($E$3&"."&+(COUNTA(H$4:H31)))) -> 4.3 | D31: (a) | E31: Stockpile on site and maintain | H31: m³ | I31: =ROUNDUP($Q$7*0.15,0) -> 14 | L31: 29
A32: =IF(ISBLANK(H32),"",($E$3&"."&+(COUNTA(H$4:H32)))) ->  | L32: 30
A33: =IF(ISBLANK(H33),"",($E$3&"."&+(COUNTA(H$4:H33)))) ->  | C33: FINISHING, TOPSOILING AND GRASSING | L33: 31
A34: =IF(ISBLANK(H34),"",($E$3&"."&+(COUNTA(H$4:H34)))) ->  | L34: 32
A35: =IF(ISBLANK(H35),"",($E$3&"."&+(COUNTA(H$4:H35)))) ->  | B35: 8.3.10 | C35: .2 | D35: Topsoiling with material from stockpiles on site | L35: 33
A36: =IF(ISBLANK(H36),"",($E$3&"."&+(COUNTA(H$4:H36)))) ->  | L36: 34
A37: =IF(ISBLANK(H37),"",($E$3&"."&+(COUNTA(H$4:H37)))) -> 4.4 | D37: (a) | E37: Spread over site | H37: m³ | I37: =I31 -> 14 | L37: 35
A38: =IF(ISBLANK(H38),"",($E$3&"."&+(COUNTA(H$4:H38)))) ->  | L38: 36 | N38: =IF(ISBLANK(#REF!),"",#REF!/$K$463) -> 
A39: =IF(ISBLANK(H39),"",($E$3&"."&+(COUNTA(H$4:H39)))) ->  | B39: SANS | C39: EARTHWORKS | K39: =IF(I39<>0,I39*J39,"") ->  | L39: 37 | N39: =IF(ISBLANK($I40),"",$K40/$K$463) -> 
A40: =IF(ISBLANK(H40),"",($E$3&"."&+(COUNTA(H$4:H40)))) ->  | B40: 1200 D | L40: 38 | N40: =IF(ISBLANK($I41),"",$K41/$K$463) -> 
A41: =IF(ISBLANK(H41),"",($E$3&"."&+(COUNTA(H$4:H41)))) ->  | C41: BULK EXCAVATION | L41: 39 | N41: =IF(ISBLANK($I42),"",$K42/$K$463) -> 
A42: =IF(ISBLANK(H42),"",($E$3&"."&+(COUNTA(H$4:H42)))) ->  | L42: 40
A43: =IF(ISBLANK(H43),"",($E$3&"."&+(COUNTA(H$4:H43)))) ->  | B43: 8.3.2 | C43: .1 | D43: Bulk excavation in all materials and place | L43: 41
A44: =IF(ISBLANK(H44),"",($E$3&"."&+(COUNTA(H$4:H44)))) -> 4.5 | D44: material on site | H44: m³ | K44: R/O | L44: 42
A45: =IF(ISBLANK(H45),"",($E$3&"."&+(COUNTA(H$4:H45)))) ->  | L45: 43 | N45: =IF(ISBLANK($I46),"",$K46/$K$463) -> 
A46: =IF(ISBLANK(H46),"",($E$3&"."&+(COUNTA(H$4:H46)))) ->  | B46: 8.3.2 | C46: .2 | D46: Extra over reference 8.3.2 (a) for | K46: =IF(I46<>0,I46*J46,"") ->  | L46: 44
A47: =IF(ISBLANK(H47),"",($E$3&"."&+(COUNTA(H$4:H47)))) ->  | K47: =IF(I47<>0,I47*J47,"") ->  | L47: 45
A48: =IF(ISBLANK(H48),"",($E$3&"."&+(COUNTA(H$4:H48)))) -> 4.6 | D48: (a) | E48: Hard rock excavation | H48: m³ | K48: R/O | L48: 46
A49: =IF(ISBLANK(H49),"",($E$3&"."&+(COUNTA(H$4:H49)))) ->  | K49: =IF(I49<>0,I49*J49,"") ->  | L49: 47
A50: =IF(ISBLANK(H50),"",($E$3&"."&+(COUNTA(H$4:H50)))) -> 4.7 | D50: (b) | E50: Boulder excavation, Class A | H50: m³ | K50: R/O | L50: 48
A51: =IF(ISBLANK(H51),"",($E$3&"."&+(COUNTA(H$4:H51)))) ->  | K51: =IF(I51<>0,I51*J51,"") ->  | L51: 49
A52: =IF(ISBLANK(H52),"",($E$3&"."&+(COUNTA(H$4:H52)))) -> 4.8 | D52: (c) | E52: Boulder excavation, Class B | H52: m³ | K52: R/O | L52: 50
A53: =IF(ISBLANK(H53),"",($E$3&"."&+(COUNTA(H$4:H53)))) ->  | K53: =IF(I53<>0,I53*J53,"") ->  | L53: 51
A54: =IF(ISBLANK(H54),"",($E$3&"."&+(COUNTA(H$4:H54)))) ->  | C54: RESTRICTED EARTHWORKS | K54: =IF(I54<>0,I54*J54,"") ->  | L54: 52
A55: =IF(ISBLANK(H55),"",($E$3&"."&+(COUNTA(H$4:H55)))) ->  | L55: 53
A56: =IF(ISBLANK(H56),"",($E$3&"."&+(COUNTA(H$4:H56)))) ->  | B56: 8.3.3 | C56: .1 | D56: Restricted excavation in all materials and place | L56: 54
A57: =IF(ISBLANK(H57),"",($E$3&"."&+(COUNTA(H$4:H57)))) ->  | D57: material on site | L57: 55
A58: =IF(ISBLANK(H58),"",($E$3&"."&+(COUNTA(H$4:H58)))) ->  | L58: 56
A59: =IF(ISBLANK(H59),"",($E$3&"."&+(COUNTA(H$4:H59)))) -> 4.9 | D59: (a) | E59: Excavation for break pressure tank and adjoining | H59: m³ | I59: =ROUNDUP($Q$13,0) -> 842 | L59: 57
A60: =IF(ISBLANK(H60),"",($E$3&"."&+(COUNTA(H$4:H60)))) ->  | E60: valve chamber | L60: 58
A61: =IF(ISBLANK(H61),"",($E$3&"."&+(COUNTA(H$4:H61)))) ->  | L61: 59 | N61: =IF(ISBLANK($I62),"",$K62/$K$463) -> 
A62: =IF(ISBLANK(H62),"",($E$3&"."&+(COUNTA(H$4:H62)))) ->  | C62: RESTRICTED EXCAVATION | L62: 60
A63: =IF(ISBLANK(H63),"",($E$3&"."&+(COUNTA(H$4:H63)))) ->  | L63: 61
A64: =IF(ISBLANK(H64),"",($E$3&"."&+(COUNTA(H$4:H64)))) ->  | B64: 8.3.3 | C64: .1 | D64: Extra over reference 8.3.3 (a) for | L64: 62
A65: =IF(ISBLANK(H65),"",($E$3&"."&+(COUNTA(H$4:H65)))) ->  | L65: 63
A66: =IF(ISBLANK(H66),"",($E$3&"."&+(COUNTA(H$4:H66)))) -> 4.10 | D66: (a) | E66: Hard rock excavation (No high velocity explosives | H66: m³ | I66: =ROUNDUP(I59*10%,0) -> 85 | L66: 64
A67: =IF(ISBLANK(H67),"",($E$3&"."&+(COUNTA(H$4:H67)))) ->  | E67: allowed) | L67: 65
A68: =IF(ISBLANK(H68),"",($E$3&"."&+(COUNTA(H$4:H68)))) ->  | L68: 66
A69: =IF(ISBLANK(H69),"",($E$3&"."&+(COUNTA(H$4:H69)))) ->  | L69: 67
A70: =IF(ISBLANK(H70),"",($E$3&"."&+(COUNTA(H$4:H70)))) ->  | L70: 68
A71: =IF(ISBLANK(H71),"",($E$3&"."&+(COUNTA(H$4:H71)))) ->  | L71: 69
L72: 70 | N72: =IF(ISBLANK(#REF!),"",#REF!/$K$463) -> 
L73: 71
L74: 72 | N74: =IF(ISBLANK($I78),"",$K78/$K$463) -> 
L75: 76 | N75: =IF(ISBLANK($I81),"",$K81/$K$463) -> 
L76: 77
A77: =IF(ISBLANK(H77),"",($E$3&"."&+(COUNTA(H$4:H77)))) ->  | L77: 78
A78: =IF(ISBLANK(H78),"",($E$3&"."&+(COUNTA(H$4:H78)))) ->  | L78: 79
J79: Carried Forward | K79: =IF(I79<>0,I79*J79,"") ->  | L79: 80
J80: Brought Forward | K80: =IF(I80<>0,I80*J80,"") -> 
A81: =IF(ISBLANK(H81),"",($E$3&"."&+(COUNTA(H$4:H81)))) ->  | C81: IMPORTING OF MATERIALS | L81: 2 | N81: =IF(ISBLANK($I88),"",$K88/$K$463) -> 
A82: =IF(ISBLANK(H82),"",($E$3&"."&+(COUNTA(H$4:H82)))) ->  | L82: 3
A83: =IF(ISBLANK(H83),"",($E$3&"."&+(COUNTA(H$4:H83)))) ->  | C83: NOTE: The rates for imported materials shall also cater | L83: 4
A84: =IF(ISBLANK(H84),"",($E$3&"."&+(COUNTA(H$4:H84)))) ->  | C84: for the same volume of spoiling of unsuitable material. | L84: 5
A85: =IF(ISBLANK(H85),"",($E$3&"."&+(COUNTA(H$4:H85)))) ->  | L85: 6
A86: =IF(ISBLANK(H86),"",($E$3&"."&+(COUNTA(H$4:H86)))) ->  | C86: COMMERCIAL MATERIAL PROVIDED BY THE | K86: =IF(I86<>0,I86*J86,"") ->  | L86: 7
A87: =IF(ISBLANK(H87),"",($E$3&"."&+(COUNTA(H$4:H87)))) ->  | C87: CONTRACTOR | L87: 8
A88: =IF(ISBLANK(H88),"",($E$3&"."&+(COUNTA(H$4:H88)))) ->  | L88: 9
A89: =IF(ISBLANK(H89),"",($E$3&"."&+(COUNTA(H$4:H89)))) ->  | B89: 8.3.4 | C89: .1 | D89: Extra over reference 8.3.2 (a) .3 & .4 for importation | L89: 10
A90: =IF(ISBLANK(H90),"",($E$3&"."&+(COUNTA(H$4:H90)))) ->  | D90: of materials | L90: 11
A91: =IF(ISBLANK(H91),"",($E$3&"."&+(COUNTA(H$4:H91)))) ->  | L91: 12
A92: =IF(ISBLANK(H92),"",($E$3&"."&+(COUNTA(H$4:H92)))) ->  | C92: NOTE: | E92: Rate to include for bulking factor to | L92: 13
A93: =IF(ISBLANK(H93),"",($E$3&"."&+(COUNTA(H$4:H93)))) ->  | E93: accommodate for a minimum of 95% mod | L93: 14
A94: =IF(ISBLANK(H94),"",($E$3&"."&+(COUNTA(H$4:H94)))) ->  | E94: AASHTO density. Addditional volume will not be | L94: 15
A95: =IF(ISBLANK(H95),"",($E$3&"."&+(COUNTA(H$4:H95)))) ->  | E95: paid for shortfall of material due to bulking. | L95: 16
A96: =IF(ISBLANK(H96),"",($E$3&"."&+(COUNTA(H$4:H96)))) ->  | L96: 17
A97: =IF(ISBLANK(H97),"",($E$3&"."&+(COUNTA(H$4:H97)))) -> 4.11 | D97: (a) | E97: G5 material - Mass fill material for platform | H97: m³ | I97: 30 | L97: 18
A98: =IF(ISBLANK(H98),"",($E$3&"."&+(COUNTA(H$4:H98)))) ->  | L98: 19
A99: =IF(ISBLANK(H99),"",($E$3&"."&+(COUNTA(H$4:H99)))) ->  | B99: SANS | C99: SHORING OF EXCAVATIONS | L99: 21 | O99: Shoring | Q99: =Q100+Q101 -> 196.9469 | R99: m²
A100: =IF(ISBLANK(H100),"",($E$3&"."&+(COUNTA(H$4:H100)))) ->  | B100: 1200 DB | L100: 22 | O100: BPT | Q100: =(4.964*(2.6+0.25))+(5.7*(2.6+0.25))+(9.15*9.05)+(5.7*(2.6+0.25+2.61+0.5)) -> 147.1719
A101: =IF(ISBLANK(H101),"",($E$3&"."&+(COUNTA(H$4:H101)))) ->  | C101: Temporary support to sides of excavations | L101: 23 | O101: Valve Chamber * | Q101: =((2.4+0.35)*9.05)*2 -> 49.775
A102: =IF(ISBLANK(H102),"",($E$3&"."&+(COUNTA(H$4:H102)))) ->  | L102: 24 | O102: * Shared wall included in BPT
A103: =IF(ISBLANK(H103),"",($E$3&"."&+(COUNTA(H$4:H103)))) ->  | B103: 8.3.4 | C103: .1 | D103: Shore sides of excavation for structures | L103: 25
A104: =IF(ISBLANK(H104),"",($E$3&"."&+(COUNTA(H$4:H104)))) ->  | L104: 26
A105: =IF(ISBLANK(H105),"",($E$3&"."&+(COUNTA(H$4:H105)))) ->  | D105: (a) | E105: Support to sides of BPT and adjoining valve | L105: 27
A106: =IF(ISBLANK(H106),"",($E$3&"."&+(COUNTA(H$4:H106)))) -> 4.12 | E106: chamber excavation | H106: m² | I106: =ROUNDUP($Q$99,0) -> 197 | L106: 28
A107: =IF(ISBLANK(H107),"",($E$3&"."&+(COUNTA(H$4:H107)))) ->  | L107: 29
A108: =IF(ISBLANK(H108),"",($E$3&"."&+(COUNTA(H$4:H108)))) ->  | C108: NOTE: | E108: Measurement for support to sides of excavations | L108: 30
A109: =IF(ISBLANK(H109),"",($E$3&"."&+(COUNTA(H$4:H109)))) ->  | E109: for structures shall be based on the exposed area | L109: 31
A110: =IF(ISBLANK(H110),"",($E$3&"."&+(COUNTA(H$4:H110)))) ->  | E110: of excavation faces requiring support. | L110: 32
A111: =IF(ISBLANK(H111),"",($E$3&"."&+(COUNTA(H$4:H111)))) ->  | L111: 33
A112: =IF(ISBLANK(H112),"",($E$3&"."&+(COUNTA(H$4:H112)))) ->  | E112: The Contractor shall be deemed to have | L112: 34
A113: =IF(ISBLANK(H113),"",($E$3&"."&+(COUNTA(H$4:H113)))) ->  | E113: allowed for all necessary temporary works and | L113: 35
A114: =IF(ISBLANK(H114),"",($E$3&"."&+(COUNTA(H$4:H114)))) ->  | E114: shoring required to ensure excavation | L114: 36 | N114: =IF(ISBLANK($I121),"",$K121/$K$463) -> 
A115: =IF(ISBLANK(H115),"",($E$3&"."&+(COUNTA(H$4:H115)))) ->  | E115: stability, including in embankment conditions. | L115: 37
A116: =IF(ISBLANK(H116),"",($E$3&"."&+(COUNTA(H$4:H116)))) ->  | L116: 38
A117: =IF(ISBLANK(H117),"",($E$3&"."&+(COUNTA(H$4:H117)))) ->  | E117: Shoring is measured only to excavation faces | L117: 39
A118: =IF(ISBLANK(H118),"",($E$3&"."&+(COUNTA(H$4:H118)))) ->  | E118: requiring support, as per SANS 1200 DB 8.3.4, and | L118: 40
A119: =IF(ISBLANK(H119),"",($E$3&"."&+(COUNTA(H$4:H119)))) ->  | E119: excludes sides open to atmosphere or constructed | L119: 41
A120: =IF(ISBLANK(H120),"",($E$3&"."&+(COUNTA(H$4:H120)))) ->  | E120: above ground. | L120: 42
A121: =IF(ISBLANK(H121),"",($E$3&"."&+(COUNTA(H$4:H121)))) ->  | L121: 43
A122: =IF(ISBLANK(H122),"",($E$3&"."&+(COUNTA(H$4:H122)))) ->  | C122: BACKFILLING RESTRICTED EXCAVATIONS | L122: 44
A123: =IF(ISBLANK(H123),"",($E$3&"."&+(COUNTA(H$4:H123)))) ->  | L123: 45
A124: =IF(ISBLANK(H124),"",($E$3&"."&+(COUNTA(H$4:H124)))) ->  | C124: Extra over reference 8.3.2 (a) and 8.3.3 (a) for backfill | L124: 46
A125: =IF(ISBLANK(H125),"",($E$3&"."&+(COUNTA(H$4:H125)))) ->  | C125: or for fill material against structures | L125: 47
A126: =IF(ISBLANK(H126),"",($E$3&"."&+(COUNTA(H$4:H126)))) ->  | L126: 48
A127: =IF(ISBLANK(H127),"",($E$3&"."&+(COUNTA(H$4:H127)))) ->  | B127: 8.3.9 | C127: .1 | D127: Selected material compacted to 93% mod | L127: 49 | M127: Shoring | N127: =IF(ISBLANK($I134),"",$K134/$K$463) -> 
A128: =IF(ISBLANK(H128),"",($E$3&"."&+(COUNTA(H$4:H128)))) ->  | D128: AASHTO density | L128: 50 | N128: =IF(ISBLANK($I135),"",$K135/$K$463) -> 
A129: =IF(ISBLANK(H129),"",($E$3&"."&+(COUNTA(H$4:H129)))) ->  | L129: 51 | N129: =IF(ISBLANK($I136),"",$K136/$K$463) -> 
A130: =IF(ISBLANK(H130),"",($E$3&"."&+(COUNTA(H$4:H130)))) ->  | D130: (a) | E130: Alongside outer reservoir walls, sloping of | L130: 52 | N130: =IF(ISBLANK($I137),"",$K137/$K$463) -> 
A131: =IF(ISBLANK(H131),"",($E$3&"."&+(COUNTA(H$4:H131)))) ->  | E131: platform embankment & filling chambers in | L131: 53
A132: =IF(ISBLANK(H132),"",($E$3&"."&+(COUNTA(H$4:H132)))) -> 4.13 | E132: foundations | H132: m³ | I132: =ROUNDUP($Q$13-$Q$200-$Q$208-$Q$215-$Q$220-$Q$195,0) -> 629.00 | L132: 54 | N132: =IF(ISBLANK(#REF!),"",#REF!/$K$463) -> 
A133: =IF(ISBLANK(H133),"",($E$3&"."&+(COUNTA(H$4:H133)))) ->  | L133: 55
A134: =IF(ISBLANK(H134),"",($E$3&"."&+(COUNTA(H$4:H134)))) ->  | D134: (b) | E134: Permanent protective soil cover to pipelines | L134: 56
A135: =IF(ISBLANK(H135),"",($E$3&"."&+(COUNTA(H$4:H135)))) ->  | E135: supported on pedestals adjacent to reservoir | L135: 57
A136: =IF(ISBLANK(H136),"",($E$3&"."&+(COUNTA(H$4:H136)))) ->  | E136: embankment, placed to exclude soil ingress | L136: 58
A137: =IF(ISBLANK(H137),"",($E$3&"."&+(COUNTA(H$4:H137)))) ->  | E137: and protect pipework. No structural function | L137: 59
A138: =IF(ISBLANK(H138),"",($E$3&"."&+(COUNTA(H$4:H138)))) -> 4.14 | E138: intended. | H138: m³ | I138: 15 | L138: 60
L139: 61 | N139: =IF(ISBLANK(#REF!),"",#REF!/$K$463) -> 
A140: =IF(ISBLANK(H140),"",($E$3&"."&+(COUNTA(H$4:H140)))) ->  | C140: CONCRETE (STRUCTURAL) | L140: 62 | N140: =IF(ISBLANK(#REF!),"",#REF!/$K$463) -> 
A141: =IF(ISBLANK(H141),"",($E$3&"."&+(COUNTA(H$4:H141)))) ->  | B141: SANS | L141: 63 | N141: =IF(ISBLANK($I156),"",$K156/$K$463) -> 
A142: =IF(ISBLANK(H142),"",($E$3&"."&+(COUNTA(H$4:H142)))) ->  | B142: 1200 G | C142: ROUGH FORMWORK | L142: 64 | N142: =IF(ISBLANK($I157),"",$K157/$K$463) -> 
A143: =IF(ISBLANK(H143),"",($E$3&"."&+(COUNTA(H$4:H143)))) ->  | L143: 65 | N143: =IF(ISBLANK(#REF!),"",#REF!/$K$463) -> 
A144: =IF(ISBLANK(H144),"",($E$3&"."&+(COUNTA(H$4:H144)))) ->  | B144: 8.2.5 | C144: .1 | D144: Rough formwork to narrow widths | L144: 66 | N144: =IF(ISBLANK(#REF!),"",#REF!/$K$463) -> 
A145: =IF(ISBLANK(H145),"",($E$3&"."&+(COUNTA(H$4:H145)))) ->  | L145: 67 | N145: =IF(ISBLANK($I140),"",$K140/$K$463) -> 
A146: =IF(ISBLANK(H146),"",($E$3&"."&+(COUNTA(H$4:H146)))) -> 4.15 | D146: (a) | E146: Edges, risers, etc not exceeding 300mm wide | H146: m | I146: 150 | L146: 68
A147: =IF(ISBLANK(H147),"",($E$3&"."&+(COUNTA(H$4:H147)))) ->  | L147: 69
A148: =IF(ISBLANK(H148),"",($E$3&"."&+(COUNTA(H$4:H148)))) ->  | C148: SMOOTH FORMWORK | L148: 70
A149: =IF(ISBLANK(H149),"",($E$3&"."&+(COUNTA(H$4:H149)))) ->  | L149: 71
A150: =IF(ISBLANK(H150),"",($E$3&"."&+(COUNTA(H$4:H150)))) ->  | C150: SMOOTH FORMWORK | L150: 72
A151: =IF(ISBLANK(H151),"",($E$3&"."&+(COUNTA(H$4:H151)))) ->  | L151: 73
A152: =IF(ISBLANK(H152),"",($E$3&"."&+(COUNTA(H$4:H152)))) ->  | B152: 8.2.2 | C152: .1 | D152: Plane horizontal | L152: 74
A153: =IF(ISBLANK(H153),"",($E$3&"."&+(COUNTA(H$4:H153)))) ->  | L153: 75
A154: =IF(ISBLANK(H154),"",($E$3&"."&+(COUNTA(H$4:H154)))) -> 4.16 | D154: (a) | E154: Soffit of Roof Slab | H154: m² | I154: =ROUNDUP(Q195/0.3,0) -> 69 | L154: 76
L155: 78 | N155: =IF(ISBLANK($I151),"",$K151/$K$463) -> 
J156: Carried Forward | K156: =IF(I156<>0,I156*J156,"") ->  | L156: 79 | N156: =IF(ISBLANK($I152),"",$K152/$K$463) -> 
J157: Brought Forward | K157: =IF(I157<>0,I157*J157,"") ->  | L157: 80 | N157: =IF(ISBLANK($I153),"",$K153/$K$463) -> 
A158: =IF(ISBLANK(H158),"",($E$3&"."&+(COUNTA(H$4:H158)))) ->  | B158: 8.2.2 | C158: .2 | D158: Plane vertical | N158: =IF(ISBLANK($I154),"",$K154/$K$463) -> 
A159: =IF(ISBLANK(H159),"",($E$3&"."&+(COUNTA(H$4:H159)))) ->  | L159: 1 | N159: =IF(ISBLANK(#REF!),"",#REF!/$K$463) -> 
A160: =IF(ISBLANK(H160),"",($E$3&"."&+(COUNTA(H$4:H160)))) ->  | D160: (a) | E160: Sides of BPT and adjoining chamber walls | L160: 2 | N160: =IF(ISBLANK($I158),"",$K158/$K$463) -> 
A161: =IF(ISBLANK(H161),"",($E$3&"."&+(COUNTA(H$4:H161)))) -> 4.17 | E161: (internal & external) | H161: m² | I161: =ROUNDUP(($Q$208+$Q$215+$Q$220)/0.35,0) -> 415 | L161: 3 | N161: =IF(ISBLANK($I159),"",$K159/$K$463) -> 
A162: =IF(ISBLANK(H162),"",($E$3&"."&+(COUNTA(H$4:H162)))) ->  | L162: 4 | N162: =IF(ISBLANK($I160),"",$K160/$K$463) -> 
A163: =IF(ISBLANK(H163),"",($E$3&"."&+(COUNTA(H$4:H163)))) ->  | B163: 8.2.5 | C163: .3 | D163: Smooth formwork to narrow widths | L163: 5
A164: =IF(ISBLANK(H164),"",($E$3&"."&+(COUNTA(H$4:H164)))) ->  | L164: 6 | N164: =IF(ISBLANK($I162),"",$K162/$K$463) -> 
A165: =IF(ISBLANK(H165),"",($E$3&"."&+(COUNTA(H$4:H165)))) -> 4.18 | D165: (a) | E165: Edges, risers, etc. | H165: m | I165: 150 | L165: 7
A166: =IF(ISBLANK(H166),"",($E$3&"."&+(COUNTA(H$4:H166)))) ->  | L166: 8
A167: =IF(ISBLANK(H167),"",($E$3&"."&+(COUNTA(H$4:H167)))) ->  | B167: 8.1.1.2 | C167: .4 | D167: Smooth formwork to chamfers, grooves, rebates, etc. | L167: 9
A168: =IF(ISBLANK(H168),"",($E$3&"."&+(COUNTA(H$4:H168)))) ->  | D168: exceeding 20x20mm in size | L168: 10
A169: =IF(ISBLANK(H169),"",($E$3&"."&+(COUNTA(H$4:H169)))) ->  | L169: 11
A170: =IF(ISBLANK(H170),"",($E$3&"."&+(COUNTA(H$4:H170)))) -> 4.19 | D170: (a) | E170: Drip groove 25mm halfround | H170: m | I170: 5.7 | L170: 12
A171: =IF(ISBLANK(H171),"",($E$3&"."&+(COUNTA(H$4:H171)))) ->  | L171: 14 | N171: =IF(ISBLANK($I170),"",$K170/$K$463) -> 
A172: =IF(ISBLANK(H172),"",($E$3&"."&+(COUNTA(H$4:H172)))) ->  | C172: REINFORCEMENT | L172: 15 | N172: =IF(ISBLANK(#REF!),"",#REF!/$K$463) -> 
A173: =IF(ISBLANK(H173),"",($E$3&"."&+(COUNTA(H$4:H173)))) ->  | L173: 16 | N173: =IF(ISBLANK($I171),"",$K171/$K$463) -> 
A174: =IF(ISBLANK(H174),"",($E$3&"."&+(COUNTA(H$4:H174)))) ->  | B174: 8.3.1 | C174: Steel bars | L174: 17
A175: =IF(ISBLANK(H175),"",($E$3&"."&+(COUNTA(H$4:H175)))) ->  | L175: 18
A176: =IF(ISBLANK(H176),"",($E$3&"."&+(COUNTA(H$4:H176)))) ->  | C176: .1 | D176: Mild steel | K176: =IF(I176<>0,I176*J176,"") ->  | L176: 19
A177: =IF(ISBLANK(H177),"",($E$3&"."&+(COUNTA(H$4:H177)))) ->  | L177: 20
A178: =IF(ISBLANK(H178),"",($E$3&"."&+(COUNTA(H$4:H178)))) -> 4.20 | D178: (a) | E178: All sizes | H178: ton | K178: R/O | L178: 21
A179: =IF(ISBLANK(H179),"",($E$3&"."&+(COUNTA(H$4:H179)))) ->  | K179: =IF(I179<>0,I179*J179,"") ->  | L179: 22
A180: =IF(ISBLANK(H180),"",($E$3&"."&+(COUNTA(H$4:H180)))) ->  | C180: .2 | D180: High tensile steel | L180: 23 | P180: 150kg/m3 | Q180: =150*($Q$195+$Q$200+SUM($Q$208,$Q$215,$Q$220,)) -> 31937.64 | R180: kg
A181: =IF(ISBLANK(H181),"",($E$3&"."&+(COUNTA(H$4:H181)))) ->  | L181: 24 | Q181: =Q180/1000 -> 31.94 | R181: ton
A182: =IF(ISBLANK(H182),"",($E$3&"."&+(COUNTA(H$4:H182)))) -> 4.21 | D182: (a) | E182: All sizes | H182: ton | I182: =ROUNDUP($Q$181,0) -> 32.0 | L182: 25 | P182: Reinforcement measured provisionally and subject to re-measurement
A183: =IF(ISBLANK(H183),"",($E$3&"."&+(COUNTA(H$4:H183)))) ->  | L183: 26
A184: =IF(ISBLANK(H184),"",($E$3&"."&+(COUNTA(H$4:H184)))) ->  | C184: CONCRETE | L184: 27
A185: =IF(ISBLANK(H185),"",($E$3&"."&+(COUNTA(H$4:H185)))) ->  | C185: STRENGTH CONCRETE | L185: 29 | N185: =IF(ISBLANK($I184),"",$K184/$K$463) -> 
A186: =IF(ISBLANK(H186),"",($E$3&"."&+(COUNTA(H$4:H186)))) ->  | L186: 30 | N186: =IF(ISBLANK(#REF!),"",#REF!/$K$463) -> 
A187: =IF(ISBLANK(H187),"",($E$3&"."&+(COUNTA(H$4:H187)))) ->  | B187: 8.4.2 | C187: .1 | D187: Strength concrete 15Mpa/20mm | L187: 31 | N187: =IF(ISBLANK($I185),"",$K185/$K$463) -> 
A188: =IF(ISBLANK(H188),"",($E$3&"."&+(COUNTA(H$4:H188)))) ->  | L188: 32 | N188: =IF(ISBLANK($I186),"",$K186/$K$463) -> 
A189: =IF(ISBLANK(H189),"",($E$3&"."&+(COUNTA(H$4:H189)))) -> 4.22 | D189: (a) | E189: Blinding layer 50mm thick | H189: m³ | I189: =ROUNDUP(Q192,0) -> 2.00 | L189: 33 | N189: =IF(ISBLANK($I187),"",$K187/$K$463) -> 
A190: =IF(ISBLANK(H190),"",($E$3&"."&+(COUNTA(H$4:H190)))) ->  | L190: 34 | N190: =IF(ISBLANK($I188),"",$K188/$K$463) -> 
A191: =IF(ISBLANK(H191),"",($E$3&"."&+(COUNTA(H$4:H191)))) -> 4.23 | D191: (b) | E191: Blinding layer 100mm thick | H191: m³ | I191: =ROUNDUP(Q193,0) -> 6.00 | L191: 35 | N191: =IF(ISBLANK($I189),"",$K189/$K$463) ->  | O191: Blinding
A192: =IF(ISBLANK(H192),"",($E$3&"."&+(COUNTA(H$4:H192)))) ->  | L192: 36 | N192: =IF(ISBLANK(#REF!),"",#REF!/$K$463) ->  | O192: 50mm | Q192: =4.964 * 5.7 * 0.05 -> 1.41 | R192: m³
A193: =IF(ISBLANK(H193),"",($E$3&"."&+(COUNTA(H$4:H193)))) -> 4.24 | D193: (c) | E193: Mass concrete thrust blocks | H193: m³ | I193: 3 | L193: 37 | N193: =IF(ISBLANK(#REF!),"",#REF!/$K$463) ->  | O193: 100mm | Q193: =9.15 * 5.7 * 0.1 -> 5.22 | R193: m³
A194: =IF(ISBLANK(H194),"",($E$3&"."&+(COUNTA(H$4:H194)))) ->  | L194: 38 | N194: =IF(ISBLANK($I190),"",$K190/$K$463) -> 
A195: =IF(ISBLANK(H195),"",($E$3&"."&+(COUNTA(H$4:H195)))) ->  | B195: 8.4.3 | C195: .2 | D195: Strength concrete 30Mpa/20mm | K195: =IF(I195<>0,I195*J195,"") ->  | L195: 39 | O195: Roof slab | Q195: =SUM(Q196:Q197) -> 20.53 | R195: m³
A196: =IF(ISBLANK(H196),"",($E$3&"."&+(COUNTA(H$4:H196)))) ->  | L196: 40 | N196: =IF(ISBLANK($I192),"",$K192/$K$463) ->  | O196: BPT | Q196: =((9.6*5.7*0.3)) -> 16.42
A197: =IF(ISBLANK(H197),"",($E$3&"."&+(COUNTA(H$4:H197)))) -> 4.25 | D197: (a) | E197: BPT and adjoining valve chamber base slab | H197: m³ | K197: R/O | L197: 41 | N197: =IF(ISBLANK(#REF!),"",#REF!/$K$463) ->  | O197: Valve Chamber | Q197: =2.75*(3.57+0.35+0.35)*0.35 -> 4.11
A198: =IF(ISBLANK(H198),"",($E$3&"."&+(COUNTA(H$4:H198)))) ->  | L198: 42 | N198: =IF(ISBLANK($I193),"",$K193/$K$463) -> 
A199: =IF(ISBLANK(H199),"",($E$3&"."&+(COUNTA(H$4:H199)))) -> 4.26 | D199: (b) | E199: BPT and adjoining valve chamber walls | H199: m³ | K199: R/O | L199: 43
A200: =IF(ISBLANK(H200),"",($E$3&"."&+(COUNTA(H$4:H200)))) ->  | L200: 44 | N200: =IF(ISBLANK(#REF!),"",#REF!/$K$463) ->  | O200: Base slab | Q200: =SUM(Q204:Q205) -> 47.30 | R200: m³
... 283 more rows

Sheet 5. Valve Chambers
A1: Item | B1: Pay | C1: Description | H1: Unit | I1: Qty | J1: Rate | K1: Amount
B2: Ref. | N2: GRP Connection Floor | Q2: GRP Connection roof | T2: GRP Connection walls
C3: Schedule | E3: 5 | K3: =IF(I3<>0,I3*J3,"") ->  | L3: 1 | N3: L | O3: 4.45 | Q3: L | R3: 3.95 | T3: L1 | U3: =3.95+0.35+0.35 -> 4.65 | V3: x2
C4: VALVE / PIPE CHAMBERS | L4: 2 | N4: B | O4: 5.1 | Q4: B | R4: 4 | T4: L2 | U4: =4 -> 4 | V4: x2
L5: 3 | N5: H | O5: 0.3 | Q5: H | R5: 0.35 | T5: t | U5: 0.35
C6: Cross‑Connection Chamber (US) and Hydropower Connection Chamber (DS) | K6: =IF(I6<>0,I6*J6,"") ->  | L6: 4 | N6: Volume | O6: =O3*O4*O5 -> 6.81 | Q6: Volume | R6: =R3*R4*R5 -> 5.53 | T6: H | U6: =1.2+0.45+0.7+0.7 -> 3.05 | V6: minimum
L7: 5 | T7: Volume | U7: =(U3*U5*U6)*2+(U4*U5*U6)*2 -> 18.47
A8: =IF(ISBLANK(H8),"",($E$8&"."&+(COUNTA(H$8:H8)))) ->  | B8: SANS | L8: 6
A9: =IF(ISBLANK(H9),"",($E$8&"."&+(COUNTA(H$8:H9)))) ->  | B9: 1200 D | C9: EARTHWORKS | L9: 7 | N9: Hydropower Chamber Floor | Q9: Hydropower Chamber Roof | T9: Hydropower Chamber walls
A10: =IF(ISBLANK(H10),"",($E$8&"."&+(COUNTA(H$8:H10)))) ->  | L10: 8 | N10: L | O10: 4 | Q10: L | R10: 3.95 | T10: L1 | U10: =3.95+0.35+0.35 -> 4.65 | V10: x2
A11: =IF(ISBLANK(H11),"",($E$8&"."&+(COUNTA(H$8:H11)))) ->  | C11: RESTRICTED EARTHWORKS | L11: 9 | N11: B | O11: 4.1 | Q11: B | R11: 2.9 | T11: L2 | U11: =4 -> 4 | V11: x2
A12: =IF(ISBLANK(H12),"",($E$8&"."&+(COUNTA(H$8:H12)))) ->  | L12: 10 | N12: H | O12: 0.3 | Q12: H | R12: 0.35 | T12: t | U12: 0.35
A13: =IF(ISBLANK(H13),"",($E$8&"."&+(COUNTA(H$8:H13)))) ->  | B13: 8.3.3 | C13: .1 | D13: Restricted excavation in all materials and place | L13: 11 | N13: Volume | O13: =O10*O11*O12 -> 4.92 | Q13: Volume | R13: =R10*R11*R12 -> 4.00925 | T13: H | U13: 1.5 | V13: minimum
A14: =IF(ISBLANK(H14),"",($E$8&"."&+(COUNTA(H$8:H14)))) ->  | D14: material on site | L14: 12 | T14: Volume | U14: =(U10*U12*U13)*2+(U11*U12*U13)*2 -> 9.08
L15: 13
A16: =IF(ISBLANK(H16),"",($E$3&"."&+(COUNTA(H$8:H16)))) -> 5.1 | D16: (a) | E16: Excavation for cross‑connection valve | H16: m³ | I16: =ROUNDUP(O17,0) -> 88 | L16: 14
A17: =IF(ISBLANK(H17),"",($E$3&"."&+(COUNTA(H$8:H17)))) ->  | E17: chamber | L17: 15 | N17: GRP | O17: =($O$3+0.6)*($O$4+0.6)*$U$6 -> 87.79425 | P17: m³
A18: =IF(ISBLANK(H18),"",($E$3&"."&+(COUNTA(H$8:H18)))) ->  | L18: 16
A19: =IF(ISBLANK(H19),"",($E$3&"."&+(COUNTA(H$8:H19)))) -> 5.2 | D19: (b) | E19: Excavation for valve chamber downstream of | H19: m³ | I19: =ROUNDUP(O20,0) -> 33 | L19: 17
A20: =IF(ISBLANK(H20),"",($E$3&"."&+(COUNTA(H$8:H20)))) ->  | E20: hydropower connection | L20: 18 | N20: Hydro | O20: =($O$10+0.6)*($O$11+0.6)*$U$13 -> 32.43 | P20: m³
A21: =IF(ISBLANK(H21),"",($E$3&"."&+(COUNTA(H$8:H21)))) ->  | L21: 19
A22: =IF(ISBLANK(H22),"",($E$3&"."&+(COUNTA(H$8:H22)))) ->  | C22: WORKING SPACE | L22: 20
A23: =IF(ISBLANK(H23),"",($E$3&"."&+(COUNTA(H$8:H23)))) ->  | K23: =IF(I22<>0,I22*J22,"") ->  | L23: 21
A24: =IF(ISBLANK(H24),"",($E$3&"."&+(COUNTA(H$8:H24)))) ->  | B24: 8.3.5 | C24: .1 | D24: Extra excavation and backfilling in all materials to | K24: =IF(I23<>0,I23*J23,"") ->  | L24: 22
A25: =IF(ISBLANK(H25),"",($E$3&"."&+(COUNTA(H$8:H25)))) ->  | D25: provide working space around structures | K25: =IF(I24<>0,I24*J24,"") ->  | L25: 23
A26: =IF(ISBLANK(H26),"",($E$3&"."&+(COUNTA(H$8:H26)))) ->  | L26: 24
A27: =IF(ISBLANK(H27),"",($E$3&"."&+(COUNTA(H$8:H27)))) ->  | D27: (a) | E27: Excavate for working space (previously excavated | L27: 25
A28: =IF(ISBLANK(H28),"",($E$3&"."&+(COUNTA(H$8:H28)))) ->  | E28: face +- 300mm away from perimeter of structure) | L28: 26
A29: =IF(ISBLANK(H29),"",($E$3&"."&+(COUNTA(H$8:H29)))) ->  | E29: for the placing and removal of external formwork | L29: 27
A30: =IF(ISBLANK(H30),"",($E$3&"."&+(COUNTA(H$8:H30)))) ->  | E30: to foundation footings & walls. Average depth of | L30: 28
A31: =IF(ISBLANK(H31),"",($E$3&"."&+(COUNTA(H$8:H31)))) ->  | E31: excavation 3m deep, including backfilling and | L31: 29
A32: =IF(ISBLANK(H32),"",($E$3&"."&+(COUNTA(H$8:H32)))) -> 5.3 | E32: compaction to 90% mod AASHTO density | H32: m² | I32: =ROUNDUP($O$35,0) -> 9 | L32: 30
A33: =IF(ISBLANK(H33),"",($E$3&"."&+(COUNTA(H$8:H33)))) ->  | L33: 31 | N33: GRP | O33: =O3*1 -> 4.45 | P33: m²
A34: =IF(ISBLANK(H34),"",($E$3&"."&+(COUNTA(H$8:H34)))) ->  | B34: SANS | C34: SHORING OF EXCAVATIONS | L34: 32 | N34: Hydro | O34: =O10*1 -> 4 | P34: m²
A35: =IF(ISBLANK(H35),"",($E$3&"."&+(COUNTA(H$8:H35)))) ->  | B35: 1200 DB | L35: 33 | N35: TOTAL | O35: =SUM(O33:O34) -> 8.45
A36: =IF(ISBLANK(H36),"",($E$3&"."&+(COUNTA(H$8:H36)))) ->  | C36: Temporary support to sides of excavations | L36: 34
A37: =IF(ISBLANK(H37),"",($E$3&"."&+(COUNTA(H$8:H37)))) ->  | L37: 35
A38: =IF(ISBLANK(H38),"",($E$3&"."&+(COUNTA(H$8:H38)))) ->  | C38: .1 | D38: Shore sides of excavation for structures | L38: 36
A39: =IF(ISBLANK(H39),"",($E$3&"."&+(COUNTA(H$8:H39)))) ->  | L39: 37
A40: =IF(ISBLANK(H40),"",($E$3&"."&+(COUNTA(H$8:H40)))) -> 5.4 | D40: (a) | E40: Cross-connection valve chamber excavation | H40: m² | I40: =ROUNDUP($O$3*$U$6,0) -> 14 | L40: 38
A41: =IF(ISBLANK(H41),"",($E$3&"."&+(COUNTA(H$8:H41)))) ->  | L41: 39
A42: =IF(ISBLANK(H42),"",($E$3&"."&+(COUNTA(H$8:H42)))) ->  | C42: NOTE: | E42: Measurement for support to sides of excavations | L42: 40
A43: =IF(ISBLANK(H43),"",($E$3&"."&+(COUNTA(H$8:H43)))) ->  | E43: for structures shall be based on the exposed area | L43: 41
A44: =IF(ISBLANK(H44),"",($E$3&"."&+(COUNTA(H$8:H44)))) ->  | E44: of excavation faces requiring support. | L44: 42
A45: =IF(ISBLANK(H45),"",($E$3&"."&+(COUNTA(H$8:H45)))) ->  | L45: 43
A46: =IF(ISBLANK(H46),"",($E$3&"."&+(COUNTA(H$8:H46)))) ->  | E46: The Contractor shall be deemed to have | L46: 44
A47: =IF(ISBLANK(H47),"",($E$3&"."&+(COUNTA(H$8:H47)))) ->  | E47: allowed for all necessary temporary works and | L47: 45
A48: =IF(ISBLANK(H48),"",($E$3&"."&+(COUNTA(H$8:H48)))) ->  | E48: shoring required to ensure excavation | L48: 46
A49: =IF(ISBLANK(H49),"",($E$3&"."&+(COUNTA(H$8:H49)))) ->  | E49: stability, including in embankment conditions. | L49: 47
A50: =IF(ISBLANK(H50),"",($E$3&"."&+(COUNTA(H$8:H50)))) ->  | L50: 48
A51: =IF(ISBLANK(H51),"",($E$3&"."&+(COUNTA(H$8:H51)))) ->  | C51: BACKFILLING RESTRICTED EXCAVATIONS | L51: 49
A52: =IF(ISBLANK(H52),"",($E$3&"."&+(COUNTA(H$8:H52)))) ->  | L52: 50
A53: =IF(ISBLANK(H53),"",($E$3&"."&+(COUNTA(H$8:H53)))) ->  | B53: 8.3.9 | C53: Extra over reference 8.3.2 (a) and 8.3.3 (a) for backfill | L53: 51
A54: =IF(ISBLANK(H54),"",($E$3&"."&+(COUNTA(H$8:H54)))) ->  | C54: or for fill material against structures | L54: 52
A55: =IF(ISBLANK(H55),"",($E$3&"."&+(COUNTA(H$8:H55)))) ->  | L55: 53
A56: =IF(ISBLANK(H56),"",($E$3&"."&+(COUNTA(H$8:H56)))) ->  | C56: .1 | D56: Selected material compacted to 93% mod | L56: 54
A57: =IF(ISBLANK(H57),"",($E$3&"."&+(COUNTA(H$8:H57)))) ->  | D57: AASHTO density | L57: 55
A58: =IF(ISBLANK(H58),"",($E$3&"."&+(COUNTA(H$8:H58)))) ->  | L58: 56
A59: =IF(ISBLANK(H59),"",($E$3&"."&+(COUNTA(H$8:H59)))) ->  | D59: (a) | E59: Alongside outer valve chamber walls | L59: 57
A60: =IF(ISBLANK(H60),"",($E$3&"."&+(COUNTA(H$8:H60)))) -> 5.5 | E60: in foundations | H60: m³ | I60: =ROUNDUP($U$6*((2*U3)+(2*U4))*0.5,0) -> 27 | L60: 58
A61: =IF(ISBLANK(H61),"",($E$3&"."&+(COUNTA(H$8:H61)))) ->  | L61: 59
A62: =IF(ISBLANK(H62),"",($E$3&"."&+(COUNTA(H$8:H62)))) ->  | B62: SANS | L62: 60
A63: =IF(ISBLANK(H63),"",($E$3&"."&+(COUNTA(H$8:H63)))) ->  | B63: 1200 G | C63: CONCRETE (STRUCTURAL) | L63: 61
A64: =IF(ISBLANK(H64),"",($E$3&"."&+(COUNTA(H$8:H64)))) ->  | L64: 62
A65: =IF(ISBLANK(H65),"",($E$3&"."&+(COUNTA(H$8:H65)))) ->  | C65: ROUGH FORMWORK | L65: 63
A66: =IF(ISBLANK(H66),"",($E$3&"."&+(COUNTA(H$8:H66)))) ->  | L66: 64
A67: =IF(ISBLANK(H67),"",($E$3&"."&+(COUNTA(H$8:H67)))) ->  | B67: 8.2.5 | C67: .1 | D67: Rough formwork to narrow widths not exceeding | L67: 65
A68: =IF(ISBLANK(H68),"",($E$3&"."&+(COUNTA(H$8:H68)))) ->  | D68: 300mm wide | L68: 66
A69: =IF(ISBLANK(H69),"",($E$3&"."&+(COUNTA(H$8:H69)))) ->  | L69: 67
A70: =IF(ISBLANK(H70),"",($E$3&"."&+(COUNTA(H$8:H70)))) -> 5.6 | D70: (a) | E70: Edges, risers, etc. | H70: m | I70: 52.0 | L70: 68
L71: 69
L72: 70 | N72: Cross Connection Chamber Perimeter | R72: =$O$3*2+$O$4*2 -> 19.1 | S72: m
L73: 71 | N73: Area | R73: =(U3+U4)*4*U6 -> 105.53 | S73: m²
L74: 72
L75: 73 | N75: Hydro Chamber Perimeter | R75: =$O$10*2+$O$11*2 -> 16.2 | S75: m
L76: 74 | N76: Area | R76: =(U10+U11)*4*U13 -> 51.9 | S76: m²
A77: =IF(ISBLANK(H77),"",($E$3&"."&+(COUNTA(H$8:H77)))) ->  | L77: 75
J78: Carried Forward | L78: 76
J79: Brought Forward | L79: 77
A80: =IF(ISBLANK(H80),"",($E$3&"."&+(COUNTA(H$8:H80)))) ->  | C80: SMOOTH FORMWORK | K80: =IF(I79<>0,I79*J79,"") ->  | L80: 78
A81: =IF(ISBLANK(H81),"",($E$3&"."&+(COUNTA(H$8:H81)))) ->  | K81: =IF(I80<>0,I80*J80,"") ->  | L81: 79
A82: =IF(ISBLANK(H82),"",($E$3&"."&+(COUNTA(H$8:H82)))) ->  | C82: (To include for drip grooves and chamfers on all | K82: =IF(I81<>0,I81*J81,"") ->  | L82: 80
A83: =IF(ISBLANK(H83),"",($E$3&"."&+(COUNTA(H$8:H83)))) ->  | C83: exposed edges as shown) | K83: =IF(I82<>0,I82*J82,"") -> 
A84: =IF(ISBLANK(H84),"",($E$3&"."&+(COUNTA(H$8:H84)))) ->  | K84: =IF(I83<>0,I83*J83,"") ->  | L84: 1
A85: =IF(ISBLANK(H85),"",($E$3&"."&+(COUNTA(H$8:H85)))) ->  | B85: 8.2.2 | C85: .1 | D85: Plane vertical | L85: 2
A86: =IF(ISBLANK(H86),"",($E$3&"."&+(COUNTA(H$8:H86)))) ->  | L86: 3
A87: =IF(ISBLANK(H87),"",($E$3&"."&+(COUNTA(H$8:H87)))) -> 5.7 | D87: (a) | E87: Chamber walls - Internal & External | H87: m² | I87: =ROUNDUP($R$73+$R$76*2,0) -> 210.0 | L87: 4
A88: =IF(ISBLANK(H88),"",($E$3&"."&+(COUNTA(H$8:H88)))) ->  | L88: 5
A89: =IF(ISBLANK(H89),"",($E$3&"."&+(COUNTA(H$8:H89)))) -> 5.8 | D89: (b) | E89: Thrust blocks/plinths inside chamber | H89: m² | I89: 1.0 | L89: 6
A90: =IF(ISBLANK(H90),"",($E$3&"."&+(COUNTA(H$8:H90)))) ->  | L90: 7
A91: =IF(ISBLANK(H91),"",($E$3&"."&+(COUNTA(H$8:H91)))) ->  | B91: 8.2.5 | C91: .2 | D91: Smooth formwork to narrow widths not exceeding | L91: 8
A92: =IF(ISBLANK(H92),"",($E$3&"."&+(COUNTA(H$8:H92)))) ->  | D92: 300mm wide | L92: 9
A93: =IF(ISBLANK(H93),"",($E$3&"."&+(COUNTA(H$8:H93)))) ->  | L93: 10
A94: =IF(ISBLANK(H94),"",($E$3&"."&+(COUNTA(H$8:H94)))) -> 5.9 | D94: (a) | E94: Edges, risers, etc. | H94: m | I94: 50 | L94: 11
A95: =IF(ISBLANK(H95),"",($E$3&"."&+(COUNTA(H$8:H95)))) ->  | L95: 12
A96: =IF(ISBLANK(H96),"",($E$3&"."&+(COUNTA(H$8:H96)))) ->  | C96: BOXING IN FOR HOLES AND VOIDS | L96: 13
A97: =IF(ISBLANK(H97),"",($E$3&"."&+(COUNTA(H$8:H97)))) ->  | L97: 14
A98: =IF(ISBLANK(H98),"",($E$3&"."&+(COUNTA(H$8:H98)))) ->  | B98: 8.2.6 | C98: .1 | D98: Large, circular, of a diameter over 0.35m and up to and including 0,7m | L98: 15
A99: =IF(ISBLANK(H99),"",($E$3&"."&+(COUNTA(H$8:H99)))) ->  | L99: 16
A100: =IF(ISBLANK(H100),"",($E$3&"."&+(COUNTA(H$8:H100)))) -> 5.10 | D100: (a) | E100: up to 0,5m | H100: no | I100: 9 | L100: 17
A101: =IF(ISBLANK(H101),"",($E$3&"."&+(COUNTA(H$8:H101)))) ->  | L101: 18
A102: =IF(ISBLANK(H102),"",($E$3&"."&+(COUNTA(H$8:H102)))) ->  | C102: REINFORCEMENT | L102: 19
A103: =IF(ISBLANK(H103),"",($E$3&"."&+(COUNTA(H$8:H103)))) ->  | K103: =IF(I102<>0,I102*J102,"") ->  | L103: 20
A104: =IF(ISBLANK(H104),"",($E$3&"."&+(COUNTA(H$8:H104)))) ->  | C104: Steel bars | L104: 21
A105: =IF(ISBLANK(H105),"",($E$3&"."&+(COUNTA(H$8:H105)))) ->  | L105: 22
A106: =IF(ISBLANK(H106),"",($E$3&"."&+(COUNTA(H$8:H106)))) ->  | B106: 8.3.1 | C106: .1 | D106: Mild steel | L106: 23
A107: =IF(ISBLANK(H107),"",($E$3&"."&+(COUNTA(H$8:H107)))) ->  | L107: 24
A108: =IF(ISBLANK(H108),"",($E$3&"."&+(COUNTA(H$8:H108)))) -> 5.11 | D108: (a) | E108: All sizes | H108: ton | I108: 1 | K108: R/O | L108: 25 | N108: 150 kg/m³ | O108: =SUM(R6,U7,O6,O13*2,R13*2,U14*2) -> 66.83 | P108: m³
A109: =IF(ISBLANK(H109),"",($E$3&"."&+(COUNTA(H$8:H109)))) ->  | L109: 26 | O109: =O108*150 -> 10024.4625 | P109: kg
A110: =IF(ISBLANK(H110),"",($E$3&"."&+(COUNTA(H$8:H110)))) ->  | B110: 8.3.1 | C110: .2 | D110: High tensile steel | K110: =IF(I109<>0,I109*J109,"") ->  | L110: 27 | O110: =O109/1000 -> 10.0244625 | P110: ton
A111: =IF(ISBLANK(H111),"",($E$3&"."&+(COUNTA(H$8:H111)))) ->  | K111: =IF(I110<>0,I110*J110,"") ->  | L111: 28
A112: =IF(ISBLANK(H112),"",($E$3&"."&+(COUNTA(H$8:H112)))) -> 5.12 | D112: (a) | E112: All sizes | H112: ton | I112: =ROUNDUP($O$110,0) -> 11.00 | L112: 29
A113: =IF(ISBLANK(H113),"",($E$3&"."&+(COUNTA(H$8:H113)))) ->  | L113: 30
A114: =IF(ISBLANK(H114),"",($E$3&"."&+(COUNTA(H$8:H114)))) ->  | C114: CONCRETE | L114: 31
A115: =IF(ISBLANK(H115),"",($E$3&"."&+(COUNTA(H$8:H115)))) ->  | L115: 32
A116: =IF(ISBLANK(H116),"",($E$3&"."&+(COUNTA(H$8:H116)))) ->  | B116: 8.4.2 | C116: .1 | D116: Strength concrete 15Mpa/19mm | L116: 33
A117: =IF(ISBLANK(H117),"",($E$3&"."&+(COUNTA(H$8:H117)))) ->  | L117: 34
A118: =IF(ISBLANK(H118),"",($E$3&"."&+(COUNTA(H$8:H118)))) -> 5.13 | D118: (a) | E118: Blinding layer 50mm thick | H118: m³ | I118: =ROUNDUP(($O$6/$O$5)*0.05,0)*3 -> 6.00 | L118: 35
A119: =IF(ISBLANK(H119),"",($E$3&"."&+(COUNTA(H$8:H119)))) ->  | L119: 36
A120: =IF(ISBLANK(H120),"",($E$3&"."&+(COUNTA(H$8:H120)))) ->  | B120: 8.4.3 | C120: .2 | D120: Strength concrete 25Mpa/19mm | L120: 37
A121: =IF(ISBLANK(H121),"",($E$3&"."&+(COUNTA(H$8:H121)))) ->  | L121: 38
A122: =IF(ISBLANK(H122),"",($E$3&"."&+(COUNTA(H$8:H122)))) -> 5.14 | D122: (a) | E122: Mass filling as pipe/valve support | H122: m³ | I122: 0.10 | L122: 39
A123: =IF(ISBLANK(H123),"",($E$3&"."&+(COUNTA(H$8:H123)))) ->  | L123: 40
A124: =IF(ISBLANK(H124),"",($E$3&"."&+(COUNTA(H$8:H124)))) ->  | B124: 8.4.3 | C124: .3 | D124: Strength concrete 40Mpa/19mm | L124: 41
A125: =IF(ISBLANK(H125),"",($E$3&"."&+(COUNTA(H$8:H125)))) ->  | L125: 42
A126: =IF(ISBLANK(H126),"",($E$3&"."&+(COUNTA(H$8:H126)))) -> 5.15 | D126: (a) | E126: Floor slabs | H126: m³ | I126: =ROUNDUP($O$6+$O$13*2,0) -> 17.00 | L126: 43
A127: =IF(ISBLANK(H127),"",($E$3&"."&+(COUNTA(H$8:H127)))) ->  | L127: 44
A128: =IF(ISBLANK(H128),"",($E$3&"."&+(COUNTA(H$8:H128)))) -> 5.16 | D128: (b) | E128: Walls | H128: m³ | I128: =ROUNDUP($U$7+$U$14*2,0) -> 37.00 | L128: 45
A129: =IF(ISBLANK(H129),"",($E$3&"."&+(COUNTA(H$8:H129)))) ->  | L129: 46
A130: =IF(ISBLANK(H130),"",($E$3&"."&+(COUNTA(H$8:H130)))) ->  | B130: 8.4.3 | C130: .4 | D130: Strength concrete 25Mpa/13mm | L130: 47
A131: =IF(ISBLANK(H131),"",($E$3&"."&+(COUNTA(H$8:H131)))) ->  | L131: 48
A132: =IF(ISBLANK(H132),"",($E$3&"."&+(COUNTA(H$8:H132)))) ->  | D132: (a) | E132: Benching to floors including steel floated | K132: =IF(I130<>0,I130*J130,"") ->  | L132: 49
A133: =IF(ISBLANK(H133),"",($E$3&"."&+(COUNTA(H$8:H133)))) -> 5.17 | E133: surface finish | H133: m³ | K133: R/O | L133: 50
A134: =IF(ISBLANK(H134),"",($E$3&"."&+(COUNTA(H$8:H134)))) ->  | K134: =IF(I132<>0,I132*J132,"") ->  | L134: 51
A135: =IF(ISBLANK(H135),"",($E$3&"."&+(COUNTA(H$8:H135)))) ->  | C135: SURFACE FINISHES | K135: =IF(I156<>0,I156*J156,"") ->  | L135: 52
A136: =IF(ISBLANK(H136),"",($E$3&"."&+(COUNTA(H$8:H136)))) ->  | K136: =IF(I157<>0,I157*J157,"") ->  | L136: 53
A137: =IF(ISBLANK(H137),"",($E$3&"."&+(COUNTA(H$8:H137)))) ->  | C137: Unformed surface finishes | K137: =IF(I135<>0,I135*J135,"") ->  | L137: 54
A138: =IF(ISBLANK(H138),"",($E$3&"."&+(COUNTA(H$8:H138)))) ->  | L138: 55
A139: =IF(ISBLANK(H139),"",($E$3&"."&+(COUNTA(H$8:H139)))) ->  | B139: 8.4.4 | C139: .1 | D139: Wood floated finish | K139: =IF(I137<>0,I137*J137,"") ->  | L139: 56
A140: =IF(ISBLANK(H140),"",($E$3&"."&+(COUNTA(H$8:H140)))) ->  | K140: =IF(I138<>0,I138*J138,"") ->  | L140: 57
A141: =IF(ISBLANK(H141),"",($E$3&"."&+(COUNTA(H$8:H141)))) -> 5.18 | D141: (a) | E141: Floor | H141: m² | I141: =ROUNDUP($O$3*$O$4+(O10*O11)*2,0) -> 56.0 | L141: 58
A142: =IF(ISBLANK(H142),"",($E$3&"."&+(COUNTA(H$8:H142)))) ->  | L142: 59
A143: =IF(ISBLANK(H143),"",($E$3&"."&+(COUNTA(H$8:H143)))) ->  | B143: 8.4.4 | C143: .2 | D143: Steel floated finish | L143: 60
A144: =IF(ISBLANK(H144),"",($E$3&"."&+(COUNTA(H$8:H144)))) ->  | L144: 61
A145: =IF(ISBLANK(H145),"",($E$3&"."&+(COUNTA(H$8:H145)))) -> 5.19 | D145: (a) | E145: Top of walls, beams, plinths, etc | H145: m² | I145: =ROUNDUP($O$3*$O$4,0) -> 23.0 | L145: 62
A146: =IF(ISBLANK(H146),"",($E$3&"."&+(COUNTA(H$8:H146)))) ->  | L146: 63
A147: =IF(ISBLANK(H147),"",($E$3&"."&+(COUNTA(H$8:H147)))) ->  | C147: JOINTS | L147: 64
A148: =IF(ISBLANK(H148),"",($E$3&"."&+(COUNTA(H$8:H148)))) ->  | L148: 65
A149: =IF(ISBLANK(H149),"",($E$3&"."&+(COUNTA(H$8:H149)))) ->  | B149: 8.5 | C149: .1 | D149: Cold placed bitumen or mastic sealant to all | L149: 66
A150: =IF(ISBLANK(H150),"",($E$3&"."&+(COUNTA(H$8:H150)))) ->  | D150: joints between each precast roof slab panel and | L150: 67
A151: =IF(ISBLANK(H151),"",($E$3&"."&+(COUNTA(H$8:H151)))) -> 5.20 | D151: the chamber walls | H151: m | I151: =U6*4+U13*4+O3*2+O4*2+2+O11*2 -> 47.5 | L151: 68
L152: 69
L153: 70
L154: 71
A155: =IF(ISBLANK(H155),"",($E$3&"."&+(COUNTA(H$8:H155)))) ->  | L155: 72
J156: Carried Forward | L156: 73
J157: Brought Forward | L157: 74
A158: =IF(ISBLANK(H158),"",($E$3&"."&+(COUNTA(H$8:H158)))) ->  | L158: 75
A159: =IF(ISBLANK(H159),"",($E$3&"."&+(COUNTA(H$8:H159)))) ->  | C159: PRECAST CONCRETE | L159: 76
A160: =IF(ISBLANK(H160),"",($E$3&"."&+(COUNTA(H$8:H160)))) ->  | L160: 77
A161: =IF(ISBLANK(H161),"",($E$3&"."&+(COUNTA(H$8:H161)))) ->  | C161: REMOVABLE COVER SLAB PANELS | L161: 78
A162: =IF(ISBLANK(H162),"",($E$3&"."&+(COUNTA(H$8:H162)))) ->  | K162: =IF(I160<>0,I160*J160,"") ->  | L162: 79
A163: =IF(ISBLANK(H163),"",($E$3&"."&+(COUNTA(H$8:H163)))) ->  | B163: 8.6 | C163: .1 | D163: 250mm thick concrete (35/19 strength) cover panels. | K163: =IF(I161<>0,I161*J161,"") ->  | L163: 80
A164: =IF(ISBLANK(H164),"",($E$3&"."&+(COUNTA(H$8:H164)))) ->  | D164: Complete with reinforcing, lifting hooks, openings, etc. | K164: =IF(I162<>0,I162*J162,"") -> 
A165: =IF(ISBLANK(H165),"",($E$3&"."&+(COUNTA(H$8:H165)))) -> 5.21 | D165: Refer Dwg 3890.00.00.GZA.05.D004 | H165: no | I165: 6 | K165: =IF(I163<>0,I163*J163,"") ->  | L165: 1
A166: =IF(ISBLANK(H166),"",($E$3&"."&+(COUNTA(H$8:H166)))) ->  | L166: 2
A167: =IF(ISBLANK(H167),"",($E$3&"."&+(COUNTA(H$8:H167)))) -> 5.22 | C167: .2 | D167: Extra over for casting in lifting hooks (Hooks included) | H167: no | I167: =6*2*2 -> 24 | L167: 3
A168: =IF(ISBLANK(H168),"",($E$3&"."&+(COUNTA(H$8:H168)))) ->  | L168: 4
A169: =IF(ISBLANK(H169),"",($E$3&"."&+(COUNTA(H$8:H169)))) ->  | B169: SANS | L169: 5
A170: =IF(ISBLANK(H170),"",($E$3&"."&+(COUNTA(H$8:H170)))) ->  | B170: 1200 G | C170: SUNDRIES | L170: 6
A171: =IF(ISBLANK(H171),"",($E$3&"."&+(COUNTA(H$8:H171)))) ->  | L171: 7
A172: =IF(ISBLANK(H172),"",($E$3&"."&+(COUNTA(H$8:H172)))) ->  | C172: ACCESS LIDS AND COVERS | L172: 8
A173: =IF(ISBLANK(H173),"",($E$3&"."&+(COUNTA(H$8:H173)))) ->  | L173: 9
A174: =IF(ISBLANK(H174),"",($E$3&"."&+(COUNTA(H$8:H174)))) ->  | C174: .1 | D174: Supply, deliver to site and casting of Non-metallic, | L174: 10
A175: =IF(ISBLANK(H175),"",($E$3&"."&+(COUNTA(H$8:H175)))) ->  | D175: polymer Clear opening access cover and frame. | L175: 11
A176: =IF(ISBLANK(H176),"",($E$3&"."&+(COUNTA(H$8:H176)))) ->  | L176: 12
A177: =IF(ISBLANK(H177),"",($E$3&"."&+(COUNTA(H$8:H177)))) -> 5.23 | D177: (a) | E177: SmartLock MHL-001 Type (700mm Lid) | H177: no | I177: 3 | L177: 13
A178: =IF(ISBLANK(H178),"",($E$3&"."&+(COUNTA(H$8:H178)))) ->  | L178: 14
A179: =IF(ISBLANK(H179),"",($E$3&"."&+(COUNTA(H$8:H179)))) ->  | B179: 8.3.8 | C179: HOT DIP GALVANISED MILD STEEL LADDERS | L179: 15 | N179: =$U$6-0.5-0.4 -> 2.15
A180: =IF(ISBLANK(H180),"",($E$3&"."&+(COUNTA(H$8:H180)))) ->  | L180: 16
A181: =IF(ISBLANK(H181),"",($E$3&"."&+(COUNTA(H$8:H181)))) ->  | C181: .1 | D181: Ladder 2200mm long, including grab bar, supply and | L181: 17
A182: =IF(ISBLANK(H182),"",($E$3&"."&+(COUNTA(H$8:H182)))) -> 5.24 | D182: install | H182: no | I182: 1 | L182: 18 | N182: =$U$13-0.5-0.4 -> 0.6
A183: =IF(ISBLANK(H183),"",($E$3&"."&+(COUNTA(H$8:H183)))) ->  | L183: 19
A184: =IF(ISBLANK(H184),"",($E$3&"."&+(COUNTA(H$8:H184)))) ->  | C184: .2 | D184: Ladder 1000mm long, including grab bar, supply and | L184: 20
A185: =IF(ISBLANK(H185),"",($E$3&"."&+(COUNTA(H$8:H185)))) -> 5.25 | D185: install | H185: no | I185: 2 | L185: 21
A186: =IF(ISBLANK(H186),"",($E$3&"."&+(COUNTA(H$8:H186)))) ->  | L186: 22
A187: =IF(ISBLANK(H187),"",($E$3&"."&+(COUNTA(H$8:H187)))) ->  | C187: VENTILATORS | L187: 23
A188: =IF(ISBLANK(H188),"",($E$3&"."&+(COUNTA(H$8:H188)))) ->  | L188: 24
A189: =IF(ISBLANK(H189),"",($E$3&"."&+(COUNTA(H$8:H189)))) ->  | B189: 8.3.12 | C189: Galvanised mild steel ventilator installed complete | K189: =IF(I187<>0,I187*J187,"") ->  | L189: 25
A190: =IF(ISBLANK(H190),"",($E$3&"."&+(COUNTA(H$8:H190)))) ->  | C190: Refer Dwg 3890.00.00.GZA.05.D004 | L190: 26
A191: =IF(ISBLANK(H191),"",($E$3&"."&+(COUNTA(H$8:H191)))) ->  | L191: 27
A192: =IF(ISBLANK(H192),"",($E$3&"."&+(COUNTA(H$8:H192)))) -> 5.26 | C192: .1 | D192: 100mmx75mm ventilator complete with vermin proof | H192: no | I192: 3 | L192: 28
A193: =IF(ISBLANK(H193),"",($E$3&"."&+(COUNTA(H$8:H193)))) ->  | L193: 29
L194: 30
L195: 31
L196: 32
L197: 33
L198: 34
L199: 35
L200: 36
... 44 more rows

Sheet 6. Buffer Tank
A1: Item | B1: Ref | C1: Description | H1: Unit | I1: Qty | J1: Rate | K1: Amount | N1: Buffer Tank
N2: L | O2: 12
A3: =IF(ISBLANK(H3),"",(#REF!&"."&+(COUNTA(H3:H$4)))) ->  | C3: Schedule | E3: 6 | K3: =IF(I3<>0,I3*J3,"") ->  | L3: 1 | N3: B | O3: 12
C4: BUFFER TANK | L4: 2 | N4: H | O4: 4
B5: SANS | C5: 500kl pressed steel buffer tank with isolation | L5: 3
A6: =IF(ISBLANK(H6),"",(#REF!&"."&+(COUNTA(H$4:H6)))) ->  | B6: 1200 C | L6: 4
A7: =IF(ISBLANK(H7),"",(#REF!&"."&+(COUNTA(H$4:H7)))) ->  | C7: SITE CLEARANCE | L7: 5
A8: =IF(ISBLANK(H8),"",(#REF!&"."&+(COUNTA(H$4:H8)))) ->  | L8: 6
A9: =IF(ISBLANK(H9),"",(#REF!&"."&+(COUNTA(H$4:H9)))) ->  | C9: CLEAR SITE | L9: 7
A10: =IF(ISBLANK(H10),"",(#REF!&"."&+(COUNTA(H$4:H10)))) ->  | L10: 8
A11: =IF(ISBLANK(H11),"",($E$6&"."&+(COUNTA(H$4:H11)))) ->  | C11: CLEAR AND GRUB SITE | K11: =IF(I10<>0,I10*J10,"") ->  | L11: 9
A12: =IF(ISBLANK(H12),"",($E$3&"."&+(COUNTA(H$4:H12)))) ->  | K12: =IF(I11<>0,I11*J11,"") ->  | L12: 10
A13: =IF(ISBLANK(H13),"",($E$3&"."&+(COUNTA(H$4:H13)))) ->  | B13: 8.2.1 | C13: .1 | D13: Clear and grub area for | L13: 11
A14: =IF(ISBLANK(H14),"",($E$3&"."&+(COUNTA(H$4:H14)))) ->  | L14: 12
A15: =IF(ISBLANK(H15),"",($E$3&"."&+(COUNTA(H$4:H15)))) -> 6.1 | D15: (a) | E15: Platforms | H15: m² | I15: =O2*O3 -> 144 | L15: 13
A16: =IF(ISBLANK(H16),"",($E$3&"."&+(COUNTA(H$4:H16)))) ->  | L16: 14
A17: =IF(ISBLANK(H17),"",($E$3&"."&+(COUNTA(H$4:H17)))) ->  | C17: REMOVE LARGE TREES AND STUMPS | L17: 15
A18: =IF(ISBLANK(H18),"",($E$3&"."&+(COUNTA(H$4:H18)))) ->  | L18: 16
A19: =IF(ISBLANK(H19),"",($E$3&"."&+(COUNTA(H$4:H19)))) ->  | B19: 8.2.2 | C19: .2 | D19: Remove and grub large trees and tree stumps of girth | L19: 17
A20: =IF(ISBLANK(H20),"",($E$3&"."&+(COUNTA(H$4:H20)))) ->  | L20: 18
A21: =IF(ISBLANK(H21),"",($E$3&"."&+(COUNTA(H$4:H21)))) -> 6.2 | D21: (a) | E21: Exceeding 1m and up to and including 2m | H21: no | I21: 5 | L21: 19
A22: =IF(ISBLANK(H22),"",($E$3&"."&+(COUNTA(H$4:H22)))) ->  | L22: 20
A23: =IF(ISBLANK(H23),"",($E$3&"."&+(COUNTA(H$4:H23)))) ->  | L23: 21
A24: =IF(ISBLANK(H24),"",($E$3&"."&+(COUNTA(H$4:H24)))) ->  | B24: SANS | C24: TOPSOIL AND LANDSCAPING | L24: 22
A25: =IF(ISBLANK(H25),"",($E$3&"."&+(COUNTA(H$4:H25)))) ->  | B25: 1200 DM | L25: 23
A26: =IF(ISBLANK(H26),"",($E$3&"."&+(COUNTA(H$4:H26)))) ->  | C26: REMOVE TOPSOIL | K26: =IF(I25<>0,I25*J25,"") ->  | L26: 24
A27: =IF(ISBLANK(H27),"",($E$3&"."&+(COUNTA(H$4:H27)))) ->  | K27: =IF(I26<>0,I26*J26,"") ->  | L27: 25
A28: =IF(ISBLANK(H28),"",($E$3&"."&+(COUNTA(H$4:H28)))) ->  | B28: 8.3.2 | C28: .1 | D28: Remove topsoil to a depth of 150mm and | L28: 26
A29: =IF(ISBLANK(H29),"",($E$3&"."&+(COUNTA(H$4:H29)))) ->  | L29: 27
A30: =IF(ISBLANK(H30),"",($E$3&"."&+(COUNTA(H$4:H30)))) -> 6.3 | D30: (a) | E30: Stockpile on site and maintain | H30: m³ | I30: =MROUND((I15*0.15),1) -> 22 | L30: 28
A31: =IF(ISBLANK(H31),"",($E$3&"."&+(COUNTA(H$4:H31)))) ->  | L31: 29
A32: =IF(ISBLANK(H32),"",($E$3&"."&+(COUNTA(H$4:H32)))) ->  | C32: FINISHING, TOPSOILING AND GRASSING | L32: 30
A33: =IF(ISBLANK(H33),"",($E$3&"."&+(COUNTA(H$4:H33)))) ->  | L33: 31
A34: =IF(ISBLANK(H34),"",($E$3&"."&+(COUNTA(H$4:H34)))) ->  | B34: 8.3.10 | C34: .2 | D34: Topsoiling with material from stockpiles on site | L34: 32
A35: =IF(ISBLANK(H35),"",($E$3&"."&+(COUNTA(H$4:H35)))) ->  | L35: 33
A36: =IF(ISBLANK(H36),"",($E$3&"."&+(COUNTA(H$4:H36)))) -> 6.4 | D36: (a) | E36: Spread over site | H36: m³ | I36: =I30 -> 22 | L36: 34
A37: =IF(ISBLANK(H37),"",($E$3&"."&+(COUNTA(H$4:H37)))) ->  | L37: 35
A38: =IF(ISBLANK(H38),"",($E$3&"."&+(COUNTA(H$4:H38)))) ->  | C38: EARTHWORKS | L38: 36
A39: =IF(ISBLANK(H39),"",($E$3&"."&+(COUNTA(H$4:H39)))) ->  | B39: SANS | L39: 37
A40: =IF(ISBLANK(H40),"",($E$3&"."&+(COUNTA(H$4:H40)))) ->  | B40: 1200 D | C40: BULK EXCAVATION | L40: 38
A41: =IF(ISBLANK(H41),"",($E$3&"."&+(COUNTA(H$4:H41)))) ->  | L41: 39
A42: =IF(ISBLANK(H42),"",($E$3&"."&+(COUNTA(H$4:H42)))) ->  | B42: 8.3.2 | C42: .1 | D42: Bulk excavation in all materials and place | K42: =IF(I41<>0,I41*J41,"") ->  | L42: 40
A43: =IF(ISBLANK(H43),"",($E$3&"."&+(COUNTA(H$4:H43)))) -> 6.5 | D43: material on site | H43: m³ | I43: =MROUND((I15*0.3),1) -> 43 | K43: R/O | L43: 41
A44: =IF(ISBLANK(H44),"",($E$3&"."&+(COUNTA(H$4:H44)))) ->  | L44: 42
A45: =IF(ISBLANK(H45),"",($E$3&"."&+(COUNTA(H$4:H45)))) ->  | B45: 8.3.2 | C45: .2 | D45: Extra over reference 8.3.2 (a) for | L45: 43
A46: =IF(ISBLANK(H46),"",($E$3&"."&+(COUNTA(H$4:H46)))) ->  | K46: =IF(I45<>0,I45*J45,"") ->  | L46: 44
A47: =IF(ISBLANK(H47),"",($E$3&"."&+(COUNTA(H$4:H47)))) -> 6.6 | D47: (a) | E47: Hard rock excavation | H47: m³ | K47: R/O | L47: 45
A48: =IF(ISBLANK(H48),"",($E$3&"."&+(COUNTA(H$4:H48)))) ->  | K48: =IF(I48<>0,I48*J48,"") ->  | L48: 46
A49: =IF(ISBLANK(H49),"",($E$3&"."&+(COUNTA(H$4:H49)))) -> 6.7 | D49: (b) | E49: Boulder excavation, Class A | H49: m³ | K49: R/O | L49: 47
A50: =IF(ISBLANK(H50),"",($E$3&"."&+(COUNTA(H$4:H50)))) ->  | L50: 48
A51: =IF(ISBLANK(H51),"",($E$3&"."&+(COUNTA(H$4:H51)))) -> 6.8 | D51: (c) | E51: Boulder excavation, Class B | H51: m³ | I51: 30 | L51: 49
A52: =IF(ISBLANK(H52),"",($E$3&"."&+(COUNTA(H$4:H52)))) ->  | L52: 50
A53: =IF(ISBLANK(H53),"",($E$3&"."&+(COUNTA(H$4:H53)))) ->  | C53: RESTRICTED EARTHWORKS | L53: 51
A54: =IF(ISBLANK(H54),"",($E$3&"."&+(COUNTA(H$4:H54)))) ->  | K54: =IF(I53<>0,I53*J53,"") ->  | L54: 52
A55: =IF(ISBLANK(H55),"",($E$3&"."&+(COUNTA(H$4:H55)))) ->  | B55: 8.3.3 | C55: .1 | D55: Restricted excavation in all materials and place | K55: =IF(I54<>0,I54*J54,"") ->  | L55: 53
A56: =IF(ISBLANK(H56),"",($E$3&"."&+(COUNTA(H$4:H56)))) ->  | D56: material on site | L56: 54
A57: =IF(ISBLANK(H57),"",($E$3&"."&+(COUNTA(H$4:H57)))) ->  | L57: 55 | N57: Buffer Tank
A58: =IF(ISBLANK(H58),"",($E$3&"."&+(COUNTA(H$4:H58)))) -> 6.9 | D58: (a) | E58: Excavation for buffer tank footings | H58: m³ | I58: =MROUND(((O58*O59*O60*P59)*O61),1) -> 259 | L58: 56 | N58: L | O58: 12 | P58: width
A59: =IF(ISBLANK(H59),"",($E$3&"."&+(COUNTA(H$4:H59)))) ->  | L59: 57 | N59: B | O59: 12 | P59: 0.6
A60: =IF(ISBLANK(H60),"",($E$3&"."&+(COUNTA(H$4:H60)))) ->  | C60: RESTRICTED EXCAVATION | L60: 58 | N60: H | O60: 0.3 | P60: Depth
A61: =IF(ISBLANK(H61),"",($E$3&"."&+(COUNTA(H$4:H61)))) ->  | L61: 59 | N61: No | O61: =O59/1.2 -> 10 | P61: 0.6
A62: =IF(ISBLANK(H62),"",($E$3&"."&+(COUNTA(H$4:H62)))) ->  | B62: 8.3.3 | C62: .1 | D62: Extra over reference 8.3.3 (a) for | L62: 60
A63: =IF(ISBLANK(H63),"",($E$3&"."&+(COUNTA(H$4:H63)))) ->  | L63: 61
A64: =IF(ISBLANK(H64),"",($E$3&"."&+(COUNTA(H$4:H64)))) -> 6.10 | D64: (a) | E64: Hard rock excavation (No high velocity explosives allowed) | H64: m³ | I64: =ROUNDUP(I58*10%,0) -> 26 | L64: 62
A65: =IF(ISBLANK(H65),"",($E$3&"."&+(COUNTA(H$4:H65)))) ->  | L65: 63
A66: =IF(ISBLANK(H66),"",($E$3&"."&+(COUNTA(H$4:H66)))) ->  | C66: BACKFILLING RESTRICTED EXCAVATIONS | L66: 64
A67: =IF(ISBLANK(H67),"",($E$3&"."&+(COUNTA(H$4:H67)))) ->  | K67: =IF(I81<>0,I81*J81,"") ->  | L67: 65
A68: =IF(ISBLANK(H68),"",($E$3&"."&+(COUNTA(H$4:H68)))) ->  | B68: 8.3.9 | C68: Extra over reference 8.3.2 (a) and 8.3.3 (a) for backfill | K68: =IF(I66<>0,I66*J66,"") ->  | L68: 66
A69: =IF(ISBLANK(H69),"",($E$3&"."&+(COUNTA(H$4:H69)))) ->  | C69: or for fill material against structures | L69: 67
A70: =IF(ISBLANK(H70),"",($E$3&"."&+(COUNTA(H$4:H70)))) ->  | L70: 68
A71: =IF(ISBLANK(H71),"",($E$3&"."&+(COUNTA(H$4:H71)))) ->  | C71: .1 | D71: Selected material compacted to 93% mod | L71: 69
A72: =IF(ISBLANK(H72),"",($E$3&"."&+(COUNTA(H$4:H72)))) ->  | D72: AASHTO density | L72: 70
A73: =IF(ISBLANK(H73),"",($E$3&"."&+(COUNTA(H$4:H73)))) ->  | L73: 71
A74: =IF(ISBLANK(H74),"",($E$3&"."&+(COUNTA(H$4:H74)))) -> 6.11 | D74: (a) | E74: Alongside support walls below tank in all foundations\ | H74: m³ | I74: =I58 -> 259 | L74: 72
L75: 73
L76: 74
L77: 75
L78: 76
L79: 77
J80: Carried Forward | L80: 78
J81: Brought Forward | L81: 79
A82: =IF(ISBLANK(H82),"",($E$3&"."&+(COUNTA(H$4:H82)))) ->  | L82: 80
A83: =IF(ISBLANK(H83),"",($E$3&"."&+(COUNTA(H$4:H83)))) ->  | C83: CONCRETE (STRUCTURAL)
A84: =IF(ISBLANK(H84),"",($E$3&"."&+(COUNTA(H$4:H84)))) ->  | B84: SANS
A85: =IF(ISBLANK(H85),"",($E$3&"."&+(COUNTA(H$4:H85)))) ->  | B85: 1200 G | C85: ROUGH FORMWORK | L85: 1
A86: =IF(ISBLANK(H86),"",($E$3&"."&+(COUNTA(H$4:H86)))) ->  | L86: 2
A87: =IF(ISBLANK(H87),"",($E$3&"."&+(COUNTA(H$4:H87)))) ->  | B87: 8.2.5 | C87: .1 | D87: Rough formwork to narrow widths not exceeding | L87: 3
A88: =IF(ISBLANK(H88),"",($E$3&"."&+(COUNTA(H$4:H88)))) ->  | D88: 300mm wide | L88: 4
A89: =IF(ISBLANK(H89),"",($E$3&"."&+(COUNTA(H$4:H89)))) ->  | L89: 5
A90: =IF(ISBLANK(H90),"",($E$3&"."&+(COUNTA(H$4:H90)))) -> 6.12 | D90: (a) | E90: Edges, risers, etc. | H90: m | I90: =(O58*2)*O61 -> 240.0 | L90: 6
A91: =IF(ISBLANK(H91),"",($E$3&"."&+(COUNTA(H$4:H91)))) ->  | L91: 7
A92: =IF(ISBLANK(H92),"",($E$3&"."&+(COUNTA(H$4:H92)))) ->  | C92: SMOOTH FORMWORK | L92: 8
A93: =IF(ISBLANK(H93),"",($E$3&"."&+(COUNTA(H$4:H93)))) ->  | L93: 9
A94: =IF(ISBLANK(H94),"",($E$3&"."&+(COUNTA(H$4:H94)))) ->  | C94: (To include for drip grooves and chamfers on all | L94: 10
A95: =IF(ISBLANK(H95),"",($E$3&"."&+(COUNTA(H$4:H95)))) ->  | C95: exposed edges as shown) | L95: 11
A96: =IF(ISBLANK(H96),"",($E$3&"."&+(COUNTA(H$4:H96)))) ->  | L96: 12
A97: =IF(ISBLANK(H97),"",($E$3&"."&+(COUNTA(H$4:H97)))) ->  | B97: 8.2.2 | C97: .1 | D97: Plane vertical | L97: 13
A98: =IF(ISBLANK(H98),"",($E$3&"."&+(COUNTA(H$4:H98)))) ->  | L98: 14
A99: =IF(ISBLANK(H99),"",($E$3&"."&+(COUNTA(H$4:H99)))) -> 6.13 | D99: (a) | E99: Tank supports including corners and edges | H99: m² | I99: =MROUND(((O58*2*P61*O61)+(O58*2*P61*O60)),1) -> 148.0 | L99: 15
A100: =IF(ISBLANK(H100),"",($E$3&"."&+(COUNTA(H$4:H100)))) ->  | L100: 16
A101: =IF(ISBLANK(H101),"",($E$3&"."&+(COUNTA(H$4:H101)))) ->  | B101: 8.2.5 | C101: .2 | D101: Smooth formwork to narrow widths not exceeding | L101: 17
A102: =IF(ISBLANK(H102),"",($E$3&"."&+(COUNTA(H$4:H102)))) ->  | D102: 300mm wide | L102: 18
A103: =IF(ISBLANK(H103),"",($E$3&"."&+(COUNTA(H$4:H103)))) ->  | L103: 19
A104: =IF(ISBLANK(H104),"",($E$3&"."&+(COUNTA(H$4:H104)))) -> 6.14 | D104: (a) | E104: Edges, risers, etc. | H104: m | K104: R/O | L104: 20
A105: =IF(ISBLANK(H105),"",($E$3&"."&+(COUNTA(H$4:H105)))) ->  | K105: =IF(I105<>0,I105*J105,"") ->  | L105: 21
A106: =IF(ISBLANK(H106),"",($E$3&"."&+(COUNTA(H$4:H106)))) ->  | C106: BOXING IN FOR HOLES AND VOIDS | K106: =IF(I106<>0,I106*J106,"") ->  | L106: 22
A107: =IF(ISBLANK(H107),"",($E$3&"."&+(COUNTA(H$4:H107)))) ->  | K107: =IF(I107<>0,I107*J107,"") ->  | L107: 23
A108: =IF(ISBLANK(H108),"",($E$3&"."&+(COUNTA(H$4:H108)))) ->  | B108: 8.2.6 | C108: .1 | D108: Large, circular, of a diameter over 0.35m and up to and including 0,7m | K108: =IF(I108<>0,I108*J108,"") ->  | L108: 24
A109: =IF(ISBLANK(H109),"",($E$3&"."&+(COUNTA(H$4:H109)))) ->  | K109: =IF(I109<>0,I109*J109,"") ->  | L109: 25
A110: =IF(ISBLANK(H110),"",($E$3&"."&+(COUNTA(H$4:H110)))) -> 6.15 | D110: (a) | E110: up to 0,5m | H110: no | K110: R/O | L110: 26
A111: =IF(ISBLANK(H111),"",($E$3&"."&+(COUNTA(H$4:H111)))) ->  | K111: =IF(I111<>0,I111*J111,"") ->  | L111: 27
A112: =IF(ISBLANK(H112),"",($E$3&"."&+(COUNTA(H$4:H112)))) ->  | C112: REINFORCEMENT | L112: 28
A113: =IF(ISBLANK(H113),"",($E$3&"."&+(COUNTA(H$4:H113)))) ->  | L113: 29
A114: =IF(ISBLANK(H114),"",($E$3&"."&+(COUNTA(H$4:H114)))) ->  | C114: Steel bars | L114: 30
A115: =IF(ISBLANK(H115),"",($E$3&"."&+(COUNTA(H$4:H115)))) ->  | L115: 31
A116: =IF(ISBLANK(H116),"",($E$3&"."&+(COUNTA(H$4:H116)))) ->  | B116: 8.3.1 | C116: .1 | D116: Mild steel | L116: 32
A117: =IF(ISBLANK(H117),"",($E$3&"."&+(COUNTA(H$4:H117)))) ->  | L117: 33
A118: =IF(ISBLANK(H118),"",($E$3&"."&+(COUNTA(H$4:H118)))) -> 6.16 | D118: (a) | E118: All sizes | H118: ton | I118: 1 | K118: R/O | L118: 34 | O118: 150kg/m3 | P118: =I133*150 -> 3300 | Q118: kg
A119: =IF(ISBLANK(H119),"",($E$3&"."&+(COUNTA(H$4:H119)))) ->  | L119: 35 | P119: =P118/1000 -> 3.3 | Q119: ton
A120: =IF(ISBLANK(H120),"",($E$3&"."&+(COUNTA(H$4:H120)))) ->  | B120: 8.3.1 | C120: .2 | D120: High tensile steel | L120: 36 | O120: Reinforcement measured provisionally and subject to re-measurement
A121: =IF(ISBLANK(H121),"",($E$3&"."&+(COUNTA(H$4:H121)))) ->  | K121: =IF(I119<>0,I119*J119,"") ->  | L121: 37
A122: =IF(ISBLANK(H122),"",($E$3&"."&+(COUNTA(H$4:H122)))) -> 6.17 | D122: (a) | E122: All sizes | H122: ton | I122: 3.30 | L122: 38
A123: =IF(ISBLANK(H123),"",($E$3&"."&+(COUNTA(H$4:H123)))) ->  | L123: 39
A124: =IF(ISBLANK(H124),"",($E$3&"."&+(COUNTA(H$4:H124)))) ->  | L124: 40
A125: =IF(ISBLANK(H125),"",($E$3&"."&+(COUNTA(H$4:H125)))) ->  | C125: CONCRETE | L125: 41
A126: =IF(ISBLANK(H126),"",($E$3&"."&+(COUNTA(H$4:H126)))) ->  | L126: 42
A127: =IF(ISBLANK(H127),"",($E$3&"."&+(COUNTA(H$4:H127)))) ->  | B127: 8.4.2 | C127: .1 | D127: Strength concrete 15Mpa/19mm | L127: 43
A128: =IF(ISBLANK(H128),"",($E$3&"."&+(COUNTA(H$4:H128)))) ->  | L128: 44
A129: =IF(ISBLANK(H129),"",($E$3&"."&+(COUNTA(H$4:H129)))) -> 6.18 | D129: (a) | E129: Blinding layer 50mm thick | H129: m³ | K129: R/O | L129: 45
A130: =IF(ISBLANK(H130),"",($E$3&"."&+(COUNTA(H$4:H130)))) ->  | L130: 46
A131: =IF(ISBLANK(H131),"",($E$3&"."&+(COUNTA(H$4:H131)))) ->  | B131: 8.4.3 | C131: .2 | D131: Strength concrete 25Mpa/19mm | L131: 47
A132: =IF(ISBLANK(H132),"",($E$3&"."&+(COUNTA(H$4:H132)))) ->  | L132: 48
A133: =IF(ISBLANK(H133),"",($E$3&"."&+(COUNTA(H$4:H133)))) -> 6.19 | D133: (a) | E133: Tank supports including corners and edges | H133: m³ | I133: =MROUND((O58*O60*P61*O61),1) -> 22.00 | L133: 49
A134: =IF(ISBLANK(H134),"",($E$3&"."&+(COUNTA(H$4:H134)))) ->  | L134: 50
A135: =IF(ISBLANK(H135),"",($E$3&"."&+(COUNTA(H$4:H135)))) ->  | C135: SURFACE FINISHES | L135: 51
A136: =IF(ISBLANK(H136),"",($E$3&"."&+(COUNTA(H$4:H136)))) ->  | L136: 52
A137: =IF(ISBLANK(H137),"",($E$3&"."&+(COUNTA(H$4:H137)))) ->  | C137: Unformed surface finishes | L137: 53
A138: =IF(ISBLANK(H138),"",($E$3&"."&+(COUNTA(H$4:H138)))) ->  | L138: 54
A139: =IF(ISBLANK(H139),"",($E$3&"."&+(COUNTA(H$4:H139)))) ->  | B139: 8.4.4 | C139: .1 | D139: Wood floated finish | L139: 55
A140: =IF(ISBLANK(H140),"",($E$3&"."&+(COUNTA(H$4:H140)))) ->  | L140: 56
A141: =IF(ISBLANK(H141),"",($E$3&"."&+(COUNTA(H$4:H141)))) -> 6.20 | D141: (a) | E141: Floor | H141: m² | I141: =MROUND(((O58*(2*O60))*O61),1) -> 72.0 | L141: 57
A142: =IF(ISBLANK(H142),"",($E$3&"."&+(COUNTA(H$4:H142)))) ->  | L142: 58
A143: =IF(ISBLANK(H143),"",($E$3&"."&+(COUNTA(H$4:H143)))) ->  | B143: 8.4.4 | C143: .2 | D143: Steel floated finish | L143: 59
A144: =IF(ISBLANK(H144),"",($E$3&"."&+(COUNTA(H$4:H144)))) ->  | L144: 60
A145: =IF(ISBLANK(H145),"",($E$3&"."&+(COUNTA(H$4:H145)))) -> 6.21 | D145: (a) | E145: Top of walls, beams, plinths, etc | H145: m² | I145: =MROUND(((O58*O60)*O61),1) -> 36.0 | L145: 61
A146: =IF(ISBLANK(H146),"",($E$3&"."&+(COUNTA(H$4:H146)))) ->  | L146: 62
A147: =IF(ISBLANK(H147),"",($E$3&"."&+(COUNTA(H$4:H147)))) ->  | B147: SANS | C147: SUNDRIES | L147: 63
A148: =IF(ISBLANK(H148),"",($E$3&"."&+(COUNTA(H$4:H148)))) ->  | B148: 1200 G | L148: 64
A149: =IF(ISBLANK(H149),"",($E$3&"."&+(COUNTA(H$4:H149)))) ->  | C149: HOT DIP GALVANISED MILD STEEL PANEL TANK INCLUDING LADDERS, ETC | L149: 65
A150: =IF(ISBLANK(H150),"",($E$3&"."&+(COUNTA(H$4:H150)))) ->  | B150: 8.3.8 | L150: 66
A151: =IF(ISBLANK(H151),"",($E$3&"."&+(COUNTA(H$4:H151)))) ->  | C151: .1 | D151: Supply, deliver and errect 500kl pressed steel tank with roof | L151: 67
A152: =IF(ISBLANK(H152),"",($E$3&"."&+(COUNTA(H$4:H152)))) -> 6.22 | D152: rectangular, complete with all fasteners, ladders, latches, etc. | H152: no | I152: 1 | L152: 68
L153: 69
L154: 70 | O154: 65kl | P154: =276800/65 -> 4258.461538 | Q154: R/kl
L155: 71
A156: =IF(ISBLANK(H156),"",($E$3&"."&+(COUNTA(H$4:H156)))) ->  | L156: 72
L157: 73
J158: Carried Forward | L158: 74
J159: Brought Forward | L159: 75
L160: 76
A161: =IF(ISBLANK(H161),"",($E$3&"."&+(COUNTA(H$4:H161)))) ->  | B161: SANS | C161: MEDIUM PRESSURE PIPELINES | L161: 77
A162: =IF(ISBLANK(H162),"",($E$3&"."&+(COUNTA(H$4:H162)))) ->  | B162: 1200 DB | L162: 78 | O162: 510kl | P162: =P154*510 -> 2171815.385 | Q162: Rand
A163: =IF(ISBLANK(H163),"",($E$3&"."&+(COUNTA(H$4:H163)))) ->  | L163: 79 | O163: Reinforcement measured provisionally and subject to re-measurement
A164: =IF(ISBLANK(H164),"",($E$3&"."&+(COUNTA(H$4:H164)))) ->  | C164: EARTHWORKS ( PIPE TRENCHES ) | L164: 80
A165: =IF(ISBLANK(H165),"",($E$3&"."&+(COUNTA(H$4:H165)))) ->  | K165: =IF(I163<>0,I163*J163,"") -> 
A166: =IF(ISBLANK(H166),"",($E$3&"."&+(COUNTA(H$4:H166)))) ->  | C166: CLEAR AND GRUB SITE | L166: 1
A167: =IF(ISBLANK(H167),"",($E$3&"."&+(COUNTA(H$4:H167)))) ->  | L167: 2
A168: =IF(ISBLANK(H168),"",($E$3&"."&+(COUNTA(H$4:H168)))) ->  | B168: 8.3.1 | C168: .1 | D168: Clear and grub strips for (where not cleared | L168: 3
A169: =IF(ISBLANK(H169),"",($E$3&"."&+(COUNTA(H$4:H169)))) ->  | D169: within other clear and grub areas) | L169: 4
A170: =IF(ISBLANK(H170),"",($E$3&"."&+(COUNTA(H$4:H170)))) ->  | L170: 5
A171: =IF(ISBLANK(H171),"",($E$3&"."&+(COUNTA(H$4:H171)))) -> 6.23 | D171: (a) | E171: Pipeline 3m wide | H171: m | I171: 20 | L171: 6
A172: =IF(ISBLANK(H172),"",($E$3&"."&+(COUNTA(H$4:H172)))) ->  | L172: 7
A173: =IF(ISBLANK(H173),"",($E$3&"."&+(COUNTA(H$4:H173)))) ->  | C173: EXCAVATION AND BACKFILLING | L173: 8
A174: =IF(ISBLANK(H174),"",($E$3&"."&+(COUNTA(H$4:H174)))) ->  | L174: 9
A175: =IF(ISBLANK(H175),"",($E$3&"."&+(COUNTA(H$4:H175)))) ->  | C175: Excavate in all materials, backfill and compact to 90% | L175: 10
A176: =IF(ISBLANK(H176),"",($E$3&"."&+(COUNTA(H$4:H176)))) ->  | C176: mod AASHTO density, and dispose of surplus and | L176: 11
A177: =IF(ISBLANK(H177),"",($E$3&"."&+(COUNTA(H$4:H177)))) ->  | C177: unsuitable materials within the freehaul distance for | L177: 12
A178: =IF(ISBLANK(H178),"",($E$3&"."&+(COUNTA(H$4:H178)))) ->  | C178: trenches | L178: 13
A179: =IF(ISBLANK(H179),"",($E$3&"."&+(COUNTA(H$4:H179)))) ->  | L179: 14
A180: =IF(ISBLANK(H180),"",($E$3&"."&+(COUNTA(H$4:H180)))) ->  | B180: 8.3.2 | C180: .1 | D180: Up to 1m wide | L180: 15
A181: =IF(ISBLANK(H181),"",($E$3&"."&+(COUNTA(H$4:H181)))) ->  | L181: 16
A182: =IF(ISBLANK(H182),"",($E$3&"."&+(COUNTA(H$4:H182)))) -> 6.24 | D182: (a) | E182: Over 1m and up to 2m deep | H182: m³ | K182: R/O | L182: 17
A183: =IF(ISBLANK(H183),"",($E$3&"."&+(COUNTA(H$4:H183)))) ->  | L183: 18
A184: =IF(ISBLANK(H184),"",($E$3&"."&+(COUNTA(H$4:H184)))) -> 6.25 | D184: (b) | E184: Over 2m and up to 3m deep | H184: m³ | I184: =ROUNDUP((I171*1*3),0) -> 60.0 | L184: 19
A185: =IF(ISBLANK(H185),"",($E$3&"."&+(COUNTA(H$4:H185)))) ->  | L185: 20
A186: =IF(ISBLANK(H186),"",($E$3&"."&+(COUNTA(H$4:H186)))) ->  | L186: 21
A187: =IF(ISBLANK(H187),"",($E$3&"."&+(COUNTA(H$4:H187)))) ->  | B187: 8.3.2 | C187: .2 | D187: Extra over items 8.3.2 (a) for | L187: 22
A188: =IF(ISBLANK(H188),"",($E$3&"."&+(COUNTA(H$4:H188)))) ->  | L188: 23
A189: =IF(ISBLANK(H189),"",($E$3&"."&+(COUNTA(H$4:H189)))) -> 6.26 | D189: (a) | E189: Hard rock excavation | H189: m³ | I189: =I184*0.5 -> 30 | L189: 24
A190: =IF(ISBLANK(H190),"",($E$3&"."&+(COUNTA(H$4:H190)))) ->  | L190: 25
A191: =IF(ISBLANK(H191),"",($E$3&"."&+(COUNTA(H$4:H191)))) -> 6.27 | D191: (b) | E191: Hand excavation to expose existing services | H191: m³ | I191: 3 | L191: 26
A192: =IF(ISBLANK(H192),"",($E$3&"."&+(COUNTA(H$4:H192)))) ->  | L192: 27
A193: =IF(ISBLANK(H193),"",($E$3&"."&+(COUNTA(H$4:H193)))) ->  | B193: 8.3.2 | C193: .3 | D193: Excavate unsuitable material from trench bottom, | L193: 28
A194: =IF(ISBLANK(H194),"",($E$3&"."&+(COUNTA(H$4:H194)))) ->  | D194: dispose within the freehaul distance, and re-fill | L194: 29
A195: =IF(ISBLANK(H195),"",($E$3&"."&+(COUNTA(H$4:H195)))) ->  | D195: with suitable imported material compacted to | L195: 30
A196: =IF(ISBLANK(H196),"",($E$3&"."&+(COUNTA(H$4:H196)))) -> 6.28 | D196: 90% mod AASHTO density | H196: m³ | L196: 31
A197: =IF(ISBLANK(H197),"",($E$3&"."&+(COUNTA(H$4:H197)))) ->  | L197: 32
A198: =IF(ISBLANK(H198),"",($E$3&"."&+(COUNTA(H$4:H198)))) ->  | B198: 8.3.3.1 | D198: Make up deficiancy in backfill material (Provisional) | L198: 33
A199: =IF(ISBLANK(H199),"",($E$3&"."&+(COUNTA(H$4:H199)))) ->  | B199: 8.3.2 | C199: .4 | D199: Excavate from stockpile material on site and place over | L199: 34
A200: =IF(ISBLANK(H200),"",($E$3&"."&+(COUNTA(H$4:H200)))) ->  | D200: pipeline to form berm, including placement, compacting | L200: 35
... 126 more rows

Sheet 7. Medium Pipes
A1: Item | B1: Ref. | C1: Description | H1: Unit | I1: Qty | J1: Rate | K1: Amount | U1: Check | V1: Check
O2: Bypass Pipeline | P2: 140.997 | Q2: 0.3 | R2: =$P$2*IF($Q$2>2,2,$Q$2)*1 -> 42.3 | S2: =$P$2*IF($Q$2>2,$Q$2-2,0)*1 -> 0.0 | U2: =SUM(R2:S2) -> 42.3 | V2: =P2*Q2*1 -> 42.3
B3: SANS | C3: Schedule | E3: 7 | K3: =IF(I3<>0,I3*J3,"") ->  | L3: 1 | O3: Cross-connection | P3: 17.72 | Q3: =AVERAGE(1.969,1.984,2.757,) -> 1.6775 | R3: =$P$3*IF($Q$3>2,2,$Q$3)*1 -> 29.7 | S3: =$P$3*IF($Q$3>2,$Q$3-2,0)*1 -> 0.0 | U3: =SUM(R3:S3) -> 29.7 | V3: =P3*Q3*1 -> 29.7
B4: 1200 DB | C4: MEDIUM PRESSURE PIPELINES | K4: =IF(I4<>0,I4*J4,"") ->  | L4: 2 | O4: BPT Outlet | P4: 20 | Q4: =1490.5-1485.64 -> 4.86 | R4: =$P$4*IF($Q$4>2,2,$Q$4)*1 -> 40.0 | S4: =$P$4*IF($Q$4>2,$Q$4-2,0)*1 -> 57.2 | U4: =SUM(R4:S4) -> 97.2 | V4: =P4*Q4*1 -> 97.2
L5: 3 | O5: BPT Overflow | P5: 25 | Q5: =1487.5-1485.59 -> 1.91 | R5: =$P$5*IF($Q$5>2,2,$Q$5)*1 -> 47.8 | S5: =$P$5*IF($Q$5>2,$Q$5-2,0)*1 -> 0.0 | U5: =SUM(R5:S5) -> 47.8 | V5: =P5*Q5*1 -> 47.8
A6: =IF(ISBLANK(H6),"",($E$3&"."&+(COUNTA(H$3:H6)))) ->  | C6: EARTHWORKS ( PIPE TRENCHES ) | L6: 4 | O6: TOTAL | P6: =SUM(P2:P5) -> 203.717 | R6: =SUM(R2:R5) -> 159.8 | S6: 57.2
A7: =IF(ISBLANK(H7),"",($E$3&"."&+(COUNTA(H$3:H7)))) ->  | L7: 5
A8: =IF(ISBLANK(H8),"",($E$3&"."&+(COUNTA(H$3:H8)))) ->  | C8: CLEAR AND GRUB SITE | L8: 6
A9: =IF(ISBLANK(H9),"",($E$3&"."&+(COUNTA(H$3:H9)))) ->  | L9: 7
A10: =IF(ISBLANK(H10),"",($E$3&"."&+(COUNTA(H$3:H10)))) ->  | B10: 8.3.1 | C10: .1 | D10: Clear and grub strips for (where not cleared | L10: 8
A11: =IF(ISBLANK(H11),"",($E$3&"."&+(COUNTA(H$3:H11)))) ->  | D11: within other clear and grub areas) | L11: 9
A12: =IF(ISBLANK(H12),"",($E$3&"."&+(COUNTA(H$3:H12)))) ->  | L12: 10
A13: =IF(ISBLANK(H13),"",($E$3&"."&+(COUNTA(H$3:H13)))) -> 7.1 | D13: (a) | E13: Pipeline 3m wide | H13: m | I13: =ROUNDUP($P$6,0) -> 204 | L13: 11
A14: =IF(ISBLANK(H14),"",($E$3&"."&+(COUNTA(H$3:H14)))) ->  | L14: 12
A15: =IF(ISBLANK(H15),"",($E$3&"."&+(COUNTA(H$3:H15)))) ->  | C15: EXCAVATION AND BACKFILLING | L15: 13
A16: =IF(ISBLANK(H16),"",($E$3&"."&+(COUNTA(H$3:H16)))) ->  | L16: 14
A17: =IF(ISBLANK(H17),"",($E$3&"."&+(COUNTA(H$3:H17)))) ->  | C17: Excavate in all materials, backfill and compact to 90% | L17: 15
A18: =IF(ISBLANK(H18),"",($E$3&"."&+(COUNTA(H$3:H18)))) ->  | C18: mod AASHTO density, and dispose of surplus and | L18: 16
A19: =IF(ISBLANK(H19),"",($E$3&"."&+(COUNTA(H$3:H19)))) ->  | C19: unsuitable materials within the freehaul distance for | L19: 17
A20: =IF(ISBLANK(H20),"",($E$3&"."&+(COUNTA(H$3:H20)))) ->  | C20: trenches | L20: 18
A21: =IF(ISBLANK(H21),"",($E$3&"."&+(COUNTA(H$3:H21)))) ->  | L21: 19
A22: =IF(ISBLANK(H22),"",($E$3&"."&+(COUNTA(H$3:H22)))) ->  | B22: 8.3.2 | C22: .1 | D22: Up to 1m wide | L22: 20
A23: =IF(ISBLANK(H23),"",($E$3&"."&+(COUNTA(H$3:H23)))) ->  | L23: 21
A24: =IF(ISBLANK(H24),"",($E$3&"."&+(COUNTA(H$3:H24)))) -> 7.2 | D24: (a) | E24: Over 1m and up to 2m deep | H24: m³ | I24: =ROUNDUP($R$6,0) -> 160.0 | L24: 22
A25: =IF(ISBLANK(H25),"",($E$3&"."&+(COUNTA(H$3:H25)))) ->  | L25: 23
A26: =IF(ISBLANK(H26),"",($E$3&"."&+(COUNTA(H$3:H26)))) -> 7.3 | D26: (b) | E26: Over 2m and up to 3m deep | H26: m³ | I26: =ROUNDUP($S$6,0) -> 58.0 | L26: 24
A27: =IF(ISBLANK(H27),"",($E$3&"."&+(COUNTA(H$3:H27)))) ->  | L27: 25
A28: =IF(ISBLANK(H28),"",($E$3&"."&+(COUNTA(H$3:H28)))) ->  | B28: 8.3.2 | C28: .2 | D28: Over 1m and up to 2m wide | K28: =IF(I28<>0,I28*J28,"") ->  | L28: 26
A29: =IF(ISBLANK(H29),"",($E$3&"."&+(COUNTA(H$3:H29)))) ->  | L29: 27
A30: =IF(ISBLANK(H30),"",($E$3&"."&+(COUNTA(H$3:H30)))) -> 7.4 | D30: (a) | E30: Over 1m and up to 2m deep | H30: m³ | I30: 1 | K30: R/O | L30: 28
A31: =IF(ISBLANK(H31),"",($E$3&"."&+(COUNTA(H$3:H31)))) ->  | L31: 29
A32: =IF(ISBLANK(H32),"",($E$3&"."&+(COUNTA(H$3:H32)))) -> 7.5 | D32: (b) | E32: Over 2m and up to 3m deep | H32: m³ | I32: 1 | K32: R/O | L32: 30
A33: =IF(ISBLANK(H33),"",($E$3&"."&+(COUNTA(H$3:H33)))) ->  | L33: 31
A34: =IF(ISBLANK(H34),"",($E$3&"."&+(COUNTA(H$3:H34)))) ->  | B34: 8.3.2 | C34: .3 | D34: Over 2m and up to 3m wide | L34: 32
A35: =IF(ISBLANK(H35),"",($E$3&"."&+(COUNTA(H$3:H35)))) ->  | L35: 33
A36: =IF(ISBLANK(H36),"",($E$3&"."&+(COUNTA(H$3:H36)))) -> 7.6 | D36: (a) | E36: Over 1m and up to 2m deep | H36: m³ | I36: 1 | K36: R/O | L36: 34
A37: =IF(ISBLANK(H37),"",($E$3&"."&+(COUNTA(H$3:H37)))) ->  | L37: 35
A38: =IF(ISBLANK(H38),"",($E$3&"."&+(COUNTA(H$3:H38)))) -> 7.7 | D38: (b) | E38: Over 2m and up to 3m deep | H38: m³ | I38: 1 | K38: R/O | L38: 36
A39: =IF(ISBLANK(H39),"",($E$3&"."&+(COUNTA(H$3:H39)))) ->  | L39: 37
A40: =IF(ISBLANK(H40),"",($E$3&"."&+(COUNTA(H$3:H40)))) -> 7.8 | D40: (c) | E40: Over 3m and up to 4m deep | H40: m³ | I40: 1 | K40: R/O | L40: 38
A41: =IF(ISBLANK(H41),"",($E$3&"."&+(COUNTA(H$3:H41)))) ->  | L41: 39
A42: =IF(ISBLANK(H42),"",($E$3&"."&+(COUNTA(H$3:H42)))) ->  | B42: 8.3.2 | C42: .4 | D42: Extra over items 8.3.2 (a) for | L42: 40
A43: =IF(ISBLANK(H43),"",($E$3&"."&+(COUNTA(H$3:H43)))) ->  | L43: 41
A44: =IF(ISBLANK(H44),"",($E$3&"."&+(COUNTA(H$3:H44)))) -> 7.9 | D44: (a) | E44: Hard rock excavation | H44: m³ | I44: =ROUNDUP($Q$50,0) -> 63 | L44: 42
A45: =IF(ISBLANK(H45),"",($E$3&"."&+(COUNTA(H$3:H45)))) ->  | L45: 43 | N45: Hard rock excavation
A46: =IF(ISBLANK(H46),"",($E$3&"."&+(COUNTA(H$3:H46)))) -> 7.10 | D46: (b) | E46: Hand excavation to expose existing services | H46: m³ | I46: =ROUNDUP(10%*$R$6,0) -> 16 | L46: 44 | O46: Length | P46: Tench Xsection | Q46: Volume
A47: =IF(ISBLANK(H47),"",($E$3&"."&+(COUNTA(H$3:H47)))) ->  | L47: 45 | N47: Bypass | O47: 30 | P47: =1*$Q$2 -> 0.3 | Q47: =O47*P47 -> 9
A48: =IF(ISBLANK(H48),"",($E$3&"."&+(COUNTA(H$3:H48)))) ->  | B48: 8.3.2 | C48: .5 | D48: Excavate unsuitable material from trench bottom, | L48: 46 | N48: BPT Outlet | O48: =P4 -> 20 | P48: =1*1.2 -> 1.2 | Q48: =O48*P48 -> 24
A49: =IF(ISBLANK(H49),"",($E$3&"."&+(COUNTA(H$3:H49)))) ->  | D49: dispose within the freehaul distance, and re-fill | L49: 47 | N49: BPT Overflow | O49: =P5 -> 25 | P49: =1*1.2 -> 1.2 | Q49: =O49*P49 -> 30
A50: =IF(ISBLANK(H50),"",($E$3&"."&+(COUNTA(H$3:H50)))) ->  | D50: with suitable imported material compacted to | L50: 48 | P50: TOTAL | Q50: =SUM(Q47:Q49) -> 63
A51: =IF(ISBLANK(H51),"",($E$3&"."&+(COUNTA(H$3:H51)))) -> 7.11 | D51: 90% mod AASHTO density | H51: m³ | I51: =ROUNDUP(10%*$R$6,0) -> 16 | L51: 49
A52: =IF(ISBLANK(H52),"",($E$3&"."&+(COUNTA(H$3:H52)))) ->  | L52: 50
A53: =IF(ISBLANK(H53),"",($E$3&"."&+(COUNTA(H$3:H53)))) ->  | B53: 8.3.3.1 | D53: Make up deficiancy in backfill material (Provisional) | L53: 51
A54: =IF(ISBLANK(H54),"",($E$3&"."&+(COUNTA(H$3:H54)))) ->  | B54: 8.3.2 | C54: .6 | D54: Excavate from stockpile material on site and place over | L54: 52
A55: =IF(ISBLANK(H55),"",($E$3&"."&+(COUNTA(H$3:H55)))) ->  | D55: pipeline to form berm, including placement, compacting | L55: 53
A56: =IF(ISBLANK(H56),"",($E$3&"."&+(COUNTA(H$3:H56)))) -> 7.12 | D56: and shaping of embankments to 90% mod AASHTO density | H56: m³ | I56: 500 | L56: 54 | N56: Hard rock excavation
A57: =IF(ISBLANK(H57),"",($E$3&"."&+(COUNTA(H$3:H57)))) ->  | L57: 55
A58: =IF(ISBLANK(H58),"",($E$3&"."&+(COUNTA(H$3:H58)))) ->  | B58: SANS | C58: SHORING OF EXCAVATIONS | K58: =IF(I58<>0,I58*J58,"") ->  | L58: 56
A59: =IF(ISBLANK(H59),"",($E$3&"."&+(COUNTA(H$3:H59)))) ->  | B59: 1200 DB | L59: 57 | N59: Terrace filling over pipe
A60: =IF(ISBLANK(H60),"",($E$3&"."&+(COUNTA(H$3:H60)))) ->  | C60: Temporary support to sides of excavations | L60: 58 | O60: Length | P60: Terrace Xsection | Q60: Volume
A61: =IF(ISBLANK(H61),"",($E$3&"."&+(COUNTA(H$3:H61)))) ->  | L61: 59 | N61: Bypass | O61: =141-12 -> 129 | P61: =(1.6*1.6)+(1.6*1.6*0.5) -> 3.84 | Q61: =O61*P61 -> 495.36
A62: =IF(ISBLANK(H62),"",($E$3&"."&+(COUNTA(H$3:H62)))) ->  | B62: 8.3.4 | C62: .1 | D62: Shore trench opposite structure or service | L62: 60 | P62: TOTAL | Q62: =SUM(Q61:Q61) -> 495.36
A63: =IF(ISBLANK(H63),"",($E$3&"."&+(COUNTA(H$3:H63)))) ->  | L63: 61
A64: =IF(ISBLANK(H64),"",($E$3&"."&+(COUNTA(H$3:H64)))) -> 7.13 | D64: (a) | E64: Pipeline excavations (both sides) | H64: m | I64: =P6 -> 203.717 | L64: 62
A65: =IF(ISBLANK(H65),"",($E$3&"."&+(COUNTA(H$3:H65)))) ->  | L65: 63
A66: =IF(ISBLANK(H66),"",($E$3&"."&+(COUNTA(H$3:H66)))) ->  | C66: NOTE: | E66: The Contractor shall be deemed to have | L66: 64
A67: =IF(ISBLANK(H67),"",($E$3&"."&+(COUNTA(H$3:H67)))) ->  | E67: allowed for all necessary temporary works and | L67: 65
A68: =IF(ISBLANK(H68),"",($E$3&"."&+(COUNTA(H$3:H68)))) ->  | E68: shoring required to ensure excavation | L68: 66
A69: =IF(ISBLANK(H69),"",($E$3&"."&+(COUNTA(H$3:H69)))) ->  | E69: stability, including in embankment conditions. | L69: 67
A70: =IF(ISBLANK(H70),"",($E$3&"."&+(COUNTA(H$3:H70)))) ->  | L70: 68
A71: =IF(ISBLANK(H71),"",($E$3&"."&+(COUNTA(H$3:H71)))) ->  | C71: ADDITIONAL COMPACTION | L71: 69
A72: =IF(ISBLANK(H72),"",($E$3&"."&+(COUNTA(H$3:H72)))) ->  | L72: 70
A73: =IF(ISBLANK(H73),"",($E$3&"."&+(COUNTA(H$3:H73)))) ->  | B73: 8.3.3 | C73: .1 | D73: Additional compaction in road reserves | L73: 71
A74: =IF(ISBLANK(H74),"",($E$3&"."&+(COUNTA(H$3:H74)))) ->  | L74: 72
A75: =IF(ISBLANK(H75),"",($E$3&"."&+(COUNTA(H$3:H75)))) ->  | D75: (a) | E75: Additional compaction (90% compaction | L75: 73
A76: =IF(ISBLANK(H76),"",($E$3&"."&+(COUNTA(H$3:H76)))) ->  | E76: included elsewhere) to obtain 93% mod | L76: 74
A77: =IF(ISBLANK(H77),"",($E$3&"."&+(COUNTA(H$3:H77)))) -> 7.14 | E77: AASHTO density | H77: m³ | I77: 8 | L77: 75
A78: =IF(ISBLANK(H78),"",($E$3&"."&+(COUNTA(H$3:H78)))) ->  | L78: 76 | N78: Roadcrossing by pipe
J79: Carried Forward | L79: 77 | O79: Length | P79: Road Xsection | Q79: Volume
J80: Brought Forward | L80: 78
A81: =IF(ISBLANK(H81),"",($E$3&"."&+(COUNTA(H$3:H81)))) ->  | B81: SANS | C81: WORK TO EXISTING SERVICES | L81: 79
A82: =IF(ISBLANK(H82),"",($E$3&"."&+(COUNTA(H$3:H82)))) ->  | B82: 1200 L | L82: 80 | N82: Bypass | O82: 6 | P82: =(1.6*1.6*0.5) -> 1.28 | Q82: =O82*P82 -> 7.68
A83: =IF(ISBLANK(H83),"",($E$3&"."&+(COUNTA(H$3:H83)))) ->  | C83: WORK TO EXISTING PIPELINES
A84: =IF(ISBLANK(H84),"",($E$3&"."&+(COUNTA(H$3:H84)))) -> 
A85: =IF(ISBLANK(H85),"",($E$3&"."&+(COUNTA(H$3:H85)))) ->  | B85: 8.2.8 | C85: .1 | D85: Cutting into existing pipelines | L85: 1 | P85: TOTAL | Q85: =SUM(Q82:Q82) -> 7.68
A86: =IF(ISBLANK(H86),"",($E$3&"."&+(COUNTA(H$3:H86)))) ->  | L86: 2
A87: =IF(ISBLANK(H87),"",($E$3&"."&+(COUNTA(H$3:H87)))) -> 7.15 | D87: (a) | E87: Existing ND700 steel pipeline (P1) – cut-in / connection | H87: no | I87: 2 | L87: 3
L88: 4
A89: =IF(ISBLANK(H89),"",($E$3&"."&+(COUNTA(H$3:H89)))) -> 7.16 | D89: (b) | E89: Existing ND1200 steel pipeline (P2) – cut-in / connection | H89: no | I89: 1 | L89: 5
A90: =IF(ISBLANK(H90),"",($E$3&"."&+(COUNTA(H$3:H90)))) ->  | L90: 6
A91: =IF(ISBLANK(H91),"",($E$3&"."&+(COUNTA(H$3:H91)))) ->  | C91: .2 | D91: Preparation and repairs | L91: 7
A92: =IF(ISBLANK(H92),"",($E$3&"."&+(COUNTA(H$3:H92)))) ->  | L92: 8
A93: =IF(ISBLANK(H93),"",($E$3&"."&+(COUNTA(H$3:H93)))) -> 7.17 | D93: (a) | E93: Surface preparation, coating repair and wrapping to existing pipes | H93: m² | K93: R/O | L93: 9
L94: 10
A95: =IF(ISBLANK(H95),"",($E$3&"."&+(COUNTA(H$3:H95)))) -> 7.18 | D95: (b) | E95: Repair of internal cement mortar lining at cuts and joints | H95: m | K95: R/O | L95: 11
A96: =IF(ISBLANK(H96),"",($E$3&"."&+(COUNTA(H$3:H96)))) ->  | L96: 12
A97: =IF(ISBLANK(H97),"",($E$3&"."&+(COUNTA(H$3:H97)))) ->  | C97: .3 | D97: General connection item | L97: 13
A98: =IF(ISBLANK(H98),"",($E$3&"."&+(COUNTA(H$3:H98)))) ->  | L98: 14
A99: =IF(ISBLANK(H99),"",($E$3&"."&+(COUNTA(H$3:H99)))) ->  | D99: (a) | E99: Cutting into and connection to existing pipelines, including | L99: 15
A100: =IF(ISBLANK(H100),"",($E$3&"."&+(COUNTA(H$3:H100)))) -> 7.19 | E100: welding, coating, testing and reinstatement | H100: no | I100: 1 | K100: R/O | L100: 16
A101: =IF(ISBLANK(H101),"",($E$3&"."&+(COUNTA(H$3:H101)))) ->  | L101: 17
A102: =IF(ISBLANK(H102),"",($E$3&"."&+(COUNTA(H$3:H102)))) ->  | B102: SANS | C102: EXISTING SERVICES | L102: 18
A103: =IF(ISBLANK(H103),"",($E$3&"."&+(COUNTA(H$3:H103)))) ->  | B103: 1200 DB | K103: =IF(I103<>0,I103*J103,"") ->  | L103: 19
A104: =IF(ISBLANK(H104),"",($E$3&"."&+(COUNTA(H$3:H104)))) ->  | C104: Existing services that intersect or adjoin pipe trench | L104: 20
A105: =IF(ISBLANK(H105),"",($E$3&"."&+(COUNTA(H$3:H105)))) ->  | C105: excavations | K105: =IF(I105<>0,I105*J105,"") ->  | L105: 21
A106: =IF(ISBLANK(H106),"",($E$3&"."&+(COUNTA(H$3:H106)))) ->  | L106: 22
A107: =IF(ISBLANK(H107),"",($E$3&"."&+(COUNTA(H$3:H107)))) ->  | B107: 8.3.5 | C107: .1 | D107: Services that intersect a trench | L107: 23
A108: =IF(ISBLANK(H108),"",($E$3&"."&+(COUNTA(H$3:H108)))) ->  | L108: 24
A109: =IF(ISBLANK(H109),"",($E$3&"."&+(COUNTA(H$3:H109)))) -> 7.20 | D109: (a) | E109: Electric cable | H109: no | I109: 1 | K109: R/O | L109: 25
A110: =IF(ISBLANK(H110),"",($E$3&"."&+(COUNTA(H$3:H110)))) ->  | L110: 26
A111: =IF(ISBLANK(H111),"",($E$3&"."&+(COUNTA(H$3:H111)))) -> 7.21 | D111: (b) | E111: Water main exceeding 300mm diabut not 1000mm | H111: no | I111: 1 | K111: R/O | L111: 27
A112: =IF(ISBLANK(H112),"",($E$3&"."&+(COUNTA(H$3:H112)))) ->  | L112: 28
A113: =IF(ISBLANK(H113),"",($E$3&"."&+(COUNTA(H$3:H113)))) ->  | B113: 8.3.5 | C113: .2 | D113: Services that adjoin a trench | L113: 29
A114: =IF(ISBLANK(H114),"",($E$3&"."&+(COUNTA(H$3:H114)))) ->  | L114: 30
A115: =IF(ISBLANK(H115),"",($E$3&"."&+(COUNTA(H$3:H115)))) -> 7.22 | D115: (a) | E115: Electric cable | H115: m | I115: 1 | K115: R/O | L115: 31
A116: =IF(ISBLANK(H116),"",($E$3&"."&+(COUNTA(H$3:H116)))) ->  | L116: 32
A117: =IF(ISBLANK(H117),"",($E$3&"."&+(COUNTA(H$3:H117)))) -> 7.23 | D117: (b) | E117: Water main not exceeding 300mm dia | H117: m | I117: 1 | K117: R/O | L117: 33
A118: =IF(ISBLANK(H118),"",($E$3&"."&+(COUNTA(H$3:H118)))) ->  | K118: =IF(I118<>0,I118*J118,"") ->  | L118: 34
A119: =IF(ISBLANK(H119),"",($E$3&"."&+(COUNTA(H$3:H119)))) ->  | B119: SANS | C119: BEDDING (PIPES) | K119: =IF(I119<>0,I119*J119,"") ->  | L119: 35
A120: =IF(ISBLANK(H120),"",($E$3&"."&+(COUNTA(H$3:H120)))) ->  | B120: 1200 LB | L120: 36
A121: =IF(ISBLANK(H121),"",($E$3&"."&+(COUNTA(H$3:H121)))) ->  | C121: BEDDING FROM TRENCH EXCAVATIONS | L121: 37
A122: =IF(ISBLANK(H122),"",($E$3&"."&+(COUNTA(H$3:H122)))) ->  | L122: 38
A123: =IF(ISBLANK(H123),"",($E$3&"."&+(COUNTA(H$3:H123)))) ->  | B123: 8.2.1 | C123: .1 | D123: Provision of bedding material from trench excavations | L123: 39
A124: =IF(ISBLANK(H124),"",($E$3&"."&+(COUNTA(H$3:H124)))) ->  | L124: 40
A125: =IF(ISBLANK(H125),"",($E$3&"."&+(COUNTA(H$3:H125)))) -> 7.24 | D125: (a) | E125: Selected granular material | H125: m³ | I125: =ROUNDUP($R$148,0) -> 21 | K125: R/O | L125: 41
A126: =IF(ISBLANK(H126),"",($E$3&"."&+(COUNTA(H$3:H126)))) ->  | L126: 42
A127: =IF(ISBLANK(H127),"",($E$3&"."&+(COUNTA(H$3:H127)))) -> 7.25 | D127: (b) | E127: Selected fill material (sieved) | H127: m³ | I127: =ROUNDUP($R$149,0) -> 62 | K127: R/O | L127: 43
A128: =IF(ISBLANK(H128),"",($E$3&"."&+(COUNTA(H$3:H128)))) ->  | L128: 44
A129: =IF(ISBLANK(H129),"",($E$3&"."&+(COUNTA(H$3:H129)))) ->  | C129: BEDDING BY IMPORTATION | L129: 45
A130: =IF(ISBLANK(H130),"",($E$3&"."&+(COUNTA(H$3:H130)))) ->  | L130: 46
A131: =IF(ISBLANK(H131),"",($E$3&"."&+(COUNTA(H$3:H131)))) ->  | B131: 8.2.2 | C131: .1 | D131: Provision of bedding material by importation from | L131: 47
A132: =IF(ISBLANK(H132),"",($E$3&"."&+(COUNTA(H$3:H132)))) ->  | D132: other necessary excavations within the freehaul | K132: =IF(I132<>0,I132*J132,"") ->  | L132: 48
A133: =IF(ISBLANK(H133),"",($E$3&"."&+(COUNTA(H$3:H133)))) ->  | D133: distance | L133: 49
A134: =IF(ISBLANK(H134),"",($E$3&"."&+(COUNTA(H$3:H134)))) ->  | L134: 50
A135: =IF(ISBLANK(H135),"",($E$3&"."&+(COUNTA(H$3:H135)))) -> 7.26 | D135: (a) | E135: Selected granular material | H135: m³ | I135: =ROUNDUP($R$148,0) -> 21 | L135: 51
A136: =IF(ISBLANK(H136),"",($E$3&"."&+(COUNTA(H$3:H136)))) ->  | L136: 52
A137: =IF(ISBLANK(H137),"",($E$3&"."&+(COUNTA(H$3:H137)))) -> 7.27 | D137: (b) | E137: Selected fill material | H137: m³ | I137: =ROUNDUP($R$149,0) -> 62 | L137: 53
A138: =IF(ISBLANK(H138),"",($E$3&"."&+(COUNTA(H$3:H138)))) ->  | L138: 54
B139: SANS | C139: MEDIUM PRESSURE PIPELINES | L139: 55
B140: 1200 L | L140: 56
C141: STEEL PIPES | L141: 57
L142: 58
B143: 8.2.1 | C143: Supply, lay, joint, (bevel ended for fieldwelding) and bed and test | L143: 59
C144: steel water pipes | L144: 60
L145: 61 | O145: t | P145: L | Q145: W
A146: =IF(ISBLANK(H146),"",($E$3&"."&+(COUNTA(H$3:H146)))) ->  | C146: STRAIGHT STEEL PIPES | L146: 62 | N146: Granular Layer | O146: 0.1 | P146: =$P$6 -> 203.717 | Q146: 1
A147: =IF(ISBLANK(H147),"",($E$3&"."&+(COUNTA(H$3:H147)))) ->  | L147: 63 | N147: Fill Layer | O147: 0.3 | P147: =$P$6 -> 203.717 | Q147: 1 | R147: Volume
A148: =IF(ISBLANK(H148),"",($E$3&"."&+(COUNTA(H$3:H148)))) ->  | C148: Supply and deliver steel pipe with butt welded joints with | L148: 64 | Q148: TOTAL | R148: =O146*P146*Q146 -> 20.3717
A149: =IF(ISBLANK(H149),"",($E$3&"."&+(COUNTA(H$3:H149)))) ->  | C149: solvent free epoxy internal lining and 3LPE external coating | L149: 65 | R149: =O147*P147*Q147 -> 61.1151
A150: =IF(ISBLANK(H150),"",($E$3&"."&+(COUNTA(H$3:H150)))) ->  | L150: 66 | R150: =SUM(R148:R149) -> 81.4868
A151: =IF(ISBLANK(H151),"",($E$3&"."&+(COUNTA(H$3:H151)))) ->  | C151: Note: Cutting and welding of pipe mitres up to 3° | K151: =IF(I151<>0,I151*J151,"") ->  | L151: 67
A152: =IF(ISBLANK(H152),"",($E$3&"."&+(COUNTA(H$3:H152)))) ->  | C152: are included in the price for pipe installation below | L152: 68
A153: =IF(ISBLANK(H153),"",($E$3&"."&+(COUNTA(H$3:H153)))) ->  | C153: (only mitres exceeding 3° are measured elsewhere). | L153: 69
A154: =IF(ISBLANK(H154),"",($E$3&"."&+(COUNTA(H$3:H154)))) ->  | L154: 70
A155: =IF(ISBLANK(H155),"",($E$3&"."&+(COUNTA(H$3:H155)))) ->  | C155: .1 | D155: Grade X52 steel pipe (t=8mm) | L155: 71
A156: =IF(ISBLANK(H156),"",($E$3&"."&+(COUNTA(H$3:H156)))) ->  | L156: 72
A157: =IF(ISBLANK(H157),"",($E$3&"."&+(COUNTA(H$3:H157)))) -> 7.28 | D157: (a) | E157: ND700 steel pipeline (cross-connection) | H157: m | I157: =ROUNDUP($P$3,0) -> 18 | L157: 73
J158: Carried Forward | L158: 74
J159: Brought Forward | L159: 75
L160: 76
A161: =IF(ISBLANK(H161),"",($E$3&"."&+(COUNTA(H$3:H161)))) -> 7.29 | D161: (b) | E161: ND750 steel pipeline (cross-connection) | H161: m | I161: 12 | L161: 77
A162: =IF(ISBLANK(H162),"",($E$3&"."&+(COUNTA(H$3:H162)))) ->  | L162: 78
A163: =IF(ISBLANK(H163),"",($E$3&"."&+(COUNTA(H$3:H163)))) -> 7.30 | D163: (c) | E163: ND1016 mm steel pipeline (bypass pipeline) | H163: m | I163: 129 | L163: 79
A164: =IF(ISBLANK(H164),"",($E$3&"."&+(COUNTA(H$3:H164)))) ->  | L164: 80
A165: =IF(ISBLANK(H165),"",($E$3&"."&+(COUNTA(H$3:H165)))) -> 7.31 | D165: (d) | E165: ND1200 steel pipeline (downstream of BPT) | H165: m | I165: =ROUNDUP($P$4,0) -> 20
A166: =IF(ISBLANK(H166),"",($E$3&"."&+(COUNTA(H$3:H166)))) -> 
A167: =IF(ISBLANK(H167),"",($E$3&"."&+(COUNTA(H$3:H167)))) ->  | C167: Use from site, lay, joint, bed and test steel pipe with | L167: 1
A168: =IF(ISBLANK(H168),"",($E$3&"."&+(COUNTA(H$3:H168)))) ->  | C168: butt welded joints with solvent free epoxy internal lining | K168: =IF(I168<>0,I168*J168,"") ->  | L168: 2
A169: =IF(ISBLANK(H169),"",($E$3&"."&+(COUNTA(H$3:H169)))) ->  | C169: and 3LPE external coating as specified in the | L169: 3
A170: =IF(ISBLANK(H170),"",($E$3&"."&+(COUNTA(H$3:H170)))) ->  | C170: project specification including repair of internal linning | L170: 4
A171: =IF(ISBLANK(H171),"",($E$3&"."&+(COUNTA(H$3:H171)))) ->  | C171: and external coating after welding | L171: 5
A172: =IF(ISBLANK(H172),"",($E$3&"."&+(COUNTA(H$3:H172)))) ->  | L172: 6
A173: =IF(ISBLANK(H173),"",($E$3&"."&+(COUNTA(H$3:H173)))) ->  | C173: .1 | D173: Grade X52 steel pipe (t=8mm) | L173: 7
A174: =IF(ISBLANK(H174),"",($E$3&"."&+(COUNTA(H$3:H174)))) ->  | L174: 8
A175: =IF(ISBLANK(H175),"",($E$3&"."&+(COUNTA(H$3:H175)))) -> 7.32 | D175: (a) | E175: ND700 steel pipeline (cross-connection) | H175: m | I175: =ROUNDUP($P$3,0) -> 18 | L175: 9
A176: =IF(ISBLANK(H176),"",($E$3&"."&+(COUNTA(H$3:H176)))) ->  | L176: 10
A177: =IF(ISBLANK(H177),"",($E$3&"."&+(COUNTA(H$3:H177)))) -> 7.33 | D177: (b) | E177: ND750 steel pipeline (cross-connection) | H177: m | I177: 12 | L177: 11
A178: =IF(ISBLANK(H178),"",($E$3&"."&+(COUNTA(H$3:H178)))) ->  | L178: 12
A179: =IF(ISBLANK(H179),"",($E$3&"."&+(COUNTA(H$3:H179)))) -> 7.34 | D179: (c) | E179: ND1016 mm steel pipeline (bypass pipeline) | H179: m | I179: 129 | L179: 13
A180: =IF(ISBLANK(H180),"",($E$3&"."&+(COUNTA(H$3:H180)))) ->  | L180: 14
A181: =IF(ISBLANK(H181),"",($E$3&"."&+(COUNTA(H$3:H181)))) -> 7.35 | D181: (d) | E181: ND1200 steel pipeline (downstream of BPT) | H181: m | I181: =ROUNDUP($P$4,0) -> 20 | L181: 15 | M181: Calculator Tool -
A182: =IF(ISBLANK(H182),"",($E$3&"."&+(COUNTA(H$3:H182)))) ->  | L182: 16 | M182: Rate
A183: =IF(ISBLANK(H183),"",($E$3&"."&+(COUNTA(H$3:H183)))) ->  | L183: 17 | M183: 7702
A184: =IF(ISBLANK(H184),"",($E$3&"."&+(COUNTA(H$3:H184)))) ->  | C184: Extra-over item 7.28 to7.31 for cutting of the pipe and the supplying | K184: =IF(I184<>0,I184*J184,"") ->  | L184: 18
A185: =IF(ISBLANK(H185),"",($E$3&"."&+(COUNTA(H$3:H185)))) ->  | C185: and fixing of rated flanges including installation and making good | L185: 19 | M185: 8079
A186: =IF(ISBLANK(H186),"",($E$3&"."&+(COUNTA(H$3:H186)))) ->  | C186: for the protection against corrosion | L186: 20
A187: =IF(ISBLANK(H187),"",($E$3&"."&+(COUNTA(H$3:H187)))) ->  | L187: 21 | M187: 12355
A188: =IF(ISBLANK(H188),"",($E$3&"."&+(COUNTA(H$3:H188)))) ->  | C188: .2 | D188: For all grades of steel pipes | L188: 22
A189: =IF(ISBLANK(H189),"",($E$3&"."&+(COUNTA(H$3:H189)))) ->  | L189: 23 | M189: 15061
A190: =IF(ISBLANK(H190),"",($E$3&"."&+(COUNTA(H$3:H190)))) -> 7.36 | D190: (a) | E190: ND700 steel pipeline (cross-connection) | H190: no | I190: 3 | L190: 24
A191: =IF(ISBLANK(H191),"",($E$3&"."&+(COUNTA(H$3:H191)))) ->  | L191: 25
A192: =IF(ISBLANK(H192),"",($E$3&"."&+(COUNTA(H$3:H192)))) -> 7.37 | D192: (b) | E192: ND750 steel pipeline (cross-connection) | H192: no | I192: 2 | L192: 26
A193: =IF(ISBLANK(H193),"",($E$3&"."&+(COUNTA(H$3:H193)))) ->  | L193: 27
A194: =IF(ISBLANK(H194),"",($E$3&"."&+(COUNTA(H$3:H194)))) -> 7.38 | D194: (c) | E194: ND1016 mm steel pipeline (bypass pipeline) | H194: no | I194: 2 | L194: 28
A195: =IF(ISBLANK(H195),"",($E$3&"."&+(COUNTA(H$3:H195)))) ->  | L195: 29
A196: =IF(ISBLANK(H196),"",($E$3&"."&+(COUNTA(H$3:H196)))) -> 7.39 | D196: (d) | E196: ND1200 steel pipeline (downstream of BPT) | H196: no | I196: 2 | L196: 30
A197: =IF(ISBLANK(H197),"",($E$3&"."&+(COUNTA(H$3:H197)))) ->  | L197: 31
A198: =IF(ISBLANK(H198),"",($E$3&"."&+(COUNTA(H$3:H198)))) ->  | C198: PIPE BENDS AND SPECIALS | L198: 32
A199: =IF(ISBLANK(H199),"",($E$3&"."&+(COUNTA(H$3:H199)))) ->  | C199: All pipe specials to be lined and coated with solvent free epoxy | L199: 33
A200: =IF(ISBLANK(H200),"",($E$3&"."&+(COUNTA(H$3:H200)))) ->  | C200: and taped wrapped as per as per Particular Specification PLQ. | K200: =IF(I200<>0,I200*J200,"") ->  | L200: 34
... 291 more rows

Sheet 8. Earthworks
A1: Item | B1: Ref. | C1: Description | H1: Unit | I1: Qty | J1: Rate | K1: Amount
A3: =IF(ISBLANK(H3),"",($E$3&"."&+(COUNTA(H3:H$3)))) ->  | C3: Schedule | E3: 8 | K3: =IF(I3<>0,I3*J3,"") ->  | M3: 1
A4: =IF(ISBLANK(H4),"",($E$3&"."&+(COUNTA(H$3:H4)))) ->  | C4: EARTHWORKS (ACCESS ROADS & DIVERSION) | K4: =IF(I4<>0,I4*J4,"") ->  | M4: 2
K5: =IF(I5<>0,I5*J5,"") ->  | M5: 3
B6: SANS | C6: ACCESS ROAD, TEMPORARY DIVERSION AND CROSSING WORKS | M6: 4
B7: 1200 C | K7: =IF(I7<>0,I7*J7,"") ->  | M7: 5
A8: =IF(ISBLANK(H8),"",($E$3&"."&+(COUNTA(H$3:H8)))) ->  | C8: .1 | D8: Clear and grub | M8: 6
A9: =IF(ISBLANK(H9),"",($E$3&"."&+(COUNTA(H$3:H9)))) ->  | M9: 7
A10: =IF(ISBLANK(H10),"",($E$3&"."&+(COUNTA(H$3:H10)))) ->  | B10: 8.2.1 | D10: (a) | E10: Clear and grub areas for temporary access | M10: 8
A11: =IF(ISBLANK(H11),"",($E$3&"."&+(COUNTA(H$3:H11)))) -> 8.1 | E11: tracks and deviations | H11: m² | I11: =300*3 -> 900 | M11: 9
M12: 10
A13: =IF(ISBLANK(H13),"",($E$3&"."&+(COUNTA(H$3:H13)))) ->  | B13: 8.2.2 | C13: .2 | D13: Remove and grub trees and tree stumps | M13: 11
A14: =IF(ISBLANK(H14),"",($E$3&"."&+(COUNTA(H$3:H14)))) ->  | M14: 12
A15: =IF(ISBLANK(H15),"",($E$3&"."&+(COUNTA(H$3:H15)))) -> 8.2 | D15: (a) | E15: Exceeding 300 mm girth up to 1 m girth | H15: no | I15: 15 | M15: 13
A16: =IF(ISBLANK(H16),"",($E$3&"."&+(COUNTA(H$3:H16)))) ->  | M16: 14
A17: =IF(ISBLANK(H17),"",($E$3&"."&+(COUNTA(H$3:H17)))) -> 8.3 | D17: (b) | E17: Exceeding 1 m girth and up to 2 m girth | H17: no | I17: 10 | M17: 15
A18: =IF(ISBLANK(H18),"",($E$3&"."&+(COUNTA(H$3:H18)))) ->  | M18: 16
A19: =IF(ISBLANK(H19),"",($E$3&"."&+(COUNTA(H$3:H19)))) ->  | C19: NOTE: | E19: Rates for tree removal shall include cutting, | M19: 17
A20: =IF(ISBLANK(H20),"",($E$3&"."&+(COUNTA(H$3:H20)))) ->  | E20: grubbing of roots, backfilling, compaction | M20: 18
A21: =IF(ISBLANK(H21),"",($E$3&"."&+(COUNTA(H$3:H21)))) ->  | E21: and disposal of material off site. | M21: 19
A22: =IF(ISBLANK(H22),"",($E$3&"."&+(COUNTA(H$3:H22)))) ->  | M22: 20
A23: =IF(ISBLANK(H23),"",($E$3&"."&+(COUNTA(H$3:H23)))) ->  | C23: .3 | D23: Disposal of vegetation | M23: 21
A24: =IF(ISBLANK(H24),"",($E$3&"."&+(COUNTA(H$3:H24)))) ->  | M24: 22
A25: =IF(ISBLANK(H25),"",($E$3&"."&+(COUNTA(H$3:H25)))) ->  | D25: (a) | E25: Disposal of cleared vegetation, trees and stumps off | M25: 23
A26: =IF(ISBLANK(H26),"",($E$3&"."&+(COUNTA(H$3:H26)))) -> 8.4 | E26: site or at an approved area | H26: sum | I26: 1 | M26: 24
A27: =IF(ISBLANK(H27),"",($E$3&"."&+(COUNTA(H$3:H27)))) ->  | M27: 25
A28: =IF(ISBLANK(H28),"",($E$3&"."&+(COUNTA(H$3:H28)))) ->  | B28: SANS | C28: EARTHWORKS (ACCESS ROADS/TRACKS) | M28: 26
A29: =IF(ISBLANK(H29),"",($E$3&"."&+(COUNTA(H$3:H29)))) ->  | B29: 1200 DM | M29: 27
A30: =IF(ISBLANK(H30),"",($E$3&"."&+(COUNTA(H$3:H30)))) ->  | C30: .1 | D30: Formation of tracks | M30: 28
A31: =IF(ISBLANK(H31),"",($E$3&"."&+(COUNTA(H$3:H31)))) ->  | M31: 29
A32: =IF(ISBLANK(H32),"",($E$3&"."&+(COUNTA(H$3:H32)))) ->  | B32: 8.3.3 | D32: (a) | E32: Shape and prepare formation for access tracks | M32: 30
A33: =IF(ISBLANK(H33),"",($E$3&"."&+(COUNTA(H$3:H33)))) -> 8.5 | E33: including trimming and compaction | H33: m² | I33: =2*300 -> 600 | M33: 31
A34: =IF(ISBLANK(H34),"",($E$3&"."&+(COUNTA(H$3:H34)))) ->  | M34: 32
A35: =IF(ISBLANK(H35),"",($E$3&"."&+(COUNTA(H$3:H35)))) ->  | B35: 8.3.4 | C35: .2 | D35: Localised cut to fill to form access tracks | M35: 33
A36: =IF(ISBLANK(H36),"",($E$3&"."&+(COUNTA(H$3:H36)))) ->  | M36: 34
A37: =IF(ISBLANK(H37),"",($E$3&"."&+(COUNTA(H$3:H37)))) -> 8.6 | D37: (a) | E37: Compacted to 90% mod AASHTO density | H37: m³ | I37: 150 | M37: 35
A38: =IF(ISBLANK(H38),"",($E$3&"."&+(COUNTA(H$3:H38)))) ->  | M38: 36
A39: =IF(ISBLANK(H39),"",($E$3&"."&+(COUNTA(H$3:H39)))) ->  | C39: .3 | D39: Removal of unsafe material | K39: =IF(I39<>0,I39*J39,"") ->  | M39: 37
A40: =IF(ISBLANK(H40),"",($E$3&"."&+(COUNTA(H$3:H40)))) ->  | M40: 38
A41: =IF(ISBLANK(H41),"",($E$3&"."&+(COUNTA(H$3:H41)))) -> 8.7 | B41: 8.3.7 | D41: (a) | E41: Excavate and dispose unsuitable material | H41: m³ | I41: 100 | M41: 39
A42: =IF(ISBLANK(H42),"",($E$3&"."&+(COUNTA(H$3:H42)))) ->  | M42: 40
A43: =IF(ISBLANK(H43),"",($E$3&"."&+(COUNTA(H$3:H43)))) ->  | C43: .4 | D43: Selected gravel | M43: 41
A44: =IF(ISBLANK(H44),"",($E$3&"."&+(COUNTA(H$3:H44)))) ->  | B44: 8.3.4 | M44: 42
A45: =IF(ISBLANK(H45),"",($E$3&"."&+(COUNTA(H$3:H45)))) -> 8.8 | D45: (a) | E45: Provide selected gravel material for access | H45: m³ | I45: 150 | M45: 43
A46: =IF(ISBLANK(H46),"",($E$3&"."&+(COUNTA(H$3:H46)))) ->  | E46: tracks from on-site or imported sources | K46: =IF(I46<>0,I46*J46,"") ->  | M46: 44
A47: =IF(ISBLANK(H47),"",($E$3&"."&+(COUNTA(H$3:H47)))) ->  | M47: 45
A48: =IF(ISBLANK(H48),"",($E$3&"."&+(COUNTA(H$3:H48)))) ->  | C48: TEMPORARY ACCESS MANAGEMENT | M48: 46
A49: =IF(ISBLANK(H49),"",($E$3&"."&+(COUNTA(H$3:H49)))) ->  | M49: 47
A50: =IF(ISBLANK(H50),"",($E$3&"."&+(COUNTA(H$3:H50)))) ->  | C50: .1 | D50: Management of tracks | M50: 48
A51: =IF(ISBLANK(H51),"",($E$3&"."&+(COUNTA(H$3:H51)))) ->  | M51: 49
A52: =IF(ISBLANK(H52),"",($E$3&"."&+(COUNTA(H$3:H52)))) ->  | D52: (a) | E52: Maintain access tracks including grading and | M52: 50
A53: =IF(ISBLANK(H53),"",($E$3&"."&+(COUNTA(H$3:H53)))) -> 8.9 | E53: repair for the duration of construction | H53: month | I53: 12 | M53: 51
A54: =IF(ISBLANK(H54),"",($E$3&"."&+(COUNTA(H$3:H54)))) ->  | M54: 52
A55: =IF(ISBLANK(H55),"",($E$3&"."&+(COUNTA(H$3:H55)))) ->  | C55: .2 | D55: Relocation of tracks | M55: 53
A56: =IF(ISBLANK(H56),"",($E$3&"."&+(COUNTA(H$3:H56)))) ->  | M56: 54
A57: =IF(ISBLANK(H57),"",($E$3&"."&+(COUNTA(H$3:H57)))) ->  | D57: (a) | E57: Allow for relocation and regrading of access tracks | M57: 55
A58: =IF(ISBLANK(H58),"",($E$3&"."&+(COUNTA(H$3:H58)))) -> 8.10 | E58: as construction progresses (by instruction of Engineer only) | H58: sum | I58: 1 | M58: 56
M59: 57
A60: =IF(ISBLANK(H60),"",($E$3&"."&+(COUNTA(H$3:H60)))) ->  | C60: PIPELINE ROAD CROSSING | M60: 58
A61: =IF(ISBLANK(H61),"",($E$3&"."&+(COUNTA(H$3:H61)))) ->  | M61: 59
A62: =IF(ISBLANK(H62),"",($E$3&"."&+(COUNTA(H$3:H62)))) ->  | B62: SANS | C62: EXCAVATION | M62: 60
A63: =IF(ISBLANK(H63),"",($E$3&"."&+(COUNTA(H$3:H63)))) ->  | B63: 1200 DB | M63: 61
A64: =IF(ISBLANK(H64),"",($E$3&"."&+(COUNTA(H$3:H64)))) -> 8.11 | B64: 8.3.2 | C64: .1 | D64: Excavate trench for pipeline crossing under | H64: m³ | I64: =ROUNDUP(P79,0) -> 4 | M64: 62
A65: =IF(ISBLANK(H65),"",($E$3&"."&+(COUNTA(H$3:H65)))) ->  | D65: access track | M65: 63
A66: =IF(ISBLANK(H66),"",($E$3&"."&+(COUNTA(H$3:H66)))) ->  | M66: 64
A67: =IF(ISBLANK(H67),"",($E$3&"."&+(COUNTA(H$3:H67)))) ->  | B67: SANS | C67: BEDDING | M67: 65
A68: =IF(ISBLANK(H68),"",($E$3&"."&+(COUNTA(H$3:H68)))) ->  | B68: 1200 LB | M68: 66
A69: =IF(ISBLANK(H69),"",($E$3&"."&+(COUNTA(H$3:H69)))) -> 8.12 | B69: 8.2.1 | C69: .1 | D69: Provide selected granular bedding material to pipeline | H69: m³ | I69: =$P$76*$P$77*0.2 -> 1.2 | M69: 67
M70: 68
A71: =IF(ISBLANK(H71),"",($E$3&"."&+(COUNTA(H$3:H71)))) ->  | B71: SANS | C71: CONCRETE ENCASEMENT | M71: 69
A72: =IF(ISBLANK(H72),"",($E$3&"."&+(COUNTA(H$3:H72)))) ->  | B72: 1200 G | K72: =IF(I72<>0,I72*J72,"") ->  | M72: 70
A73: =IF(ISBLANK(H73),"",($E$3&"."&+(COUNTA(H$3:H73)))) -> 8.13 | C73: .1 | D73: Concrete encasement to pipeline from CH 7.374 | H73: m³ | I73: =$P$76*$P$77*1 -> 6 | M73: 71
A74: =IF(ISBLANK(H74),"",($E$3&"."&+(COUNTA(H$3:H74)))) ->  | D74: to CH 13.374 of bypass pipeline complete | M74: 72
A75: =IF(ISBLANK(H75),"",($E$3&"."&+(COUNTA(H$3:H75)))) ->  | M75: 73
A76: =IF(ISBLANK(H76),"",($E$3&"."&+(COUNTA(H$3:H76)))) ->  | C76: TEMPORARY ACCESS DURING CROSSING | M76: 74 | O76: Length | P76: =13.374-7.374 -> 6
A77: =IF(ISBLANK(H77),"",($E$3&"."&+(COUNTA(H$3:H77)))) ->  | M77: 75 | O77: Width | P77: 1
A78: =IF(ISBLANK(H78),"",($E$3&"."&+(COUNTA(H$3:H78)))) ->  | C78: .1 | D78: Provide temporary deviation during crossing | M78: 76 | O78: Depth | P78: 0.6
A79: =IF(ISBLANK(H79),"",($E$3&"."&+(COUNTA(H$3:H79)))) -> 8.14 | D79: construction | H79: SUM | I79: 1 | M79: 77 | O79: VOLUME | P79: =P76*P77*P78 -> 3.6
J80: Carried Forward | M80: 78
J81: Brought Forward | M81: 79
A82: =IF(ISBLANK(H82),"",($E$3&"."&+(COUNTA(H$3:H82)))) ->  | M82: 80
A83: =IF(ISBLANK(H83),"",($E$3&"."&+(COUNTA(H$3:H83)))) ->  | B83: SANS | C83: REINSTATEMENT
A84: =IF(ISBLANK(H84),"",($E$3&"."&+(COUNTA(H$3:H84)))) ->  | B84: 1200 DM
A85: =IF(ISBLANK(H85),"",($E$3&"."&+(COUNTA(H$3:H85)))) ->  | C85: .1 | D85: Remove temporary tracks | M85: 1
A86: =IF(ISBLANK(H86),"",($E$3&"."&+(COUNTA(H$3:H86)))) ->  | M86: 2
A87: =IF(ISBLANK(H87),"",($E$3&"."&+(COUNTA(H$3:H87)))) -> 8.15 | D87: (a) | E87: Scarify and remove temporary access tracks | H87: m² | I87: =I33 -> 600 | M87: 3
A88: =IF(ISBLANK(H88),"",($E$3&"."&+(COUNTA(H$3:H88)))) ->  | M88: 4
A89: =IF(ISBLANK(H89),"",($E$3&"."&+(COUNTA(H$3:H89)))) ->  | C89: .2 | D89: Reinstate original condition | M89: 5
A90: =IF(ISBLANK(H90),"",($E$3&"."&+(COUNTA(H$3:H90)))) ->  | M90: 6
A91: =IF(ISBLANK(H91),"",($E$3&"."&+(COUNTA(H$3:H91)))) -> 8.16 | D91: (a) | E91: Reinstate ground and access tracks to original | H91: m² | I91: =I33 -> 600 | M91: 7
A92: =IF(ISBLANK(H92),"",($E$3&"."&+(COUNTA(H$3:H92)))) ->  | E92: condition | M92: 8
M93: 9
M94: 10
M95: 11
M96: 12
M97: 13
M98: 14
M99: 15
M100: 16
M101: 17
M102: 18
M103: 19
M104: 20
M105: 21
M106: 22
M107: 23
M108: 24
M109: 25
M110: 26
M111: 27
M112: 28
M113: 29
M114: 30
M115: 31
M116: 32
M117: 33
M118: 34
M119: 35
M120: 36
M121: 37
M122: 38
M123: 39
M124: 40
M125: 41
M126: 42
M127: 43
M128: 44
M129: 45
M130: 46
M131: 47
M132: 48
M133: 49
M134: 50
M135: 51
M136: 52
M137: 53
M138: 54
M139: 55
M140: 56
M141: 57
M142: 58
M143: 59
M144: 60
M145: 61
M146: 62
M147: 63
M148: 64
M149: 65
M150: 66
M151: 67
M152: 68
A153: =IF(ISBLANK(H153),"",($E$3&"."&+(COUNTA(H$3:H153)))) ->  | M153: 69
A154: =IF(ISBLANK(H154),"",($E$3&"."&+(COUNTA(H$3:H154)))) ->  | C154: =C3 -> Schedule | E154: =E3 -> 8 | M154: 70
A155: =IF(ISBLANK(H155),"",($E$3&"."&+(COUNTA(H$3:H155)))) ->  | C155: =C6 -> ACCESS ROAD, TEMPORARY DIVERSION AND CROSSING WORKS | M155: 71
A156: =IF(ISBLANK(H156),"",($E$3&"."&+(COUNTA(H$3:H156)))) ->  | M156: 72
C157: Carried forward to Summary of Bills | J157: Total | M157: 73
M158: 74
M159: 75
M160: 76
M161: 77
M162: 78
M163: 79
M164: 80

Sheet 9. Joint Sealing
A1: Item | B1: Ref | C1: Description | H1: Unit | I1: Qty | J1: Rate | K1: Amount
B3: PSJS | C3: Schedule | E3: 9 | M3: 1
C4: JOINT SEALING | M4: 2
M5: 3
C6: EXPANSION JOINTS | M6: 4
M7: 5
A8: =IF(ISBLANK(H8),"",($E$3&"."&+(COUNTA(H$3:H7)))) ->  | B8: 4.2 | C8: .1 | D8: Cleaning of surfaces | M8: 6
A9: =IF(ISBLANK(H9),"",($E$3&"."&+(COUNTA(H$3:H8)))) ->  | M9: 7
A10: =IF(ISBLANK(H10),"",($E$3&"."&+(COUNTA(H$3:H10)))) -> 9.1 | B10: 5.1.1 a) | D10: (a) | E10: Concrete surfaces on floor | H10: m2 | I10: 500 | M10: 8
A11: =IF(ISBLANK(H11),"",($E$3&"."&+(COUNTA(H$3:H11)))) ->  | M11: 9
A12: =IF(ISBLANK(H12),"",($E$3&"."&+(COUNTA(H$3:H12)))) -> 9.2 | B12: 5.1.1 a) | D12: (b) | E12: Concrete surfaces on walls | H12: m2 | I12: 35 | M12: 10
A13: =IF(ISBLANK(H13),"",($E$3&"."&+(COUNTA(H$3:H13)))) ->  | M13: 11
A14: =IF(ISBLANK(H14),"",($E$3&"."&+(COUNTA(H$3:H14)))) -> 9.3 | B14: 5.1.1 b) | D14: (c) | E14: Steel surfaces on any plane and angle | H14: m2 | I14: 10 | M14: 12
A15: =IF(ISBLANK(H15),"",($E$3&"."&+(COUNTA(H$3:H15)))) ->  | M15: 13
A16: =IF(ISBLANK(H16),"",($E$3&"."&+(COUNTA(H$3:H16)))) ->  | B16: 4.3 | C16: .2 | D16: Joint Sealing (Sika range or similar approved) | M16: 14
A17: =IF(ISBLANK(H17),"",($E$3&"."&+(COUNTA(H$3:H17)))) ->  | M17: 15
A18: =IF(ISBLANK(H18),"",($E$3&"."&+(COUNTA(H$3:H18)))) -> 9.4 | B18: 5.2.1 a) | D18: (a) | E18: Sikadur - Combiflex® SG System complete | H18: m | I18: 1375 | M18: 16
A19: =IF(ISBLANK(H19),"",($E$3&"."&+(COUNTA(H$3:H19)))) ->  | E19: (250mm wide, 2mm thick) | M19: 17
A20: =IF(ISBLANK(H20),"",($E$3&"."&+(COUNTA(H$3:H20)))) ->  | E20: (on floor) | M20: 18
A21: =IF(ISBLANK(H21),"",($E$3&"."&+(COUNTA(H$3:H21)))) ->  | M21: 19
A22: =IF(ISBLANK(H22),"",($E$3&"."&+(COUNTA(H$3:H22)))) -> 9.5 | B22: 5.2.1 a) | D22: (b) | E22: Sikadur - Combiflex® SG System complete | H22: m | I22: 100 | M22: 20
A23: =IF(ISBLANK(H23),"",($E$3&"."&+(COUNTA(H$3:H23)))) ->  | E23: (250mm wide, 2mm thick) | M23: 21
A24: =IF(ISBLANK(H24),"",($E$3&"."&+(COUNTA(H$3:H24)))) ->  | E24: (on walls) | M24: 22
A25: =IF(ISBLANK(H25),"",($E$3&"."&+(COUNTA(H$3:H25)))) ->  | M25: 23
A26: =IF(ISBLANK(H26),"",($E$3&"."&+(COUNTA(H$3:H26)))) -> 9.6 | B26: 5.2.1 a) | D26: (c) | E26: Sikadur - Combiflex® SG System complete | H26: m | K26: R/O | M26: 24
A27: =IF(ISBLANK(H27),"",($E$3&"."&+(COUNTA(H$3:H27)))) ->  | E27: (250mm wide, 2mm thick) | M27: 25
A28: =IF(ISBLANK(H28),"",($E$3&"."&+(COUNTA(H$3:H28)))) ->  | E28: (on wall/floor joints) | M28: 26
A29: =IF(ISBLANK(H29),"",($E$3&"."&+(COUNTA(H$3:H29)))) ->  | M29: 27
A30: =IF(ISBLANK(H30),"",($E$3&"."&+(COUNTA(H$3:H30)))) -> 9.7 | B30: 5.2.1 b) | D30: (d) | E30: Thermal joint welding | H30: No | I30: =SUM(I18:I22)/25 -> 59 | M30: 28
A31: =IF(ISBLANK(H31),"",($E$3&"."&+(COUNTA(H$3:H31)))) ->  | M31: 29
A32: =IF(ISBLANK(H32),"",($E$3&"."&+(COUNTA(H$3:H32)))) ->  | B32: 3.3 | C32: .3 | D32: Waterstopping through cracks and joints (Sika range or similar approved) | M32: 30
A33: =IF(ISBLANK(H33),"",($E$3&"."&+(COUNTA(H$3:H33)))) ->  | M33: 31
A34: =IF(ISBLANK(H34),"",($E$3&"."&+(COUNTA(H$3:H34)))) -> 9.8 | B34: 5.3.1 a) | D34: (a) | E34: Temporary waterstopping with injected | H34: m | I34: 10 | M34: 32
A35: =IF(ISBLANK(H35),"",($E$3&"."&+(COUNTA(H$3:H35)))) ->  | E35: Sika® Injection - 101 RC | M35: 33
A36: =IF(ISBLANK(H36),"",($E$3&"."&+(COUNTA(H$3:H36)))) ->  | M36: 34
A37: =IF(ISBLANK(H37),"",($E$3&"."&+(COUNTA(H$3:H37)))) -> 9.9 | B37: 5.3.1 b) | D37: (b) | E37: Perminant waterstopping with injected | H37: m | I37: 10 | M37: 35
A38: =IF(ISBLANK(H38),"",($E$3&"."&+(COUNTA(H$3:H38)))) ->  | E38: Sika® Injection - 203 | M38: 36
A39: =IF(ISBLANK(H39),"",($E$3&"."&+(COUNTA(H$3:H39)))) ->  | M39: 37
A40: =IF(ISBLANK(H40),"",($E$3&"."&+(COUNTA(H$3:H40)))) ->  | B40: PSG | C40: REFILL AND TESTING PHASE | K40: =IF(ISBLANK($I40),"",J40*$I40) ->  | M40: 38
A41: =IF(ISBLANK(H41),"",($E$3&"."&+(COUNTA(H$3:H41)))) ->  | B41: 8.12 | C41: Facilitate & monitor refilling of reservoir (Water supplied free) | M41: 39
A42: =IF(ISBLANK(H42),"",($E$3&"."&+(COUNTA(H$3:H42)))) ->  | C42: .1 | D42: For each reservoir compartment: | M42: 40
A43: =IF(ISBLANK(H43),"",($E$3&"."&+(COUNTA(H$3:H43)))) ->  | M43: 41
A44: =IF(ISBLANK(H44),"",($E$3&"."&+(COUNTA(H$3:H44)))) -> 9.10 | D44: (a) | E44: 65 Mℓ reservoir compartment 1 | H44: sum | I44: 1 | M44: 42
M45: 43
A46: =IF(ISBLANK(H46),"",($E$3&"."&+(COUNTA(H$3:H46)))) -> 9.11 | D46: (b) | E46: 65 Mℓ reservoir compartment 2 | H46: sum | I46: 1 | M46: 44
A47: =IF(ISBLANK(H47),"",($E$3&"."&+(COUNTA(H$3:H47)))) ->  | M47: 45
A48: =IF(ISBLANK(H48),"",($E$3&"."&+(COUNTA(H$3:H48)))) ->  | C48: Test water quality post-filling of the reservoir | M48: 46
A49: =IF(ISBLANK(H49),"",($E$3&"."&+(COUNTA(H$3:H49)))) ->  | C49: .2 | D49: For each reservoir: | M49: 47
A50: =IF(ISBLANK(H50),"",($E$3&"."&+(COUNTA(H$3:H50)))) -> 9.12 | D50: (a) | E50: 65 Mℓ reservoir compartment 1 | H50: sum | I50: 1 | M50: 48
M51: 49
A52: =IF(ISBLANK(H52),"",($E$3&"."&+(COUNTA(H$3:H52)))) -> 9.13 | D52: (b) | E52: 65 Mℓ reservoir compartment 2 | H52: sum | I52: 1 | M52: 50
A53: =IF(ISBLANK(H53),"",($E$3&"."&+(COUNTA(H$3:H53)))) ->  | M53: 51
A54: =IF(ISBLANK(H54),"",($E$3&"."&+(COUNTA(H$3:H54)))) ->  | C54: Facilitate and monitor water level drop test | M54: 52
A55: =IF(ISBLANK(H55),"",($E$3&"."&+(COUNTA(H$3:H55)))) ->  | C55: .3 | D55: For each reservoir: | M55: 53
A56: =IF(ISBLANK(H56),"",($E$3&"."&+(COUNTA(H$3:H56)))) -> 9.14 | D56: (a) | E56: 65 Mℓ reservoir compartment 1 | H56: sum | I56: 1 | M56: 54
M57: 55
A58: =IF(ISBLANK(H58),"",($E$3&"."&+(COUNTA(H$3:H58)))) -> 9.15 | D58: (b) | E58: 65 Mℓ reservoir compartment 2 | H58: sum | I58: 1 | M58: 56
M59: 57
A60: =IF(ISBLANK(H60),"",($E$3&"."&+(COUNTA(H$3:H60)))) ->  | C60: SUNDRIES | M60: 58
A61: =IF(ISBLANK(H61),"",($E$3&"."&+(COUNTA(H$3:H61)))) ->  | M61: 59
A62: =IF(ISBLANK(H62),"",($E$3&"."&+(COUNTA(H$3:H62)))) ->  | C62: Access Ladders | M62: 60
A63: =IF(ISBLANK(H63),"",($E$3&"."&+(COUNTA(H$3:H63)))) ->  | M63: 61
A64: =IF(ISBLANK(H64),"",($E$3&"."&+(COUNTA(H$3:H64)))) ->  | C64: .1 | D64: Stainless steel internal vertical access ladder | M64: 62
A65: =IF(ISBLANK(H65),"",($E$3&"."&+(COUNTA(H$3:H65)))) ->  | D65: (cat ladder) inside Reservoir | M65: 63
A66: =IF(ISBLANK(H66),"",($E$3&"."&+(COUNTA(H$3:H66)))) ->  | D66: manufactured from Grade 304 (minimum) stainless steel, | M66: 64
A67: =IF(ISBLANK(H67),"",($E$3&"."&+(COUNTA(H$3:H67)))) ->  | D67: including brackets and fixings, installed complete | M67: 65
A68: =IF(ISBLANK(H68),"",($E$3&"."&+(COUNTA(H$3:H68)))) -> 9.16 | D68: (a) | E68: 9400 mm Height | H68: no | I68: 4 | M68: 66
A69: =IF(ISBLANK(H69),"",($E$3&"."&+(COUNTA(H$3:H69)))) ->  | M69: 67
A70: =IF(ISBLANK(H70),"",($E$3&"."&+(COUNTA(H$3:H70)))) ->  | D70: ALTERNATIVE | M70: 68
A71: =IF(ISBLANK(H71),"",($E$3&"."&+(COUNTA(H$3:H71)))) ->  | M71: 69
A72: =IF(ISBLANK(H72),"",($E$3&"."&+(COUNTA(H$3:H72)))) ->  | C72: .2 | D72: Aluminium internal vertical access ladder | M72: 70
A73: =IF(ISBLANK(H73),"",($E$3&"."&+(COUNTA(H$3:H73)))) ->  | D73: inside Reservoir with safety cage | K73: =IF(ISBLANK($I73),"",J73*$I73) ->  | M73: 71
A74: =IF(ISBLANK(H74),"",($E$3&"."&+(COUNTA(H$3:H74)))) ->  | D74: including brackets and fixings, installed complete | M74: 72
A75: =IF(ISBLANK(H75),"",($E$3&"."&+(COUNTA(H$3:H75)))) -> 9.17 | D75: (a) | E75: 9400 mm Height | H75: no | I75: 4 | K75: R/O | M75: 73
M76: 74
A77: =IF(ISBLANK(H77),"",($E$3&"."&+(COUNTA(H$3:H77)))) ->  | C77: =C3 -> Schedule | E77: =E3 -> 9 | M77: 75
A78: =IF(ISBLANK(H78),"",($E$3&"."&+(COUNTA(H$3:H78)))) ->  | C78: =C4 -> JOINT SEALING | M78: 76
C79: Carried forward to Summary of Bills | J79: Total | M79: 77
M80: 78
M81: 79

Sheet 10. Spoil Repair
A1: Item | B1: Ref | C1: Description | H1: Unit | I1: Qty | J1: Rate | K1: Amount
B3: PSG | C3: Schedule | E3: 10 | M3: 1
C4: CONCRETE SPOIL REPAIR | M4: 2
M5: 3
C6: .1 | D6: Pressure wash all concrete surfaces to remove loose material and | M6: 4
D7: leave an open pore structure, including removal of waste from reservoir | M7: 5
A8: =IF(ISBLANK(H8),"",($E$3&"."&+(COUNTA(H$3:H8)))) ->  | M8: 6
A9: =IF(ISBLANK(H9),"",($E$3&"."&+(COUNTA(H$3:H9)))) -> 10.1 | D9: (a) | E9: Floor and inclined surfaces less than 45 degrees | H9: m2 | I9: 24500 | M9: 7
A10: =IF(ISBLANK(H10),"",($E$3&"."&+(COUNTA(H$3:H10)))) ->  | M10: 8
A11: =IF(ISBLANK(H11),"",($E$3&"."&+(COUNTA(H$3:H11)))) -> 10.2 | D11: (b) | E11: Walls/Inclined surfaces from 45 degrees and greater | H11: m2 | I11: 6600 | M11: 9
A12: =IF(ISBLANK(H12),"",($E$3&"."&+(COUNTA(H$3:H12)))) ->  | M12: 10
A13: =IF(ISBLANK(H13),"",($E$3&"."&+(COUNTA(H$3:H13)))) -> 10.3 | D13: (c) | E13: Roof Soffit | H13: m2 | I13: 25000 | M13: 11
A14: =IF(ISBLANK(H14),"",($E$3&"."&+(COUNTA(H$3:H14)))) ->  | M14: 12
A15: =IF(ISBLANK(H15),"",($E$3&"."&+(COUNTA(H$3:H15)))) -> 10.4 | D15: (d) | E15: Columns and column heads | H15: m2 | I15: 10200 | M15: 13
A16: =IF(ISBLANK(H16),"",($E$3&"."&+(COUNTA(H$3:H16)))) ->  | M16: 14
A17: =IF(ISBLANK(H17),"",($E$3&"."&+(COUNTA(H$3:H17)))) ->  | C17: Minor concrete spalls | M17: 15
A18: =IF(ISBLANK(H18),"",($E$3&"."&+(COUNTA(H$3:H18)))) ->  | M18: 16
A19: =IF(ISBLANK(H19),"",($E$3&"."&+(COUNTA(H$3:H19)))) -> 10.5 | C19: Cut max 20mm deep with a grinder around the area to be removed. | H19: m2 | I19: 90 | M19: 17
A20: =IF(ISBLANK(H20),"",($E$3&"."&+(COUNTA(H$3:H20)))) ->  | C20: Cut at a slight angle to create a dovetail/mechanical key for repair. | M20: 18
A21: =IF(ISBLANK(H21),"",($E$3&"."&+(COUNTA(H$3:H21)))) ->  | C21: Break out concrete to depth of spalled reinforcement. | M21: 19
A22: =IF(ISBLANK(H22),"",($E$3&"."&+(COUNTA(H$3:H22)))) ->  | C22: Remove any corroded material from rebar by mechanical means. | M22: 20
A23: =IF(ISBLANK(H23),"",($E$3&"."&+(COUNTA(H$3:H23)))) ->  | C23: Ensure concrete is acceptably clean with an open pore structure and | M23: 21
A24: =IF(ISBLANK(H24),"",($E$3&"."&+(COUNTA(H$3:H24)))) ->  | C24: meets the product supplier's requirements. | M24: 22
A25: =IF(ISBLANK(H25),"",($E$3&"."&+(COUNTA(H$3:H25)))) ->  | M25: 23
A26: =IF(ISBLANK(H26),"",($E$3&"."&+(COUNTA(H$3:H26)))) ->  | C26: .2 | D26: Apply Penecrete mortar in layers all strictly in accordance | M26: 24
A27: =IF(ISBLANK(H27),"",($E$3&"."&+(COUNTA(H$3:H27)))) ->  | D27: with the manufacturer's specifications: | M27: 25
A28: =IF(ISBLANK(H28),"",($E$3&"."&+(COUNTA(H$3:H28)))) ->  | M28: 26
A29: =IF(ISBLANK(H29),"",($E$3&"."&+(COUNTA(H$3:H29)))) -> 10.6 | D29: (a) | E29: floor and inclined surface less than 45 degrees | H29: litre | I29: 50 | M29: 27
A30: =IF(ISBLANK(H30),"",($E$3&"."&+(COUNTA(H$3:H30)))) ->  | M30: 28
A31: =IF(ISBLANK(H31),"",($E$3&"."&+(COUNTA(H$3:H31)))) -> 10.7 | D31: (b) | E31: walls and inclined surfaces 45 degrees and greater | H31: litre | I31: 50 | M31: 29
A32: =IF(ISBLANK(H32),"",($E$3&"."&+(COUNTA(H$3:H32)))) ->  | M32: 30
A33: =IF(ISBLANK(H33),"",($E$3&"."&+(COUNTA(H$3:H33)))) -> 10.8 | D33: (c) | E33: columns and column heads | H33: litre | I33: 1040 | M33: 31
A34: =IF(ISBLANK(H34),"",($E$3&"."&+(COUNTA(H$3:H34)))) ->  | M34: 32
A35: =IF(ISBLANK(H35),"",($E$3&"."&+(COUNTA(H$3:H35)))) -> 10.9 | D35: (d) | E35: roof soffit | H35: litre | I35: 1560 | M35: 33
A36: =IF(ISBLANK(H36),"",($E$3&"."&+(COUNTA(H$3:H36)))) ->  | M36: 34
A37: =IF(ISBLANK(H37),"",($E$3&"."&+(COUNTA(H$3:H37)))) ->  | C37: .3 | D37: Severe concrete spalls but where reinforcing loss due to corrosion is | M37: 35
A38: =IF(ISBLANK(H38),"",($E$3&"."&+(COUNTA(H$3:H38)))) ->  | D38: limited (to be evaluated on site) | M38: 36
A39: =IF(ISBLANK(H39),"",($E$3&"."&+(COUNTA(H$3:H39)))) ->  | M39: 37
A40: =IF(ISBLANK(H40),"",($E$3&"."&+(COUNTA(H$3:H40)))) -> 10.10 | D40: a) | E40: Cut max 20mm deep with a grinder around the area to be | H40: m2 | I40: 105 | M40: 38
A41: =IF(ISBLANK(H41),"",($E$3&"."&+(COUNTA(H$3:H41)))) ->  | E41: removed. Break out concrete to approximately 50mm deep | M41: 39
A42: =IF(ISBLANK(H42),"",($E$3&"."&+(COUNTA(H$3:H42)))) ->  | E42: beyond spalled reinforcement. Remove any corroded material | M42: 40
A43: =IF(ISBLANK(H43),"",($E$3&"."&+(COUNTA(H$3:H43)))) ->  | E43: from rebar by mechanical means. Ensure concrete is | M43: 41
A44: =IF(ISBLANK(H44),"",($E$3&"."&+(COUNTA(H$3:H44)))) ->  | E44: acceptably clean with an open pore structure and meets the | M44: 42
A45: =IF(ISBLANK(H45),"",($E$3&"."&+(COUNTA(H$3:H45)))) ->  | E45: product supplier's requirements. | M45: 43
A46: =IF(ISBLANK(H46),"",($E$3&"."&+(COUNTA(H$3:H46)))) ->  | M46: 44
A47: =IF(ISBLANK(H47),"",($E$3&"."&+(COUNTA(H$3:H47)))) ->  | D47: b) | E47: Apply Penecrete mortar in layers all strictly in accordance | M47: 45
A48: =IF(ISBLANK(H48),"",($E$3&"."&+(COUNTA(H$3:H48)))) ->  | E48: with the manufacturer's specifications: | M48: 46
A49: =IF(ISBLANK(H49),"",($E$3&"."&+(COUNTA(H$3:H49)))) ->  | M49: 47
A50: =IF(ISBLANK(H50),"",($E$3&"."&+(COUNTA(H$3:H50)))) -> 10.11 | E50: (a) | F50: floor and inclined surface less than 45 degrees | H50: litre | I50: 60 | M50: 48
A51: =IF(ISBLANK(H51),"",($E$3&"."&+(COUNTA(H$3:H51)))) ->  | M51: 49
A52: =IF(ISBLANK(H52),"",($E$3&"."&+(COUNTA(H$3:H52)))) -> 10.12 | E52: (b) | F52: walls and inclined surfaces 45 degrees and greater | H52: litre | I52: 240 | M52: 50
A53: =IF(ISBLANK(H53),"",($E$3&"."&+(COUNTA(H$3:H53)))) ->  | M53: 51
A54: =IF(ISBLANK(H54),"",($E$3&"."&+(COUNTA(H$3:H54)))) -> 10.13 | E54: (c) | F54: columns and column heads | H54: litre | I54: 3400 | M54: 52
A55: =IF(ISBLANK(H55),"",($E$3&"."&+(COUNTA(H$3:H55)))) ->  | M55: 53
A56: =IF(ISBLANK(H56),"",($E$3&"."&+(COUNTA(H$3:H56)))) -> 10.14 | E56: (d) | F56: roof soffit | H56: litre | I56: 3600 | M56: 54
A57: =IF(ISBLANK(H57),"",($E$3&"."&+(COUNTA(H$3:H57)))) ->  | M57: 55
A58: =IF(ISBLANK(H58),"",($E$3&"."&+(COUNTA(H$3:H58)))) ->  | C58: .4 | D58: Severe concrete spalls where reinforcing corrosion is significant, | M58: 56
A59: =IF(ISBLANK(H59),"",($E$3&"."&+(COUNTA(H$3:H59)))) ->  | D59: requiring reinforcing steel replacement (to be evaluated on site) | M59: 57
A60: =IF(ISBLANK(H60),"",($E$3&"."&+(COUNTA(H$3:H60)))) ->  | M60: 58
A61: =IF(ISBLANK(H61),"",($E$3&"."&+(COUNTA(H$3:H61)))) -> 10.15 | D61: a) | E61: Cut max 20mm deep with a grinder around the area to be | H61: m2 | I61: 130 | M61: 59
A62: =IF(ISBLANK(H62),"",($E$3&"."&+(COUNTA(H$3:H62)))) ->  | E62: removed. Break out concrete to approximately 50mm deep | M62: 60
A63: =IF(ISBLANK(H63),"",($E$3&"."&+(COUNTA(H$3:H63)))) ->  | E63: beyond spalled reinforcement and 50 x bar diameter beyond | M63: 61
A64: =IF(ISBLANK(H64),"",($E$3&"."&+(COUNTA(H$3:H64)))) ->  | E64: the area where reinforcing must be replaced. | M64: 62
A65: =IF(ISBLANK(H65),"",($E$3&"."&+(COUNTA(H$3:H65)))) ->  | E65: Cut out compromised reinforcing section. | M65: 63
A66: =IF(ISBLANK(H66),"",($E$3&"."&+(COUNTA(H$3:H66)))) ->  | E66: Remove any corroded material from remaining rebar by | M66: 64
A67: =IF(ISBLANK(H67),"",($E$3&"."&+(COUNTA(H$3:H67)))) ->  | E67: mechanical means. Ensure concrete is accepably clean with | M67: 65
A68: =IF(ISBLANK(H68),"",($E$3&"."&+(COUNTA(H$3:H68)))) ->  | E68: an open pore structure and meets the product supplier's | M68: 66
A69: =IF(ISBLANK(H69),"",($E$3&"."&+(COUNTA(H$3:H69)))) ->  | E69: requirements. | M69: 67
M70: 68
M71: 69
M72: 70
M73: 71
M74: 72
M75: 73
M76: 74
A77: =IF(ISBLANK(H77),"",($E$3&"."&+(COUNTA(H$3:H77)))) ->  | M77: 75
J78: Carried Forward | M78: 76
J79: Brought Forward | M79: 77
M80: 78
A81: =IF(ISBLANK(H81),"",($E$3&"."&+(COUNTA(H$3:H81)))) ->  | C81: .5 | D81: Bend existing reinforcing inwards where required to ensure a | M81: 79
A82: =IF(ISBLANK(H82),"",($E$3&"."&+(COUNTA(H$3:H82)))) ->  | D82: minimum cover of 20mm (roof soffit) or 40mm (walls). | M82: 80
A83: =IF(ISBLANK(H83),"",($E$3&"."&+(COUNTA(H$3:H83)))) ->  | D83: Bend replacement reinforcement to suit where required and | M83: 2
A84: =IF(ISBLANK(H84),"",($E$3&"."&+(COUNTA(H$3:H84)))) ->  | D84: splice onto existing exposed reinforcement, securing with tie wire | M84: 3
A85: =IF(ISBLANK(H85),"",($E$3&"."&+(COUNTA(H$3:H85)))) ->  | D85: while maintaining minimum cover requirements. | M85: 4
A86: =IF(ISBLANK(H86),"",($E$3&"."&+(COUNTA(H$3:H86)))) ->  | M86: 5
A87: =IF(ISBLANK(H87),"",($E$3&"."&+(COUNTA(H$3:H87)))) -> 10.16 | D87: (a) | E87: Y8 reinforcing bars | H87: kg | I87: 104 | M87: 6
A88: =IF(ISBLANK(H88),"",($E$3&"."&+(COUNTA(H$3:H88)))) ->  | M88: 7
A89: =IF(ISBLANK(H89),"",($E$3&"."&+(COUNTA(H$3:H89)))) -> 10.17 | D89: (b) | E89: Y12 reinforcing bars | H89: kg | I89: 1920 | M89: 8
A90: =IF(ISBLANK(H90),"",($E$3&"."&+(COUNTA(H$3:H90)))) ->  | M90: 9
A91: =IF(ISBLANK(H91),"",($E$3&"."&+(COUNTA(H$3:H91)))) -> 10.18 | D91: (c) | E91: Y16 reinforcing bars | H91: kg | I91: 160 | K91: =IF(ISBLANK($I93),"",J91*$I93) ->  | M91: 10
A92: =IF(ISBLANK(H92),"",($E$3&"."&+(COUNTA(H$3:H92)))) ->  | M92: 11
A93: =IF(ISBLANK(H93),"",($E$3&"."&+(COUNTA(H$3:H93)))) ->  | C93: .6 | D93: Apply Penecrete mortar in layers all strictly in accordance with | M93: 12
A94: =IF(ISBLANK(H94),"",($E$3&"."&+(COUNTA(H$3:H94)))) ->  | D94: the manufacturer's specifications: | M94: 13
A95: =IF(ISBLANK(H95),"",($E$3&"."&+(COUNTA(H$3:H95)))) ->  | M95: 14
A96: =IF(ISBLANK(H96),"",($E$3&"."&+(COUNTA(H$3:H96)))) -> 10.19 | D96: (a) | E96: floor and inclined surface less than 45 degrees | H96: litre | I96: 100 | M96: 15
A97: =IF(ISBLANK(H97),"",($E$3&"."&+(COUNTA(H$3:H97)))) ->  | M97: 16
A98: =IF(ISBLANK(H98),"",($E$3&"."&+(COUNTA(H$3:H98)))) -> 10.20 | D98: (b) | E98: walls and inclined surfaces 45 degrees and greater | H98: litre | I98: 100 | M98: 17
A99: =IF(ISBLANK(H99),"",($E$3&"."&+(COUNTA(H$3:H99)))) ->  | M99: 18
A100: =IF(ISBLANK(H100),"",($E$3&"."&+(COUNTA(H$3:H100)))) -> 10.21 | D100: (c) | E100: columns and column heads | H100: litre | I100: 1800 | M100: 19
A101: =IF(ISBLANK(H101),"",($E$3&"."&+(COUNTA(H$3:H101)))) ->  | M101: 20
A102: =IF(ISBLANK(H102),"",($E$3&"."&+(COUNTA(H$3:H102)))) -> 10.22 | D102: (d) | E102: roof soffit | H102: litre | I102: 16200 | M102: 21
A103: =IF(ISBLANK(H103),"",($E$3&"."&+(COUNTA(H$3:H103)))) ->  | M103: 22
A104: =IF(ISBLANK(H104),"",($E$3&"."&+(COUNTA(H$3:H104)))) ->  | C104: .7 | D104: Apply Penetron Slurry on prepared surfaces, all in accordance | M104: 23
A105: =IF(ISBLANK(H105),"",($E$3&"."&+(COUNTA(H$3:H105)))) ->  | D105: with manufacturer's specifications | M105: 24
A106: =IF(ISBLANK(H106),"",($E$3&"."&+(COUNTA(H$3:H106)))) ->  | M106: 25
A107: =IF(ISBLANK(H107),"",($E$3&"."&+(COUNTA(H$3:H107)))) -> 10.23 | D107: (a) | E107: Floor and inclined surfaces less than 45 degrees | H107: m2 | I107: 24500 | M107: 26
A108: =IF(ISBLANK(H108),"",($E$3&"."&+(COUNTA(H$3:H108)))) ->  | M108: 27
A109: =IF(ISBLANK(H109),"",($E$3&"."&+(COUNTA(H$3:H109)))) -> 10.24 | D109: (b) | E109: Walls/Inclined surfaces from 45 degrees and greater | H109: m2 | I109: 6600 | M109: 28
A110: =IF(ISBLANK(H110),"",($E$3&"."&+(COUNTA(H$3:H110)))) ->  | M110: 29
A111: =IF(ISBLANK(H111),"",($E$3&"."&+(COUNTA(H$3:H111)))) -> 10.25 | D111: (c) | E111: Roof Soffit | H111: m2 | I111: 25000 | M111: 30
A112: =IF(ISBLANK(H112),"",($E$3&"."&+(COUNTA(H$3:H112)))) ->  | M112: 31
A113: =IF(ISBLANK(H113),"",($E$3&"."&+(COUNTA(H$3:H113)))) -> 10.26 | D113: (d) | E113: Columns and column heads | H113: m2 | I113: 10200 | M113: 32
A114: =IF(ISBLANK(H114),"",($E$3&"."&+(COUNTA(H$3:H114)))) ->  | M114: 33
A115: =IF(ISBLANK(H115),"",($E$3&"."&+(COUNTA(H$3:H115)))) ->  | C115: .8 | D115: Inlet pipes | M115: 34
A116: =IF(ISBLANK(H116),"",($E$3&"."&+(COUNTA(H$3:H116)))) ->  | M116: 35
A117: =IF(ISBLANK(H117),"",($E$3&"."&+(COUNTA(H$3:H117)))) -> 10.27 | D117: (a) | E117: 4 Inlet pipes: mechanically brush/clean inside of 400mm | H117: P sum | I117: 1 | M117: 36
A118: =IF(ISBLANK(H118),"",($E$3&"."&+(COUNTA(H$3:H118)))) ->  | E118: Diameter pipes to remove corroded material; prepare | M118: 37
A119: =IF(ISBLANK(H119),"",($E$3&"."&+(COUNTA(H$3:H119)))) ->  | E119: internal surface as required and apply internal lining with a | M119: 38
A120: =IF(ISBLANK(H120),"",($E$3&"."&+(COUNTA(H$3:H120)))) ->  | E120: trenchless system e.g. AMT trenchless, or similar approved. | M120: 39
A121: =IF(ISBLANK(H121),"",($E$3&"."&+(COUNTA(H$3:H121)))) ->  | E121: Work complete including establishment, access, installation, etc. | M121: 40
A122: =IF(ISBLANK(H122),"",($E$3&"."&+(COUNTA(H$3:H122)))) ->  | M122: 41
A123: =IF(ISBLANK(H123),"",($E$3&"."&+(COUNTA(H$3:H123)))) ->  | C123: .9 | D123: Roof expansion joints | M123: 42
A124: =IF(ISBLANK(H124),"",($E$3&"."&+(COUNTA(H$3:H124)))) ->  | M124: 43
A125: =IF(ISBLANK(H125),"",($E$3&"."&+(COUNTA(H$3:H125)))) -> 10.28 | D125: (a) | E125: Rake away 100mm stone covering on roof for sufficient | H125: m | I125: 1380 | M125: 44
A126: =IF(ISBLANK(H126),"",($E$3&"."&+(COUNTA(H$3:H126)))) ->  | E126: working space requirements at joints; reinstate upon | M126: 45
A127: =IF(ISBLANK(H127),"",($E$3&"."&+(COUNTA(H$3:H127)))) ->  | E127: completion | M127: 46
A128: =IF(ISBLANK(H128),"",($E$3&"."&+(COUNTA(H$3:H128)))) ->  | M128: 47
A129: =IF(ISBLANK(H129),"",($E$3&"."&+(COUNTA(H$3:H129)))) -> 10.29 | D129: (b) | E129: Remove existing sealant material and part of filler board | H129: m | I129: 1380 | M129: 48
A130: =IF(ISBLANK(H130),"",($E$3&"."&+(COUNTA(H$3:H130)))) ->  | E130: where required to suit new installation. Prepare internal | M130: 49
A131: =IF(ISBLANK(H131),"",($E$3&"."&+(COUNTA(H$3:H131)))) ->  | E131: surfaces in accordance with new joint seal manufacturer's | M131: 50
A132: =IF(ISBLANK(H132),"",($E$3&"."&+(COUNTA(H$3:H132)))) ->  | E132: specifications | M132: 51
A133: =IF(ISBLANK(H133),"",($E$3&"."&+(COUNTA(H$3:H133)))) ->  | M133: 52
A134: =IF(ISBLANK(H134),"",($E$3&"."&+(COUNTA(H$3:H134)))) -> 10.30 | D134: (c) | E134: Install primer, backing cord and self-levelling ultra-low | H134: m | I134: 1380 | M134: 53
A135: =IF(ISBLANK(H135),"",($E$3&"."&+(COUNTA(H$3:H135)))) ->  | E135: modulus silicone/hybrid sealant to manufacturer's | M135: 54
A136: =IF(ISBLANK(H136),"",($E$3&"."&+(COUNTA(H$3:H136)))) ->  | E136: specification, joints 20 to 25mm wide | M136: 55
A137: =IF(ISBLANK(H137),"",($E$3&"."&+(COUNTA(H$3:H137)))) ->  | M137: 56
A138: =IF(ISBLANK(H138),"",($E$3&"."&+(COUNTA(H$3:H138)))) ->  | C138: .10 | D138: Swellable waterstop | M138: 57
A139: =IF(ISBLANK(H139),"",($E$3&"."&+(COUNTA(H$3:H139)))) ->  | M139: 58
A140: =IF(ISBLANK(H140),"",($E$3&"."&+(COUNTA(H$3:H140)))) -> 10.31 | D140: (a) | E140: Install Penebar SW55 swellable waterstop strictly in | H140: m | I140: 10 | M140: 59
A141: =IF(ISBLANK(H141),"",($E$3&"."&+(COUNTA(H$3:H141)))) ->  | E141: accordance with the manufacturer's specifications | M141: 60
A142: =IF(ISBLANK(H142),"",($E$3&"."&+(COUNTA(H$3:H142)))) ->  | M142: 61
A143: =IF(ISBLANK(H143),"",($E$3&"."&+(COUNTA(H$3:H143)))) ->  | M143: 62
A144: =IF(ISBLANK(H144),"",($E$3&"."&+(COUNTA(H$3:H144)))) ->  | M144: 63
A145: =IF(ISBLANK(H145),"",($E$3&"."&+(COUNTA(H$3:H145)))) ->  | M145: 64
A146: =IF(ISBLANK(H146),"",($E$3&"."&+(COUNTA(H$3:H146)))) ->  | M146: 65
A147: =IF(ISBLANK(H147),"",($E$3&"."&+(COUNTA(H$3:H147)))) ->  | M147: 66
A148: =IF(ISBLANK(H148),"",($E$3&"."&+(COUNTA(H$3:H148)))) ->  | M148: 67
M149: 68
M150: 69
M151: 70
A152: =IF(ISBLANK(H152),"",($E$3&"."&+(COUNTA(H$3:H152)))) ->  | C152: =C3 -> Schedule | E152: =E3 -> 10 | M152: 71
A153: =IF(ISBLANK(H153),"",($E$3&"."&+(COUNTA(H$3:H153)))) ->  | C153: =C4 -> CONCRETE SPOIL REPAIR | M153: 72
M154: 73
C155: Carried forward to Summary of Bills | J155: Total | M155: 74
M156: 75
M157: 76
M158: 77
M159: 78
M160: 79
M161: 80
M162: 81
M163: 82

Sheet BoQ SUMMARY
A4: BRANDKOP DAM JOINT SEALING IN THE CRR AND BY-PASS PIPELINE
A6: BID NUMBER: VCW440/STEELBPTB/26
A8: CONSTRUCTION OF A STEEL BY-PASS PIPELINE AND BREAK PRESSURE TANK AT BRANDKOP RESERVOIR INCLUDING RESERVOIR JOINT SEALING AND CONCRETE REPAIRS
A10: Summary of Bills
A12: Bill No. | B12: Description | D12: Amount ( R )
B13: PORTION 1 - GENERAL
A14: 1 | B14: PRELIMINARY AND GENERAL | G14: =D14/(SUM(D18:D25)) -> 
A15: 2 | B15: PROVISIONAL SUMS AND PRIME COST ITEMS
A16: 3 | B16: DAYWORKS AND TEMPORARY WORKS
B17: PORTION 2 - BY-PASS
A18: 4 | B18: ='4. BPT'!$C$4 -> NEW BREAK PRESSURE TANK (BPT) AND ADJOINING VALVE CHAMBER
A19: 5 | B19: ='5. Valve Chambers'!$C$4 -> VALVE / PIPE CHAMBERS
A20: 6 | B20: BUFFER TANK
A21: 7 | B21: ='7. Medium Pipes'!$C$4 -> MEDIUM PRESSURE PIPELINES
A22: 8 | B22: ='8. Earthworks '!$C$6 -> ACCESS ROAD, TEMPORARY DIVERSION AND CROSSING WORKS
B23: PORTION 3 - JOINT SEAL AND CONRETE REPAIR
A24: 9 | B24: JOINT REPAIR
A25: 10 | B25: SPOIL REPAIR
A26: SUB-TOTAL:
A28: Provisional sum: Allowance for Contingencies (10% of Sub-Total)
A29: SUB-TOTAL:
A30: Provisional sum: Allowance for CPA (3.5% of Sub-Total)
A31: SUB-TOTAL:
A32: Provisional sum: Allowance for Construction Skills Development Goal (CSDG)(0,25% of Sub-Total)
A33: TOTAL CONSTRUCTION COST (EXCL VAT):
A34: Value Added Tax at 15%
A35: TOTAL CONSTRUCTION COST (INCL VAT):
A38: Bankers Details :
A39: Contractor's Name:
A40: Name reflected on bank statement: ___________________________________________
A41: Bank:
A42: Branch:
A43: Account Number:
A44: Cheque Account | C44: or Savings Account
A46: Signature :
A47: By Tenderer :
A48: Company Name :
A49: Date :

Sheet SUMMARY -Report (hidden)
A2: BRANDKOP DAM JOINT SEALING IN THE CRR AND BY-PASS PIPELINE CONSTRUCTION OF A STEEL BY-PASS PIPELINE AND BREAK PRESSURE TANK AT BRANDKOP RESERVOIR INCLUDING RESERVOIR JOINT SEALING AND CONCRETE REPAIRS
A4: CONTRACT:
A6: Summary - Detailed Cost Breakdown
A8: Bill No. | B8: Description | C8: Amount ( R )
B9: PORTION 1 - GENERAL
A10: 1 | B10: PRELIMINARY AND GENERAL | C10: =MROUND(('1. P&G'!$K$153),1000) -> 0 | E10: =C10/(SUM(C14:C42)) -> 
A11: 2 | B11: PROVISIONAL SUMS AND PRIME COST ITEMS | C11: =MROUND(('2. Prov Sum'!$K$159),1000) -> 0
A12: 3 | B12: DAYWORKS AND TEMPORARY WORKS | C12: 0
B13: PORTION 2 - BY-PASS PIPELINE
A14: 4 | B14: ='4. BPT'!$C$4 -> NEW BREAK PRESSURE TANK (BPT) AND ADJOINING VALVE CHAMBER | C14: =SUM(C15:C18) -> 0
A15: 4.1 | B15: Earthworks | C15: =MROUND((SUM('4. BPT'!K10:K139)),1000) -> 0
A16: 4.2 | B16: Reinforced Concrete | C16: =MROUND(SUM('4. BPT'!K141:K341),1000) -> 0
A17: 4.3 | B17: Structural Steel | C17: =MROUND(SUM('4. BPT'!K345:K424),1000) -> 0
A18: 4.4 | B18: Valves and Appurtenances | C18: =MROUND(SUM('4. BPT'!K432:K441),1000) -> 0
A19: 5 | B19: BUFFER TANK | C19: =SUM(C20:C23) -> 
A20: 5.1 | B20: Earthworks | C20: =MROUND(SUM(#REF!),1000) -> 
A21: 5.2 | B21: Reinforced Concrete | C21: =MROUND(SUM(#REF!),1000) -> 
A22: 5.3 | B22: Pressed Steel Tank (500kl) | C22: =MROUND(SUM(#REF!),1000) -> 
A23: 5.4 | B23: Pipes, Valves and Appurtenances | C23: =MROUND(SUM(#REF!),1000) -> 
A24: 6 | B24: ='5. Valve Chambers'!$C$4 -> VALVE / PIPE CHAMBERS | C24: =SUM(C25:C27) -> 0
A25: 6.1 | B25: Earthworks | C25: =MROUND(SUM('5. Valve Chambers'!K12:K62),1000) -> 0
A26: 6.2 | B26: Reinforced Concrete | C26: =MROUND(SUM('5. Valve Chambers'!K65:K179),1000) -> 0
A27: 6.3 | B27: Structural Steel | C27: =MROUND(SUM('5. Valve Chambers'!K184:K234),1000) -> 0
A28: 7 | B28: ='7. Medium Pipes'!$C$4 -> MEDIUM PRESSURE PIPELINES | C28: =SUM(C29:C33) -> 0
A29: 7.1 | B29: Earthworks | C29: =MROUND(SUM('7. Medium Pipes'!K7:K118),1000) -> 0
A30: 7.2 | B30: Bedding and Pedestals | C30: =MROUND((SUM('7. Medium Pipes'!K120:K138)+SUM('7. Medium Pipes'!K405:K460)),1000) -> 0
A31: 7.3 | B31: Medium Pressure Pipelines | C31: =MROUND(SUM('7. Medium Pipes'!K139:K322),1000) -> 0
A32: 7.4 | B32: Valves and Appurtenances | C32: =MROUND(SUM('7. Medium Pipes'!K327:K345),1000) -> 0
A33: 7.5 | B33: Stormwater Drain | C33: =MROUND(SUM('7. Medium Pipes'!K349:K394),1000) -> 0
A34: 8 | B34: ='8. Earthworks '!$C$6 -> ACCESS ROAD, TEMPORARY DIVERSION AND CROSSING WORKS | C34: =C35 -> 0
A35: 8.1 | B35: Access Road | C35: =MROUND(SUM('8. Earthworks '!K3:K154),1000) -> 0
B36: PORTION 3 - JOINT SEAL AND CONRETE REPAIR
A37: 9 | B37: JOINT REPAIR | C37: =SUM(C38:C41) -> 0
A38: 9.1 | B38: Surface Preparation | C38: =MROUND(SUM('9. Joint Sealing'!K8:K16),1000) -> 0
A39: 9.2 | B39: Joint Repair | C39: =MROUND(SUM('9. Joint Sealing'!K17:K39),1000) -> 0
A40: 9.3 | B40: Testing | C40: =MROUND(SUM('9. Joint Sealing'!K42:K59),1000) -> 0
A41: 9.4 | B41: Sundries - Access Ladders | C41: =MROUND(SUM('9. Joint Sealing'!K62:K75),1000) -> 0
A42: 10 | B42: SPOIL REPAIR | C42: =SUM(C43:C46) -> 
A43: 10.1 | B43: Surface Preparation | C43: =MROUND(SUM(#REF!),1000) -> 
A44: 10.2 | B44: Spoil Repair | C44: =MROUND(SUM(#REF!),1000) -> 
A45: 10.3 | B45: Slurry Seal | C45: 0
A46: 10.4 | B46: Roof Waterproofing | C46: =MROUND(SUM(#REF!),1000) -> 
A47: SUB-TOTAL: | C47: =C10+C11+C12+C14+C19+C24+C28+C34+C37+C42 -> 
A49: Provisional sum: Allowance for Contingencies (10% of Sub-Total) | C49: =MROUND((C47*0.1),1000) -> 
A50: Sub-Total | C50: =C49+C47 -> 
A51: Provisional sum: Allowance for CPA (3.5% of Sub-Total) | C51: =MROUND((C50*0.035),1000) -> 
A52: Total Construction Cost | C52: =C50+C51 -> 
A53: Value Added Tax at 15% | C53: =C52*0.15 -> 
A54: TOTAL CONSTRUCTION COST (INCL VAT) | C54: =MROUND((C52+C53),1000) -> 

Sheet SUMMARY -Report (Excl Tank) (hidden)
A2: BRANDKOP DAM JOINT SEALING IN THE CRR AND BY-PASS PIPELINE CONSTRUCTION OF A STEEL BY-PASS PIPELINE AND BREAK PRESSURE TANK AT BRANDKOP RESERVOIR INCLUDING RESERVOIR JOINT SEALING AND CONCRETE REPAIRS
A4: CONTRACT:
A6: Summary - Detailed Cost Breakdown
A8: Bill No. | B8: Description | C8: Amount ( R )
B9: PORTION 1 - GENERAL
A10: 1 | B10: PRELIMINARY AND GENERAL | C10: =MROUND(('1. P&G'!$K$153),1000) -> 0 | E10: =C10/(SUM(C11:C12)+C14+#REF!+#REF!+C24+C27+C32) -> 
A11: 2 | B11: PROVISIONAL SUMS AND PRIME COST ITEMS | C11: =MROUND(('2. Prov Sum'!$K$159),1000) -> 0
A12: 3 | B12: DAYWORKS AND TEMPORARY WORKS | C12: R100,000.00
B13: PORTION 2 - BY-PASS PIPELINE
A14: 4 | B14: ='4. BPT'!$C$4 -> NEW BREAK PRESSURE TANK (BPT) AND ADJOINING VALVE CHAMBER | C14: =SUM(C15:C18) -> 0
A15: 4.1 | B15: Earthworks | C15: =MROUND((SUM('4. BPT'!K10:K139)),1000) -> 0
A16: 4.2 | B16: Reinforced Concrete | C16: =MROUND(SUM('4. BPT'!K141:K341),1000) -> 0
A17: 4.3 | B17: Structural Steel | C17: =MROUND(SUM('4. BPT'!K345:K424),1000) -> 0
A18: 4.4 | B18: Valves and Appurtenances | C18: =MROUND(SUM('4. BPT'!K432:K441),1000) -> 0
A19: 5 | B19: ='5. Valve Chambers'!$C$4 -> VALVE / PIPE CHAMBERS | C19: =SUM(C20:C22) -> 0
A20: 5.1 | B20: Earthworks | C20: =MROUND(SUM('5. Valve Chambers'!K12:K62),1000) -> 0
A21: 5.2 | B21: Reinforced Concrete | C21: =MROUND(SUM('5. Valve Chambers'!K65:K179),1000) -> 0
A22: 5.3 | B22: Structural Steel | C22: =MROUND(SUM('5. Valve Chambers'!K184:K234),1000) -> 0
A23: 6 | B23: ='7. Medium Pipes'!$C$4 -> MEDIUM PRESSURE PIPELINES | C23: =SUM(C24:C28) -> 0
A24: 6.1 | B24: Earthworks | C24: =MROUND(SUM('7. Medium Pipes'!K7:K118),1000) -> 0
A25: 6.2 | B25: Bedding and Pedestals | C25: =MROUND((SUM('7. Medium Pipes'!K120:K138)+SUM('7. Medium Pipes'!K405:K460)),1000) -> 0
A26: 6.3 | B26: Medium Pressure Pipelines | C26: =MROUND(SUM('7. Medium Pipes'!K139:K322),1000) -> 0
A27: 6.4 | B27: Valves and Appurtenances | C27: =MROUND(SUM('7. Medium Pipes'!K327:K345),1000) -> 0
A28: 6.5 | B28: Stormwater Drain | C28: =MROUND(SUM('7. Medium Pipes'!K349:K394),1000) -> 0
A29: 7 | B29: ='8. Earthworks '!$C$6 -> ACCESS ROAD, TEMPORARY DIVERSION AND CROSSING WORKS | C29: =C30 -> 0
A30: 7.1 | B30: Access Road | C30: =MROUND(SUM('8. Earthworks '!K3:K154),1000) -> 0
B31: PORTION 3 - JOINT SEAL AND CONRETE REPAIR
A32: 8 | B32: JOINT REPAIR | C32: =SUM(C33:C36) -> 0
A33: 8.1 | B33: Surface Preparation | C33: =MROUND(SUM('9. Joint Sealing'!K8:K16),1000) -> 0
A34: 8.2 | B34: Joint Repair | C34: =MROUND(SUM('9. Joint Sealing'!K17:K39),1000) -> 0
A35: 8.3 | B35: Testing | C35: =MROUND(SUM('9. Joint Sealing'!K42:K59),1000) -> 0
A36: 8.4 | B36: Sundries - Access Ladders | C36: =MROUND(SUM('9. Joint Sealing'!K62:K75),1000) -> 0
A37: 9 | B37: SPOIL REPAIR | C37: =SUM(C38:C41) -> 
A38: 9.1 | B38: Surface Preparation | C38: =MROUND(SUM(#REF!),1000) -> 
A39: 9.2 | B39: Spoil Repair | C39: =MROUND(SUM(#REF!),1000) -> 
A40: 9.3 | B40: Slurry Seal | C40: =MROUND(SUM(#REF!),1000) -> 
A41: 9.4 | B41: Roof Waterproofing | C41: =MROUND(SUM(#REF!),1000) -> 
A42: SUB-TOTAL: | C42: =C10+C11+C12+C14+C19+C23+C29+C32+C37 -> 
A44: Provisional sum: Allowance for Contingencies (10% of Sub-Total) | C44: =MROUND((C42*0.1),1000) -> 
A45: Sub-Total | C45: =C44+C42 -> 
A46: Provisional sum: Allowance for CPA (3.5% of Sub-Total) | C46: =MROUND((C45*0.035),1000) -> 
A47: Total Construction Cost | C47: =C45+C46 -> 
A48: Value Added Tax at 15% | C48: =C47*0.15 -> 
A49: TOTAL CONSTRUCTION COST (INCL VAT) | C49: =MROUND((C47+C48),1000) -> 
